NUMERO_MANDATO;RIGA_MANDATO;QUIET;IMPORTO_RIGA;IMPORTO_MANDATO;BENEFICIARIO;CIG;TITOLO_PAGAMENTO;DATA_MANDATO;CAPITOLO;ARTICOLO;NUMERO_IMPEGNO;TITOLO;DESCR_TITOLO;LIVELLO_II;DESCR_LIVELLO_II;LIVELLO_III;DESCR_LIVELLO_III;LIVELLO_IV;DESCR_LIVELLO_IV;LIVELLO_V;DESCR_LIVELLO_V;DATA_PAG_EFF;
1290;1;0;"285,87";"285,87";OMESSO NOMINATIVO NEL RISPETTO DELLA NORMATIVA SULLA PROTEZIONE DATI PERSONALI; ;FATT. CONTARINA DEL 02/09/2019 - FATT. CASA DI RIPOSO AITA N.389/B DEL 31/08/19 PASTI AGOSTO  E FATT. 445/B DEL 30/09/19 PASTI SETTEMBRE 2019.;09-10-2019;576;0;110;1;Spese correnti;4;Trasferimenti correnti;2;Trasferimenti correnti a Famiglie;2;Interventi assistenziali;999;Altri assegni e sussidi assistenziali;09-10-2019;
1291;1;0;"327,00";"327,00";OMESSO NOMINATIVO NEL RISPETTO DELLA NORMATIVA SULLA PROTEZIONE DATI PERSONALI; ;FATT. CASA DI RIPOSO AITA N. 349/B DEL 31/08/2019 PASTI MESE DI AGOSTO.;09-10-2019;576;0;239;1;Spese correnti;4;Trasferimenti correnti;2;Trasferimenti correnti a Famiglie;2;Interventi assistenziali;999;Altri assegni e sussidi assistenziali;09-10-2019;
1292;1;0;"300,00";"300,00";ASSOCIAZIONE PRO LOCO SAN ZENONE DEGLI EZZELINI; ;"LIQUIDAZIONE SPESA PER L'ORGANIZZAZIONE DELLA QUARTA EDIZIONE DELLA MOSTRA  ""ARTEINVILLA. EMOZIONI E COLORI DEL NOSTRO TERRITORIO. ARTISTI TRA MONTE GRAPPA, BRENTA E PIAVE"" - EDIZIONE 2019.";10-10-2019;333;1;133;1;Spese correnti;4;Trasferimenti correnti;1;Trasferimenti correnti a Amministrazioni Pubbliche;4;Trasferimenti correnti a organismi interni e/o unità locali della amministrazione;1;Trasferimenti correnti a organismi interni e/o unità locali della amministrazione;10-10-2019;
1295;1;0;"230,40";"230,40";PERSONALE DIPENDENTE - SEDE; ;IMPEGNO DI SPESA PER RIMBORSO SPESE E ACCESSI AL SEGRETARIO COMUNALE DR. ORSO PAOLO PER L'ANNO 2019.;10-10-2019;20;0;29;1;Spese correnti;3;Acquisto di beni e servizi;2;Acquisto di servizi;2;"Organizzazione eventi, pubblicita` e servizi per trasferta";1;Rimborso per viaggio e trasloco;10-10-2019;
1296;1;0;"26,45";"26,45";PERSONALE DIPENDENTE - SEDE; ;STIPENDI MESE DI: OTTOBRE 19;10-10-2019;20;0;29;1;Spese correnti;3;Acquisto di beni e servizi;2;Acquisto di servizi;2;"Organizzazione eventi, pubblicita` e servizi per trasferta";1;Rimborso per viaggio e trasloco;10-10-2019;
1300;1;0;"5,29";"5,29";PERSONALE DIPENDENTE - SEDE; ;STIPENDI MESE DI: OTTOBRE 19;10-10-2019;58;0;22;1;Spese correnti;3;Acquisto di beni e servizi;2;Acquisto di servizi;2;"Organizzazione eventi, pubblicita` e servizi per trasferta";1;Rimborso per viaggio e trasloco;10-10-2019;
1325;1;0;"5.961,21";"5.961,21";AMMINISTRATORI COMUNALI; ;STIPENDI MESE DI: OTTOBRE 19;10-10-2019;2;0;377;1;Spese correnti;3;Acquisto di beni e servizi;2;Acquisto di servizi;1;Organi e incarichi istituzionali dell'amministrazione;1;Organi istituzionali dell'amministrazione - Indennità;10-10-2019;
1328;1;0;"1.369,88";"1.369,88";CASA DI RIPOSO 'AITA'; ;SALDO Fatt.n. 429/B  del 27/09/2019 SERVIZIO DI A.D. - AGOSTO 2019;10-10-2019;562;1;240;1;Spese correnti;3;Acquisto di beni e servizi;2;Acquisto di servizi;15;Contratti di servizio pubblico;9;Contratti di servizio di assistenza sociale domiciliare;10-10-2019;
1329;1;0;"303,19";"303,19";CISL VENETO SERVIZI S.R.L.;Z722852073;SALDO Fatt.n. TVP/144  del 27/09/2019 PRATICHE PER UFFICIO SOCIALE;10-10-2019;559;0;245;1;Spese correnti;3;Acquisto di beni e servizi;2;Acquisto di servizi;99;Altri servizi;999;Altri servizi diversi n.a.c.;10-10-2019;
1330;1;0;"4.710,42";"4.710,42";PA SISTEMI S.R.L.;Z0C28FC813;SALDO Fatt.n. 93  del 28/09/2019 INSTALLAZIONE NUOVO CENTRALINO;10-10-2019;746;0;327;2;Spese in conto capitale;2;Investimenti fissi lordi e acquisto di terreni;1;Beni materiali;7;Hardware;999;Hardware n.a.c.;10-10-2019;
1331;1;0;"56,12";"56,12";SICURITALIA IVRI S.P.A.;Z3827208DE;SALDO Fatt.n. 9117007605  del 30/09/2019 SERVIZIO DI ISPEZIONE ED. COMUNALI;10-10-2019;71;0;89;1;Spese correnti;3;Acquisto di beni e servizi;2;Acquisto di servizi;5;Utenze e canoni;999;Utenze e canoni per altri servizi n.a.c.;10-10-2019;
1332;1;0;"75,84";"75,84";LA IDROFERRAMENTA SRL;Z192700D74;SALDO Fatt.n. 85/PA  del 30/09/2019 MATERIALE DI FERRAMENTA;10-10-2019;591;0;58;1;Spese correnti;3;Acquisto di beni e servizi;1;Acquisto di beni;2;Altri beni di consumo;999;Altri beni e materiali di consumo n.a.c.;10-10-2019;
1333;1;0;"117,98";"381,02";KUWAIT PETROLEUM ITALIA S.P.A.;Z4E197F01F;SALDO Fatt.n. PJ01703341  del 30/09/2019 CARBURANTE AUTO UFF. SOCIALE-SETTEMBRE 2019;10-10-2019;590;0;156;1;Spese correnti;3;Acquisto di beni e servizi;1;Acquisto di beni;2;Altri beni di consumo;2;"Carburanti, combustibili e lubrificanti";10-10-2019;
1333;2;0;"131,03";"381,02";KUWAIT PETROLEUM ITALIA S.P.A.;Z4E197F01F;SALDO Fatt.n. PJ01703340  del 30/09/2019 CARBURANTE AUTO OPERAIO -SETTEMBRE 2019;10-10-2019;590;0;156;1;Spese correnti;3;Acquisto di beni e servizi;1;Acquisto di beni;2;Altri beni di consumo;2;"Carburanti, combustibili e lubrificanti";10-10-2019;
1333;3;0;"132,01";"381,02";KUWAIT PETROLEUM ITALIA S.P.A.;Z4E197F01F;SALDO Fatt.n. PJ01703342  del 30/09/2019 CARBURANTE AUTO VIGILI-SETTEMBRE 2019;10-10-2019;590;0;156;1;Spese correnti;3;Acquisto di beni e servizi;1;Acquisto di beni;2;Altri beni di consumo;2;"Carburanti, combustibili e lubrificanti";10-10-2019;
1334;1;0;"38,16";"38,16";ABACO S.P.A.;ZB919D1F1A;SALDO Fatt.n. 2019140003388  del 01/10/2019 RISCOSSIONE COATTIVA TRIBUTI COMUNALI;10-10-2019;121;0;475;1;Spese correnti;3;Acquisto di beni e servizi;2;Acquisto di servizi;3;Aggi di riscossione;999;Altri aggi di riscossione n.a.c.;10-10-2019;
1335;1;0;"24,40";"671,00";ASCO TLC S.P.A.;ZCD271B191;SALDO Fatt.n. 09030627  del 30/09/2019 Fatturazione Servizi;10-10-2019;561;2;80;1;Spese correnti;3;Acquisto di beni e servizi;2;Acquisto di servizi;5;Utenze e canoni;999;Utenze e canoni per altri servizi n.a.c.;10-10-2019;
1335;2;0;"176,90";"671,00";ASCO TLC S.P.A.;ZCD271B191;SALDO Fatt.n. 09030629  del 30/09/2019 Fatturazione Servizi;10-10-2019;561;2;80;1;Spese correnti;3;Acquisto di beni e servizi;2;Acquisto di servizi;5;Utenze e canoni;999;Utenze e canoni per altri servizi n.a.c.;10-10-2019;
1335;3;0;"469,70";"671,00";ASCO TLC S.P.A.;ZCD271B191;SALDO Fatt.n. 09030628  del 30/09/2019 Fatturazione Servizi;10-10-2019;561;2;80;1;Spese correnti;3;Acquisto di beni e servizi;2;Acquisto di servizi;5;Utenze e canoni;999;Utenze e canoni per altri servizi n.a.c.;10-10-2019;
1338;1;0;"5.641,63";"5.641,63";A.S. DI ANDREATTA GIUSEPPE & C. S.R.L.;ZB1282AB4D;SALDO Fatt.n. 0733  del 30/09/2019 MANUTENZIONE ORDINARIA IMP. ELETTRICI ED. COMUNALI;10-10-2019;601;0;220;1;Spese correnti;3;Acquisto di beni e servizi;2;Acquisto di servizi;15;Contratti di servizio pubblico;15;Contratti di servizio per l'illuminazione pubblica;10-10-2019;
1339;1;0;"609,67";"609,67";SERVIZIO ELETTRICO NAZIONALE SpA;7134285639;SALDO Fatt.n. 263552205013416  del 04/10/2019 ENEL CENTRO POLIV.- SETTEMBRE 2019;10-10-2019;561;2;341;1;Spese correnti;3;Acquisto di beni e servizi;2;Acquisto di servizi;5;Utenze e canoni;4;Energia elettrica;10-10-2019;
1340;1;0;"515,55";"515,55";UNA CASA PER L'UOMO - SOCIETA' COOPERATIVA SOCIALE;ZA32468D08;SALDO Fatt.n. FE/0000333  del 30/09/2019 SPESE PER SERVIZI SOCIALI;10-10-2019;559;0;334;1;Spese correnti;3;Acquisto di beni e servizi;2;Acquisto di servizi;99;Altri servizi;999;Altri servizi diversi n.a.c.;10-10-2019;
1341;1;0;"991,20";"991,20";KIRIKU' SOCIETA' COOPERATIVA SOCIALE ONLUS;ZC12810421;SALDO Fatt.n. 239  del 30/09/2019 SPESE PER SERVIZI SOCIALI - SETTEMBRE 2019;10-10-2019;559;0;184;1;Spese correnti;3;Acquisto di beni e servizi;2;Acquisto di servizi;99;Altri servizi;999;Altri servizi diversi n.a.c.;10-10-2019;
1342;1;0;"36,36";"36,36";UNICOOPER SERVIZI S.C.R.L.;Z0128215E5;ACCONTO Fatt.n. 1571  del 30/09/2019 PULIZIA ED. COMUNALI - SETTEMBRE 2019;10-10-2019;178;1;193;1;Spese correnti;3;Acquisto di beni e servizi;2;Acquisto di servizi;13;Servizi ausiliari per il funzionamento dell'ente;2;Servizi di pulizia e lavanderia;10-10-2019;
1343;1;0;"1.745,46";"1.745,46";UNICOOPER SERVIZI S.C.R.L.;Z0128215E5;SALDO Fatt.n. 1571  del 30/09/2019 PULIZIA ED. COMUNALI - SETTEMBRE 2019;10-10-2019;561;4;463;1;Spese correnti;3;Acquisto di beni e servizi;2;Acquisto di servizi;9;Manutenzione ordinaria e riparazioni;3;Manutenzione ordinaria e riparazioni di mobili e arredi;10-10-2019;
1344;1;0;"1.440,00";"1.440,00";NOIGROUP Coop. Soc. a R.L.;Z5F268727B;SALDO Fatt.n. 724  del 30/09/2019 GESTIONE BIBLIOTECA - SETTEMBRE 2019;10-10-2019;302;1;553;1;Spese correnti;3;Acquisto di beni e servizi;2;Acquisto di servizi;16;Servizi amministrativi;999;Altre spese per servizi amministrativi;10-10-2019;
1345;1;0;"74.740,31";"74.740,31";COSTRUZIONI VIRAGO S.N.C.;7962522106;SALDO Fatt.n. 10/PA  del 08/10/2019 ADEGUAMENTO SISMICO ED ENERGETICO SCUOLE;10-10-2019;779;0;451;2;Spese in conto capitale;2;Investimenti fissi lordi e acquisto di terreni;1;Beni materiali;9;Beni immobili;3;Fabbricati ad uso scolastico;10-10-2019;
1346;1;0;"1.809,00";"1.809,00";OPERE PIE D'ONIGO; ;SALDO Fatt.n. 321/2  del 30/09/2019 SPESE PER SERVIZI SOCIALI - SETTEMBRE 2019;10-10-2019;560;0;32;1;Spese correnti;3;Acquisto di beni e servizi;2;Acquisto di servizi;15;Contratti di servizio pubblico;8;Contratti di servizio di assistenza sociale residenziale e semiresidenziale;10-10-2019;
1347;1;0;"55,94";"55,94";ALFA ANTINCENDIO S.R.L.;ZE427A4622;SALDO Fatt.n. 117  del 16/09/2019 ORE LAVORATE OPERAIO PER CONTROLLO;10-10-2019;234;0;142;1;Spese correnti;3;Acquisto di beni e servizi;1;Acquisto di beni;2;Altri beni di consumo;7;Altri materiali tecnico-specialistici non sanitari;10-10-2019;
1348;1;0;"1.630,00";"1.630,00";CASA DI RIPOSO 'AITA'; ;SALDO Fatt.n. 474/B  del 08/10/2019 PRESTAZIONI SOCIALI L.V. - SETTEMBRE 2019;11-10-2019;560;0;31;1;Spese correnti;3;Acquisto di beni e servizi;2;Acquisto di servizi;15;Contratti di servizio pubblico;8;Contratti di servizio di assistenza sociale residenziale e semiresidenziale;11-10-2019;
1349;1;0;"80,00";"980,00";AJRULAI ZEJNEP; ;LIQUIDAZIONE CONTRIBUTO REGIONALE BUONO LIBRI E CONTENUTI DIDATTICI ALTERNATIVI. ANNO SCOLASTICO-FORMATIVO 2018/2019.;16-10-2019;558;1;586;1;Spese correnti;4;Trasferimenti correnti;2;Trasferimenti correnti a Famiglie;2;Interventi assistenziali;999;Altri assegni e sussidi assistenziali;16-10-2019;
1349;2;0;"80,00";"980,00";ISMAILI NIZAFER; ;LIQUIDAZIONE CONTRIBUTO REGIONALE BUONO LIBRI E CONTENUTI DIDATTICI ALTERNATIVI. ANNO SCOLASTICO-FORMATIVO 2018/2019.;16-10-2019;558;1;586;1;Spese correnti;4;Trasferimenti correnti;2;Trasferimenti correnti a Famiglie;2;Interventi assistenziali;999;Altri assegni e sussidi assistenziali;16-10-2019;
1349;3;0;"180,00";"980,00";JAKUPI AKIF; ;LIQUIDAZIONE CONTRIBUTO REGIONALE BUONO LIBRI E CONTENUTI DIDATTICI ALTERNATIVI. ANNO SCOLASTICO-FORMATIVO 2018/2019.;16-10-2019;558;1;586;1;Spese correnti;4;Trasferimenti correnti;2;Trasferimenti correnti a Famiglie;2;Interventi assistenziali;999;Altri assegni e sussidi assistenziali;16-10-2019;
1349;4;0;"80,00";"980,00";MURATI ASHMET; ;LIQUIDAZIONE CONTRIBUTO REGIONALE BUONO LIBRI E CONTENUTI DIDATTICI ALTERNATIVI. ANNO SCOLASTICO-FORMATIVO 2018/2019.;16-10-2019;558;1;586;1;Spese correnti;4;Trasferimenti correnti;2;Trasferimenti correnti a Famiglie;2;Interventi assistenziali;999;Altri assegni e sussidi assistenziali;16-10-2019;
1349;5;0;"160,00";"980,00";NDOKAJ MIRANDA; ;LIQUIDAZIONE CONTRIBUTO REGIONALE BUONO LIBRI E CONTENUTI DIDATTICI ALTERNATIVI. ANNO SCOLASTICO-FORMATIVO 2018/2019.;16-10-2019;558;1;586;1;Spese correnti;4;Trasferimenti correnti;2;Trasferimenti correnti a Famiglie;2;Interventi assistenziali;999;Altri assegni e sussidi assistenziali;16-10-2019;
1349;6;0;"80,00";"980,00";NUREDINOVSKI LJAVDURIM; ;LIQUIDAZIONE CONTRIBUTO REGIONALE BUONO LIBRI E CONTENUTI DIDATTICI ALTERNATIVI. ANNO SCOLASTICO-FORMATIVO 2018/2019.;16-10-2019;558;1;586;1;Spese correnti;4;Trasferimenti correnti;2;Trasferimenti correnti a Famiglie;2;Interventi assistenziali;999;Altri assegni e sussidi assistenziali;16-10-2019;
1349;7;0;"160,00";"980,00";PAJAZITOVSKI ABDULHAKI; ;LIQUIDAZIONE CONTRIBUTO REGIONALE BUONO LIBRI E CONTENUTI DIDATTICI ALTERNATIVI. ANNO SCOLASTICO-FORMATIVO 2018/2019.;16-10-2019;558;1;586;1;Spese correnti;4;Trasferimenti correnti;2;Trasferimenti correnti a Famiglie;2;Interventi assistenziali;999;Altri assegni e sussidi assistenziali;16-10-2019;
1349;8;0;"160,00";"980,00";PAJAZITOVSKI SAMIR; ;LIQUIDAZIONE CONTRIBUTO REGIONALE BUONO LIBRI E CONTENUTI DIDATTICI ALTERNATIVI. ANNO SCOLASTICO-FORMATIVO 2018/2019.;16-10-2019;558;1;586;1;Spese correnti;4;Trasferimenti correnti;2;Trasferimenti correnti a Famiglie;2;Interventi assistenziali;999;Altri assegni e sussidi assistenziali;16-10-2019;
1350;1;0;"387,88";"387,88";ALFA ANTINCENDIO S.R.L.;ZA5276F7AD;ACCONTO Fatt.n. 109  del 31/08/2019 CONTROLLO SEMESTRALE ESTINTORI;17-10-2019;744;1;468;2;Spese in conto capitale;2;Investimenti fissi lordi e acquisto di terreni;1;Beni materiali;9;Beni immobili;999;Beni immobili n.a.c.;17-10-2019;
1351;1;0;"400,00";"400,00";ALFA ANTINCENDIO S.R.L.;ZA5276F7AD;ACCONTO Fatt.n. 109  del 31/08/2019 CONTROLLO SEMESTRALE ESTINTORI;17-10-2019;530;1;467;1;Spese correnti;3;Acquisto di beni e servizi;2;Acquisto di servizi;9;Manutenzione ordinaria e riparazioni;5;Manutenzione ordinaria e riparazioni di attrezzature;17-10-2019;
1352;1;0;"512,40";"512,40";ALFA ANTINCENDIO S.R.L.;ZA5276F7AD;ACCONTO Fatt.n. 109  del 31/08/2019 CONTROLLO SEMESTRALE ESTINTORI;17-10-2019;310;1;466;1;Spese correnti;3;Acquisto di beni e servizi;2;Acquisto di servizi;9;Manutenzione ordinaria e riparazioni;5;Manutenzione ordinaria e riparazioni di attrezzature;17-10-2019;
1353;1;0;"400,00";"400,00";ALFA ANTINCENDIO S.R.L.;ZA5276F7AD;ACCONTO Fatt.n. 109  del 31/08/2019 CONTROLLO SEMESTRALE ESTINTORI;17-10-2019;235;1;465;1;Spese correnti;3;Acquisto di beni e servizi;2;Acquisto di servizi;9;Manutenzione ordinaria e riparazioni;5;Manutenzione ordinaria e riparazioni di attrezzature;17-10-2019;
1354;1;0;"1.962,42";"1.962,42";OLIVETTI S.P.A.;ZC92648F71;SALDO Fatt.n. A20020191000038010  del 30/09/2019 CANONE NOLEGGIO FOTOCOPIATORE;17-10-2019;34;0;508;1;Spese correnti;3;Acquisto di beni e servizi;2;Acquisto di servizi;5;Utenze e canoni;999;Utenze e canoni per altri servizi n.a.c.;17-10-2019;
1355;1;0;"2.861,96";"2.861,96";RIGATO INFISSI S.R.L.;ZC729B3E09;ACCONTO Fatt.n. 586/P  del 03/10/2019 FORNITURA TENDE FRANGISOLE PER SCUOLE;17-10-2019;745;0;447;2;Spese in conto capitale;2;Investimenti fissi lordi e acquisto di terreni;1;Beni materiali;9;Beni immobili;3;Fabbricati ad uso scolastico;17-10-2019;
1356;1;0;"4.155,16";"4.155,16";RIGATO INFISSI S.R.L.;ZC729B3E09;SALDO Fatt.n. 586/P  del 03/10/2019 FORNITURA TENDE FRANGISOLE PER SCUOLE;17-10-2019;772;0;446;2;Spese in conto capitale;2;Investimenti fissi lordi e acquisto di terreni;1;Beni materiali;9;Beni immobili;3;Fabbricati ad uso scolastico;17-10-2019;
1357;1;0;"59,62";"59,62";FERRONATO S.R.L.;Z7C26AD935;SALDO Fatt.n. P5  del 30/09/2019 FORNITURA MATERIALI PER IMP. SPORTIVI;17-10-2019;531;0;61;1;Spese correnti;3;Acquisto di beni e servizi;1;Acquisto di beni;2;Altri beni di consumo;999;Altri beni e materiali di consumo n.a.c.;17-10-2019;
1358;1;0;"331,29";"331,29";MAZZAROLO S.R.L.;ZF329BF289;SALDO Fatt.n. 2019_3_33  del 04/10/2019 MANUTENZIONE ORDINARIA VEICOLO COMUNALE;17-10-2019;590;1;448;1;Spese correnti;3;Acquisto di beni e servizi;2;Acquisto di servizi;9;Manutenzione ordinaria e riparazioni;1;"Manutenzione ordinaria e riparazioni di mezzi di trasporto ad uso civile, di sicurezza e ordine pubblico";17-10-2019;
1359;1;0;"-134,41";"1,33";ENEL ENERGIA S.P.A.;7134285639;SALDO Fatt.n. 003034759333  del 05/06/2019 ENEL - NOTA DI CREDITO - APRILE 2019;17-10-2019;252;0;316;1;Spese correnti;3;Acquisto di beni e servizi;2;Acquisto di servizi;5;Utenze e canoni;4;Energia elettrica;17-10-2019;
1359;2;0;"-110,12";"1,33";ENEL ENERGIA S.P.A.;7134285639;SALDO Fatt.n. 003034759321  del 05/06/2019 ENEL - NOTA DI CREDITO - APRILE 2019;17-10-2019;252;0;316;1;Spese correnti;3;Acquisto di beni e servizi;2;Acquisto di servizi;5;Utenze e canoni;4;Energia elettrica;17-10-2019;
1359;3;0;"-49,36";"1,33";ENEL ENERGIA S.P.A.;7134285639;SALDO Fatt.n. 003034759334  del 05/06/2019 ENEL - NOTA DI CREDITO - APRILE 2019;17-10-2019;252;0;316;1;Spese correnti;3;Acquisto di beni e servizi;2;Acquisto di servizi;5;Utenze e canoni;4;Energia elettrica;17-10-2019;
1359;4;0;"-41,76";"1,33";ENEL ENERGIA S.P.A.;7134285639;SALDO Fatt.n. 003034759326  del 05/06/2019 ENEL - NOTA DI CREDITO -  APRILE 2019;17-10-2019;252;0;316;1;Spese correnti;3;Acquisto di beni e servizi;2;Acquisto di servizi;5;Utenze e canoni;4;Energia elettrica;17-10-2019;
1359;5;0;"-20,37";"1,33";ENEL ENERGIA S.P.A.;7134285639;SALDO Fatt.n. 003034759338  del 05/06/2019 ENEL - NOTA DI CREDITO - APRILE 2019;17-10-2019;252;0;316;1;Spese correnti;3;Acquisto di beni e servizi;2;Acquisto di servizi;5;Utenze e canoni;4;Energia elettrica;17-10-2019;
1359;6;0;"-18,78";"1,33";ENEL ENERGIA S.P.A.;7134285639;SALDO Fatt.n. 003034759342  del 05/06/2019 ENEL - NOTA DI CREDITO - APRILE 2019;17-10-2019;252;0;316;1;Spese correnti;3;Acquisto di beni e servizi;2;Acquisto di servizi;5;Utenze e canoni;4;Energia elettrica;17-10-2019;
1359;7;0;"-9,35";"1,33";ENEL ENERGIA S.P.A.;7134285639;SALDO Fatt.n. 003034759336  del 05/06/2019 ENEL - NOTA DI CREDITO - APRILE 2019;17-10-2019;252;0;316;1;Spese correnti;3;Acquisto di beni e servizi;2;Acquisto di servizi;5;Utenze e canoni;4;Energia elettrica;17-10-2019;
1359;8;0;"-4,53";"1,33";ENEL ENERGIA S.P.A.;7134285639;SALDO Fatt.n. 003048327401  del 19/07/2019 NOTA DI CREDITO;17-10-2019;252;0;316;1;Spese correnti;3;Acquisto di beni e servizi;2;Acquisto di servizi;5;Utenze e canoni;4;Energia elettrica;17-10-2019;
1359;9;0;"-3,38";"1,33";ENEL ENERGIA S.P.A.;7134285639;SALDO Fatt.n. 003048327393  del 19/07/2019 NOTA DI CREDITO;17-10-2019;252;0;316;1;Spese correnti;3;Acquisto di beni e servizi;2;Acquisto di servizi;5;Utenze e canoni;4;Energia elettrica;17-10-2019;
1359;10;0;"-2,35";"1,33";ENEL ENERGIA S.P.A.;7134285639;SALDO Fatt.n. 003048327379  del 19/07/2019 NOTA DI CREDITO;17-10-2019;252;0;316;1;Spese correnti;3;Acquisto di beni e servizi;2;Acquisto di servizi;5;Utenze e canoni;4;Energia elettrica;17-10-2019;
1359;11;0;"-2,12";"1,33";ENEL ENERGIA S.P.A.;7134285639;SALDO Fatt.n. 003048327403  del 19/07/2019 NOTA DI CREDITO;17-10-2019;252;0;316;1;Spese correnti;3;Acquisto di beni e servizi;2;Acquisto di servizi;5;Utenze e canoni;4;Energia elettrica;17-10-2019;
1359;12;0;"-2,07";"1,33";ENEL ENERGIA S.P.A.;7134285639;SALDO Fatt.n. 003048327407  del 19/07/2019 NOTA DI CREDITO;17-10-2019;252;0;316;1;Spese correnti;3;Acquisto di beni e servizi;2;Acquisto di servizi;5;Utenze e canoni;4;Energia elettrica;17-10-2019;
1359;13;0;"-1,87";"1,33";ENEL ENERGIA S.P.A.;7134285639;SALDO Fatt.n. 003048327398  del 19/07/2019 NOTA DI CREDITO;17-10-2019;252;0;316;1;Spese correnti;3;Acquisto di beni e servizi;2;Acquisto di servizi;5;Utenze e canoni;4;Energia elettrica;17-10-2019;
1359;14;0;"-1,79";"1,33";ENEL ENERGIA S.P.A.;7134285639;SALDO Fatt.n. 003048327399  del 19/07/2019 NOTA DI CREDITO;17-10-2019;252;0;316;1;Spese correnti;3;Acquisto di beni e servizi;2;Acquisto di servizi;5;Utenze e canoni;4;Energia elettrica;17-10-2019;
1359;15;0;"-1,45";"1,33";ENEL ENERGIA S.P.A.;7134285639;SALDO Fatt.n. 003048327388  del 19/07/2019 NOTA DI CREDITO;17-10-2019;252;0;316;1;Spese correnti;3;Acquisto di beni e servizi;2;Acquisto di servizi;5;Utenze e canoni;4;Energia elettrica;17-10-2019;
1359;16;0;"-1,21";"1,33";ENEL ENERGIA S.P.A.;7134285639;SALDO Fatt.n. 003048327376  del 19/07/2019 NOTA DI CREDITO;17-10-2019;252;0;316;1;Spese correnti;3;Acquisto di beni e servizi;2;Acquisto di servizi;5;Utenze e canoni;4;Energia elettrica;17-10-2019;
1359;17;0;"-0,82";"1,33";ENEL ENERGIA S.P.A.;7134285639;SALDO Fatt.n. 003048327383  del 19/07/2019 NOTA DI CREDITO;17-10-2019;252;0;316;1;Spese correnti;3;Acquisto di beni e servizi;2;Acquisto di servizi;5;Utenze e canoni;4;Energia elettrica;17-10-2019;
1359;18;0;"-0,62";"1,33";ENEL ENERGIA S.P.A.;7134285639;SALDO Fatt.n. 003048327400  del 19/07/2019 NOTA DI CREDITO;17-10-2019;252;0;316;1;Spese correnti;3;Acquisto di beni e servizi;2;Acquisto di servizi;5;Utenze e canoni;4;Energia elettrica;17-10-2019;
1359;19;0;"-0,56";"1,33";ENEL ENERGIA S.P.A.;7134285639;SALDO Fatt.n. 003037484326  del 08/06/2019 ENEL - NOTA DI CREDITO - APRILE 2019;17-10-2019;252;0;316;1;Spese correnti;3;Acquisto di beni e servizi;2;Acquisto di servizi;5;Utenze e canoni;4;Energia elettrica;17-10-2019;
1359;20;0;"-0,41";"1,33";ENEL ENERGIA S.P.A.;7134285639;SALDO Fatt.n. 003048327380  del 19/07/2019 NOTA DI CREDITO;17-10-2019;252;0;316;1;Spese correnti;3;Acquisto di beni e servizi;2;Acquisto di servizi;5;Utenze e canoni;4;Energia elettrica;17-10-2019;
1359;21;0;"-0,39";"1,33";ENEL ENERGIA S.P.A.;7134285639;SALDO Fatt.n. 003048327389  del 19/07/2019 NOTA DI CREDITO;17-10-2019;252;0;316;1;Spese correnti;3;Acquisto di beni e servizi;2;Acquisto di servizi;5;Utenze e canoni;4;Energia elettrica;17-10-2019;
1359;22;0;"-0,32";"1,33";ENEL ENERGIA S.P.A.;7134285639;SALDO Fatt.n. 003048327392  del 19/07/2019 NOTA DI CREDITO;17-10-2019;252;0;316;1;Spese correnti;3;Acquisto di beni e servizi;2;Acquisto di servizi;5;Utenze e canoni;4;Energia elettrica;17-10-2019;
1359;23;0;"-0,32";"1,33";ENEL ENERGIA S.P.A.;7134285639;SALDO Fatt.n. 003048327386  del 19/07/2019 NOTA DI CREDITO;17-10-2019;252;0;316;1;Spese correnti;3;Acquisto di beni e servizi;2;Acquisto di servizi;5;Utenze e canoni;4;Energia elettrica;17-10-2019;
1359;24;0;"-0,29";"1,33";ENEL ENERGIA S.P.A.;7134285639;SALDO Fatt.n. 003048327385  del 19/07/2019 NOTA DI CREDITO;17-10-2019;252;0;316;1;Spese correnti;3;Acquisto di beni e servizi;2;Acquisto di servizi;5;Utenze e canoni;4;Energia elettrica;17-10-2019;
1359;25;0;"-0,17";"1,33";ENEL ENERGIA S.P.A.;7134285639;SALDO Fatt.n. 003048327405  del 19/07/2019 NOTA DI CREDITO;17-10-2019;252;0;316;1;Spese correnti;3;Acquisto di beni e servizi;2;Acquisto di servizi;5;Utenze e canoni;4;Energia elettrica;17-10-2019;
1359;26;0;"410,15";"1,33";ENEL ENERGIA S.P.A.;7134285639;SALDO Fatt.n. 003062416367  del 19/09/2019 ENEL APRILE : CHIUSURA CONTRATTO;17-10-2019;252;0;316;1;Spese correnti;3;Acquisto di beni e servizi;2;Acquisto di servizi;5;Utenze e canoni;4;Energia elettrica;17-10-2019;
1360;1;0;"-240,35";"0,66";ENEL ENERGIA S.P.A.;7134285639;SALDO Fatt.n. 003034759320  del 05/06/2019 ENEL - NOTA DI CREDITO - APRILE 2019;17-10-2019;252;0;316;1;Spese correnti;3;Acquisto di beni e servizi;2;Acquisto di servizi;5;Utenze e canoni;4;Energia elettrica;17-10-2019;
1360;2;0;"-64,55";"0,66";ENEL ENERGIA S.P.A.;7134285639;SALDO Fatt.n. 003034759337  del 05/06/2019 ENEL - NOTA DI CREDITO - APRILE 2019;17-10-2019;252;0;316;1;Spese correnti;3;Acquisto di beni e servizi;2;Acquisto di servizi;5;Utenze e canoni;4;Energia elettrica;17-10-2019;
1360;3;0;"-33,10";"0,66";ENEL ENERGIA S.P.A.;7134285639;SALDO Fatt.n. 003034759325  del 05/06/2019 ENEL - NOTA DI CREDITO - APRILE 2019;17-10-2019;252;0;316;1;Spese correnti;3;Acquisto di beni e servizi;2;Acquisto di servizi;5;Utenze e canoni;4;Energia elettrica;17-10-2019;
1360;4;0;"-4,60";"0,66";ENEL ENERGIA S.P.A.;7134285639;SALDO Fatt.n. 003048327382  del 19/07/2019 NOTA DI CREDITO;17-10-2019;252;0;316;1;Spese correnti;3;Acquisto di beni e servizi;2;Acquisto di servizi;5;Utenze e canoni;4;Energia elettrica;17-10-2019;
1360;5;0;"-3,27";"0,66";ENEL ENERGIA S.P.A.;7134285639;SALDO Fatt.n. 003048327377  del 19/07/2019 NOTA DI CREDITO;17-10-2019;252;0;316;1;Spese correnti;3;Acquisto di beni e servizi;2;Acquisto di servizi;5;Utenze e canoni;4;Energia elettrica;17-10-2019;
1360;6;0;"-2,23";"0,66";ENEL ENERGIA S.P.A.;7134285639;SALDO Fatt.n. 003048327384  del 19/07/2019 NOTA DI CREDITO;17-10-2019;252;0;316;1;Spese correnti;3;Acquisto di beni e servizi;2;Acquisto di servizi;5;Utenze e canoni;4;Energia elettrica;17-10-2019;
1360;7;0;"-2,10";"0,66";ENEL ENERGIA S.P.A.;7134285639;SALDO Fatt.n. 003048327391  del 19/07/2019 NOTA DI CREDITO;17-10-2019;252;0;316;1;Spese correnti;3;Acquisto di beni e servizi;2;Acquisto di servizi;5;Utenze e canoni;4;Energia elettrica;17-10-2019;
1360;8;0;"-2,03";"0,66";ENEL ENERGIA S.P.A.;7134285639;SALDO Fatt.n. 003048327395  del 19/07/2019 NOTA DI CREDITO;17-10-2019;252;0;316;1;Spese correnti;3;Acquisto di beni e servizi;2;Acquisto di servizi;5;Utenze e canoni;4;Energia elettrica;17-10-2019;
1360;9;0;"-1,84";"0,66";ENEL ENERGIA S.P.A.;7134285639;SALDO Fatt.n. 003048327378  del 19/07/2019 NOTA DI CREDITO;17-10-2019;252;0;316;1;Spese correnti;3;Acquisto di beni e servizi;2;Acquisto di servizi;5;Utenze e canoni;4;Energia elettrica;17-10-2019;
1360;10;0;"-1,48";"0,66";ENEL ENERGIA S.P.A.;7134285639;SALDO Fatt.n. 003048327408  del 19/07/2019 NOTA DI CREDITO;17-10-2019;252;0;316;1;Spese correnti;3;Acquisto di beni e servizi;2;Acquisto di servizi;5;Utenze e canoni;4;Energia elettrica;17-10-2019;
1360;11;0;"-0,98";"0,66";ENEL ENERGIA S.P.A.;7134285639;SALDO Fatt.n. 003048327396  del 19/07/2019 NOTA DI CREDITO;17-10-2019;252;0;316;1;Spese correnti;3;Acquisto di beni e servizi;2;Acquisto di servizi;5;Utenze e canoni;4;Energia elettrica;17-10-2019;
1360;12;0;"-0,92";"0,66";ENEL ENERGIA S.P.A.;7134285639;SALDO Fatt.n. 003048327402  del 19/07/2019 NOTA DI CREDITO;17-10-2019;252;0;316;1;Spese correnti;3;Acquisto di beni e servizi;2;Acquisto di servizi;5;Utenze e canoni;4;Energia elettrica;17-10-2019;
1360;13;0;"-0,56";"0,66";ENEL ENERGIA S.P.A.;7134285639;SALDO Fatt.n. 003048327404  del 19/07/2019 NOTA DI CREDITO;17-10-2019;252;0;316;1;Spese correnti;3;Acquisto di beni e servizi;2;Acquisto di servizi;5;Utenze e canoni;4;Energia elettrica;17-10-2019;
1360;14;0;"-0,44";"0,66";ENEL ENERGIA S.P.A.;7134285639;SALDO Fatt.n. 003048327390  del 19/07/2019 NOTA DI CREDITO;17-10-2019;252;0;316;1;Spese correnti;3;Acquisto di beni e servizi;2;Acquisto di servizi;5;Utenze e canoni;4;Energia elettrica;17-10-2019;
1360;15;0;"-0,44";"0,66";ENEL ENERGIA S.P.A.;7134285639;SALDO Fatt.n. 003048327387  del 19/07/2019 NOTA DI CREDITO;17-10-2019;252;0;316;1;Spese correnti;3;Acquisto di beni e servizi;2;Acquisto di servizi;5;Utenze e canoni;4;Energia elettrica;17-10-2019;
1360;16;0;"-0,24";"0,66";ENEL ENERGIA S.P.A.;7134285639;SALDO Fatt.n. 003048327381  del 19/07/2019 NOTA DI CREDITO;17-10-2019;252;0;316;1;Spese correnti;3;Acquisto di beni e servizi;2;Acquisto di servizi;5;Utenze e canoni;4;Energia elettrica;17-10-2019;
1360;17;0;"-0,21";"0,66";ENEL ENERGIA S.P.A.;7134285639;SALDO Fatt.n. 003048327406  del 19/07/2019 NOTA DI CREDITO;17-10-2019;252;0;316;1;Spese correnti;3;Acquisto di beni e servizi;2;Acquisto di servizi;5;Utenze e canoni;4;Energia elettrica;17-10-2019;
1360;18;0;"-0,21";"0,66";ENEL ENERGIA S.P.A.;7134285639;SALDO Fatt.n. 003048327375  del 19/07/2019 NOTA DI CREDITO;17-10-2019;252;0;316;1;Spese correnti;3;Acquisto di beni e servizi;2;Acquisto di servizi;5;Utenze e canoni;4;Energia elettrica;17-10-2019;
1360;19;0;"-0,18";"0,66";ENEL ENERGIA S.P.A.;7134285639;SALDO Fatt.n. 003048327394  del 19/07/2019 NOTA DI CREDITO;17-10-2019;252;0;316;1;Spese correnti;3;Acquisto di beni e servizi;2;Acquisto di servizi;5;Utenze e canoni;4;Energia elettrica;17-10-2019;
1360;20;0;"-0,09";"0,66";ENEL ENERGIA S.P.A.;7134285639;SALDO Fatt.n. 003048327397  del 19/07/2019 NOTA DI CREDITO;17-10-2019;252;0;316;1;Spese correnti;3;Acquisto di beni e servizi;2;Acquisto di servizi;5;Utenze e canoni;4;Energia elettrica;17-10-2019;
1360;21;0;"40,13";"0,66";ENEL ENERGIA S.P.A.;7134285639;SALDO Fatt.n. 003062416368  del 19/09/2019 ENEL APRILE 2019 - CHIUSURA CONTRATTO;17-10-2019;252;0;316;1;Spese correnti;3;Acquisto di beni e servizi;2;Acquisto di servizi;5;Utenze e canoni;4;Energia elettrica;17-10-2019;
1360;22;0;"49,30";"0,66";ENEL ENERGIA S.P.A.;7134285639;SALDO Fatt.n. 003062416364  del 19/09/2019 ENEL - APRILE 2019;17-10-2019;252;0;316;1;Spese correnti;3;Acquisto di beni e servizi;2;Acquisto di servizi;5;Utenze e canoni;4;Energia elettrica;17-10-2019;
1360;23;0;"271,05";"0,66";ENEL ENERGIA S.P.A.;7134285639;SALDO Fatt.n. 003062416360  del 19/09/2019 ENEL - APRILE 2019;17-10-2019;252;0;316;1;Spese correnti;3;Acquisto di beni e servizi;2;Acquisto di servizi;5;Utenze e canoni;4;Energia elettrica;17-10-2019;
1361;1;0;"-410,15";"8,28";ENEL ENERGIA S.P.A.;7134285639;SALDO Fatt.n. 003034759327  del 05/06/2019 ENEL - NOTA DI CREDITO - APRILE 2019;17-10-2019;252;0;316;1;Spese correnti;3;Acquisto di beni e servizi;2;Acquisto di servizi;5;Utenze e canoni;4;Energia elettrica;17-10-2019;
1361;2;0;"-335,51";"8,28";ENEL ENERGIA S.P.A.;7134285639;SALDO Fatt.n. 003034759323  del 05/06/2019 ENEL - NOTA DI CREDITO - APRILE 2019;17-10-2019;252;0;316;1;Spese correnti;3;Acquisto di beni e servizi;2;Acquisto di servizi;5;Utenze e canoni;4;Energia elettrica;17-10-2019;
1361;3;0;"-212,43";"8,28";ENEL ENERGIA S.P.A.;7134285639;SALDO Fatt.n. 003034759335  del 05/06/2019 ENEL - NOTA DI CREDITO - APRILE 2019;17-10-2019;252;0;316;1;Spese correnti;3;Acquisto di beni e servizi;2;Acquisto di servizi;5;Utenze e canoni;4;Energia elettrica;17-10-2019;
1361;4;0;"-150,57";"8,28";ENEL ENERGIA S.P.A.;7134285639;SALDO Fatt.n. 003034759331  del 05/06/2019 ENEL - NOTA DI CREDITO - APRILE 2019;17-10-2019;252;0;316;1;Spese correnti;3;Acquisto di beni e servizi;2;Acquisto di servizi;5;Utenze e canoni;4;Energia elettrica;17-10-2019;
1361;5;0;"-100,22";"8,28";ENEL ENERGIA S.P.A.;7134285639;SALDO Fatt.n. 003034759341  del 05/06/2019 ENEL - NOTA DI CREDITO - APRILE 2019;17-10-2019;252;0;316;1;Spese correnti;3;Acquisto di beni e servizi;2;Acquisto di servizi;5;Utenze e canoni;4;Energia elettrica;17-10-2019;
1361;6;0;"-81,74";"8,28";ENEL ENERGIA S.P.A.;7134285639;SALDO Fatt.n. 003034759322  del 05/06/2019 ENEL - NOTA DI CREDITO - APRILE 2019;17-10-2019;252;0;316;1;Spese correnti;3;Acquisto di beni e servizi;2;Acquisto di servizi;5;Utenze e canoni;4;Energia elettrica;17-10-2019;
1361;7;0;"-78,80";"8,28";ENEL ENERGIA S.P.A.;7134285639;SALDO Fatt.n. 003034759332  del 05/06/2019 ENEL - NOTA DI CREDITO - APRILE 2019;17-10-2019;252;0;316;1;Spese correnti;3;Acquisto di beni e servizi;2;Acquisto di servizi;5;Utenze e canoni;4;Energia elettrica;17-10-2019;
1361;8;0;"-49,30";"8,28";ENEL ENERGIA S.P.A.;7134285639;SALDO Fatt.n. 003034759324  del 05/06/2019 ENEL - NOTA DI CREDITO -APRILE 2019;17-10-2019;252;0;316;1;Spese correnti;3;Acquisto di beni e servizi;2;Acquisto di servizi;5;Utenze e canoni;4;Energia elettrica;17-10-2019;
1361;9;0;"-41,00";"8,28";ENEL ENERGIA S.P.A.;7134285639;SALDO Fatt.n. 003034759328  del 05/06/2019 ENEL - NOTA DI CREDITO - APRILE 2019;17-10-2019;252;0;316;1;Spese correnti;3;Acquisto di beni e servizi;2;Acquisto di servizi;5;Utenze e canoni;4;Energia elettrica;17-10-2019;
1361;10;0;"64,55";"8,28";ENEL ENERGIA S.P.A.;7134285639;SALDO Fatt.n. 003062416377  del 19/09/2019 ENEL APRILE 2019 - CHIUSURA CONTRATTO;17-10-2019;252;0;316;1;Spese correnti;3;Acquisto di beni e servizi;2;Acquisto di servizi;5;Utenze e canoni;4;Energia elettrica;17-10-2019;
1361;11;0;"81,74";"8,28";ENEL ENERGIA S.P.A.;7134285639;SALDO Fatt.n. 003062416362  del 19/09/2019 ENEL APRILE 2019 - CHIUSURA CONTRATTO;17-10-2019;252;0;316;1;Spese correnti;3;Acquisto di beni e servizi;2;Acquisto di servizi;5;Utenze e canoni;4;Energia elettrica;17-10-2019;
1361;12;0;"100,22";"8,28";ENEL ENERGIA S.P.A.;7134285639;SALDO Fatt.n. 003062416380  del 19/09/2019 ENEL APRILE 2019 - CHIUSURA CONTRATTO;17-10-2019;252;0;316;1;Spese correnti;3;Acquisto di beni e servizi;2;Acquisto di servizi;5;Utenze e canoni;4;Energia elettrica;17-10-2019;
1361;13;0;"110,12";"8,28";ENEL ENERGIA S.P.A.;7134285639;SALDO Fatt.n. 003062416361  del 19/09/2019 ENEL APRILE 2019 - CHIUSURA CONTRATTO;17-10-2019;252;0;316;1;Spese correnti;3;Acquisto di beni e servizi;2;Acquisto di servizi;5;Utenze e canoni;4;Energia elettrica;17-10-2019;
1361;14;0;"126,16";"8,28";ENEL ENERGIA S.P.A.;7134285639;SALDO Fatt.n. 003062416370  del 19/09/2019 ENEL APRILE 2019: CHIUSURA CONTRATTO;17-10-2019;252;0;316;1;Spese correnti;3;Acquisto di beni e servizi;2;Acquisto di servizi;5;Utenze e canoni;4;Energia elettrica;17-10-2019;
1361;15;0;"212,43";"8,28";ENEL ENERGIA S.P.A.;7134285639;SALDO Fatt.n. 003062416375  del 19/09/2019 ENEL APRILE 2019 - CHIUSURA CONTRATTO;17-10-2019;252;0;316;1;Spese correnti;3;Acquisto di beni e servizi;2;Acquisto di servizi;5;Utenze e canoni;4;Energia elettrica;17-10-2019;
1361;16;0;"335,51";"8,28";ENEL ENERGIA S.P.A.;7134285639;SALDO Fatt.n. 003062416363  del 19/09/2019 ENEL APRILE 2019 - CHIUSURA CONTRATTO;17-10-2019;252;0;316;1;Spese correnti;3;Acquisto di beni e servizi;2;Acquisto di servizi;5;Utenze e canoni;4;Energia elettrica;17-10-2019;
1361;17;0;"437,27";"8,28";ENEL ENERGIA S.P.A.;7134285639;SALDO Fatt.n. 003062416379  del 19/09/2019 ENEL APRILE 2019 - CHIUSURA CONTRATTO;17-10-2019;252;0;316;1;Spese correnti;3;Acquisto di beni e servizi;2;Acquisto di servizi;5;Utenze e canoni;4;Energia elettrica;17-10-2019;
1362;1;0;"-589,88";"10,47";ENEL ENERGIA S.P.A.;7134285639;SALDO Fatt.n. 003034759329  del 05/06/2019 ENEL - NOTA DI CREDITO - APRILE 2019;17-10-2019;252;0;316;1;Spese correnti;3;Acquisto di beni e servizi;2;Acquisto di servizi;5;Utenze e canoni;4;Energia elettrica;17-10-2019;
1362;2;0;"-493,75";"10,47";ENEL ENERGIA S.P.A.;7134285639;SALDO Fatt.n. 003034759339  del 05/06/2019 ENEL - NOTA DI CREDITO - APRILE 2019;17-10-2019;252;0;316;1;Spese correnti;3;Acquisto di beni e servizi;2;Acquisto di servizi;5;Utenze e canoni;4;Energia elettrica;17-10-2019;
1362;3;0;"10,47";"10,47";ENEL ENERGIA S.P.A.;7134285639;SALDO Fatt.n. 003062416376  del 19/09/2019 ENEL APRILE 2019 - CHIUSURA CONTRATTO;17-10-2019;252;0;316;1;Spese correnti;3;Acquisto di beni e servizi;2;Acquisto di servizi;5;Utenze e canoni;4;Energia elettrica;17-10-2019;
1362;4;0;"493,75";"10,47";ENEL ENERGIA S.P.A.;7134285639;SALDO Fatt.n. 003062416378  del 19/09/2019 ENEL APRILE 2019 - CHIUSURA CONTRATTO 2019;17-10-2019;252;0;316;1;Spese correnti;3;Acquisto di beni e servizi;2;Acquisto di servizi;5;Utenze e canoni;4;Energia elettrica;17-10-2019;
1362;5;0;"589,88";"10,47";ENEL ENERGIA S.P.A.;7134285639;SALDO Fatt.n. 003062416369  del 19/09/2019 ENEL APRILE 2019 - CHIUSURA CONTRATTO;17-10-2019;252;0;316;1;Spese correnti;3;Acquisto di beni e servizi;2;Acquisto di servizi;5;Utenze e canoni;4;Energia elettrica;17-10-2019;
1363;1;0;"-437,27";"424,74";ENEL ENERGIA S.P.A.;7134285639;SALDO Fatt.n. 003034759340  del 05/06/2019 ENEL - NOTA DI CREDITO - APRILE 2019;17-10-2019;252;0;316;1;Spese correnti;3;Acquisto di beni e servizi;2;Acquisto di servizi;5;Utenze e canoni;4;Energia elettrica;17-10-2019;
1363;2;0;"-126,16";"424,74";ENEL ENERGIA S.P.A.;7134285639;SALDO Fatt.n. 003034759330  del 05/06/2019 ENEL - NOTA DI CREDITO - APRILE 2019;17-10-2019;252;0;316;1;Spese correnti;3;Acquisto di beni e servizi;2;Acquisto di servizi;5;Utenze e canoni;4;Energia elettrica;17-10-2019;
1363;3;0;"21,14";"424,74";ENEL ENERGIA S.P.A.;7134285639;SALDO Fatt.n. 003062416381  del 19/09/2019 ENEL APRILE 2019 - CHIUSURA CONTRATTO;17-10-2019;252;0;316;1;Spese correnti;3;Acquisto di beni e servizi;2;Acquisto di servizi;5;Utenze e canoni;4;Energia elettrica;17-10-2019;
1363;4;0;"33,10";"424,74";ENEL ENERGIA S.P.A.;7134285639;SALDO Fatt.n. 003062416365  del 19/09/2019 ENEL APRILE 2019 - CHIUSURA CONTRATTO;17-10-2019;252;0;316;1;Spese correnti;3;Acquisto di beni e servizi;2;Acquisto di servizi;5;Utenze e canoni;4;Energia elettrica;17-10-2019;
1363;5;0;"41,76";"424,74";ENEL ENERGIA S.P.A.;7134285639;SALDO Fatt.n. 003062416366  del 19/09/2019 ENEL APRILE 2019 - CHIUSURA CONTRATTO;17-10-2019;252;0;316;1;Spese correnti;3;Acquisto di beni e servizi;2;Acquisto di servizi;5;Utenze e canoni;4;Energia elettrica;17-10-2019;
1363;6;0;"49,36";"424,74";ENEL ENERGIA S.P.A.;7134285639;SALDO Fatt.n. 003062416374  del 19/09/2019 ENEL APRILE 2019 - CHIUSURA CONTRATTO;17-10-2019;252;0;316;1;Spese correnti;3;Acquisto di beni e servizi;2;Acquisto di servizi;5;Utenze e canoni;4;Energia elettrica;17-10-2019;
1363;7;0;"78,80";"424,74";ENEL ENERGIA S.P.A.;7134285639;SALDO Fatt.n. 003062416372  del 19/09/2019 ENEL APRILE 2019 - CHIUSURA CONTRATTO;17-10-2019;252;0;316;1;Spese correnti;3;Acquisto di beni e servizi;2;Acquisto di servizi;5;Utenze e canoni;4;Energia elettrica;17-10-2019;
1363;8;0;"134,41";"424,74";ENEL ENERGIA S.P.A.;7134285639;SALDO Fatt.n. 003062416373  del 19/09/2019 ENEL APRILE 2019 - CHIUSURA CONTRATTO;17-10-2019;252;0;316;1;Spese correnti;3;Acquisto di beni e servizi;2;Acquisto di servizi;5;Utenze e canoni;4;Energia elettrica;17-10-2019;
1363;9;0;"150,57";"424,74";ENEL ENERGIA S.P.A.;7134285639;SALDO Fatt.n. 003062416371  del 19/09/2019 ENEL APRLE 2019 - CHIUSURA CONTRATTO;17-10-2019;252;0;316;1;Spese correnti;3;Acquisto di beni e servizi;2;Acquisto di servizi;5;Utenze e canoni;4;Energia elettrica;17-10-2019;
1363;10;0;"479,03";"424,74";ENEL ENERGIA S.P.A.;7134285639;SALDO Fatt.n. 003062432836  del 23/09/2019 ENEL APRILE 2019 - CHIUSURA CONTRATTO;17-10-2019;252;0;316;1;Spese correnti;3;Acquisto di beni e servizi;2;Acquisto di servizi;5;Utenze e canoni;4;Energia elettrica;17-10-2019;
1364;1;0;"210,00";"210,00";SONDA COOPERATIVA SOCIALE ONLUS; ;SALDO Fatt.n. 309/PA/2019  del 07/10/2019 PRESTAZIONI SOCIALI - SETTEMBRE 2019;17-10-2019;560;0;274;1;Spese correnti;3;Acquisto di beni e servizi;2;Acquisto di servizi;15;Contratti di servizio pubblico;8;Contratti di servizio di assistenza sociale residenziale e semiresidenziale;17-10-2019;
1365;1;0;"983,08";"983,08";UNICOOPER SERVIZI S.C.R.L.;Z0128215E5;SALDO Fatt.n. 1642  del 30/09/2019 PULIZIA CENTRO POLIV. LA ROGGIA - SETTEMBRE 2019;17-10-2019;561;4;463;1;Spese correnti;3;Acquisto di beni e servizi;2;Acquisto di servizi;9;Manutenzione ordinaria e riparazioni;3;Manutenzione ordinaria e riparazioni di mobili e arredi;17-10-2019;
1366;1;0;"642,38";"642,38";E.N.P.A. ENTE NAZIONALE PROTEZIONE ANIMALI ONLUS;Z7A23C5DB3;SALDO Fatt.n. 1563/PA  del 10/10/2019 CUSTODIA E MANTENIMENTO CANI: LUGLIO-SETT. 2019;17-10-2019;180;0;286;1;Spese correnti;3;Acquisto di beni e servizi;2;Acquisto di servizi;15;Contratti di servizio pubblico;11;Contratti di servizio per la lotta al randagismo;17-10-2019;
1367;1;0;"20,18";"495,13";GREEN TELECOMUNICAZIONI S.P.A.;Z40279DD24;SALDO Fatt.n. E18244  del 12/10/2019 SERVIZI DI TELEFONIA - SETTEMBRE 2019;17-10-2019;34;0;136;1;Spese correnti;3;Acquisto di beni e servizi;2;Acquisto di servizi;5;Utenze e canoni;1;Telefonia fissa;17-10-2019;
1367;2;0;"474,95";"495,13";GREEN TELECOMUNICAZIONI S.P.A.;Z40279DD24;SALDO Fatt.n. E19446  del 12/10/2019 SERVIZI DI TELEFONIA - SETTEMBRE 2019;17-10-2019;34;0;136;1;Spese correnti;3;Acquisto di beni e servizi;2;Acquisto di servizi;5;Utenze e canoni;1;Telefonia fissa;17-10-2019;
1368;1;0;"118,18";"118,18";SERVIZIO ELETTRICO NAZIONALE SpA;7134285639;SALDO Fatt.n. 263551155002025  del 10/10/2019 ENEL - SETT. 2019;17-10-2019;235;0;335;1;Spese correnti;3;Acquisto di beni e servizi;2;Acquisto di servizi;5;Utenze e canoni;4;Energia elettrica;17-10-2019;
1369;1;0;"49,76";"447,99";SERVIZIO ELETTRICO NAZIONALE SpA;7134285639;SALDO Fatt.n. 263556405046123  del 10/10/2019 ENEL - SETT. 2019;17-10-2019;600;0;342;1;Spese correnti;3;Acquisto di beni e servizi;2;Acquisto di servizi;5;Utenze e canoni;4;Energia elettrica;17-10-2019;
1369;2;0;"398,23";"447,99";SERVIZIO ELETTRICO NAZIONALE SpA;7134285639;SALDO Fatt.n. 263555226004533  del 10/10/2019 ENEL - SETT. 2019;17-10-2019;600;0;342;1;Spese correnti;3;Acquisto di beni e servizi;2;Acquisto di servizi;5;Utenze e canoni;4;Energia elettrica;17-10-2019;
1370;1;0;"407,66";"1.015,78";SERVIZIO ELETTRICO NAZIONALE SpA;7134285639;SALDO Fatt.n. 263557855000535  del 10/10/2019 ENEL - SETT. 2019;17-10-2019;530;0;340;1;Spese correnti;3;Acquisto di beni e servizi;2;Acquisto di servizi;5;Utenze e canoni;4;Energia elettrica;17-10-2019;
1370;2;0;"608,12";"1.015,78";SERVIZIO ELETTRICO NAZIONALE SpA;7134285639;SALDO Fatt.n. 263558703001125  del 10/10/2019 ENEL - SETT. 2019;17-10-2019;530;0;340;1;Spese correnti;3;Acquisto di beni e servizi;2;Acquisto di servizi;5;Utenze e canoni;4;Energia elettrica;17-10-2019;
1371;1;0;"556,76";"556,76";SERVIZIO ELETTRICO NAZIONALE SpA;7134285639;SALDO Fatt.n. 263556202002925  del 10/10/2019 ENEL - SETT. 2019;17-10-2019;34;0;333;1;Spese correnti;3;Acquisto di beni e servizi;2;Acquisto di servizi;5;Utenze e canoni;4;Energia elettrica;17-10-2019;
1372;1;0;"247,84";"247,84";SERVIZIO ELETTRICO NAZIONALE SpA;7134285639;SALDO Fatt.n. 263556805005525  del 10/10/2019 ENEL - SETT. 2019;17-10-2019;71;0;334;1;Spese correnti;3;Acquisto di beni e servizi;2;Acquisto di servizi;5;Utenze e canoni;4;Energia elettrica;17-10-2019;
1373;1;0;"913,24";"913,24";SERVIZIO ELETTRICO NAZIONALE SpA;7134285639;SALDO Fatt.n. 263554302002025  del 10/10/2019 ENEL - SETT. 2019;17-10-2019;252;0;336;1;Spese correnti;3;Acquisto di beni e servizi;2;Acquisto di servizi;5;Utenze e canoni;4;Energia elettrica;17-10-2019;
1374;1;0;"15.000,00";"15.000,00";EDIL MUNAROLO DI MUNAROLO IVAN & C. S.N.C.;Z8829AAAA7;SALDO Fatt.n. 5A  del 30/09/2019 RIPRISTINO BORDO STRADALE VIA CIME;17-10-2019;1007;0;439;2;Spese in conto capitale;2;Investimenti fissi lordi e acquisto di terreni;1;Beni materiali;9;Beni immobili;12;Infrastrutture stradali;17-10-2019;
1375;1;0;"208,64";"208,64";CONTO SERVIZIO POLIZIA MUNICIPALE; ;SPESE PER BANCO POSTA SERV. POLIZIA MUNICIPALE PERIODO: 01/01/2019 - 31/08/2019 - GIRO CONTABILE DA CAP. 45 A CAP. 750 ENTRATA (VEDI REV. N. 1180).;17-10-2019;45;0;476;1;Spese correnti;3;Acquisto di beni e servizi;2;Acquisto di servizi;16;Servizi amministrativi;2;Spese postali;17-10-2019;
1376;1;0;"32,06";"32,06";ALFA ANTINCENDIO S.R.L.;ZA5276F7AD;SALDO Fatt.n. 109  del 31/08/2019 CONTROLLO SEMESTRALE ESTINTORI;17-10-2019;234;0;142;1;Spese correnti;3;Acquisto di beni e servizi;1;Acquisto di beni;2;Altri beni di consumo;7;Altri materiali tecnico-specialistici non sanitari;17-10-2019;
1377;1;0;"104,00";"104,00";AZIENDA U.L.S.S. N.2  MARCA TREVIGIANA; ;INTEGRAZIONE DELLA DETERMINAZIONE N. 164/2019 INERENTE LIMPEGNO DI SPESA PER LE PRESTAZIONE EFFETTUATE DAL SERVIZIO VETERINARIO DELLAZIENDA U.L.S.S. N. 2 - MARCA TREVIGIANA PRESSO IL CANILE SANITARIO.;17-10-2019;180;0;256;1;Spese correnti;3;Acquisto di beni e servizi;2;Acquisto di servizi;15;Contratti di servizio pubblico;11;Contratti di servizio per la lotta al randagismo;17-10-2019;
1378;1;0;"219,18";"219,18";CONTO SERVIZIO DI TESORERIA; ;SPESE PER BANCO POSTA SERV. TESORERIA PERIODO: 01/01/2019 - 31/08/2019 - GIRO CONTABILE DA CAP. 45 SPESA A CAP. 780 ENTRATA (VEDI REV. N. 1186).;17-10-2019;45;0;475;1;Spese correnti;3;Acquisto di beni e servizi;2;Acquisto di servizi;16;Servizi amministrativi;2;Spese postali;17-10-2019;
1380;1;0;"2.310,00";"2.310,00";GIUSEPPE OLIVOTTI S.C.S. ONLUS; ;CRITICA-MENTE - PROGETTO ANNO SCOLASTICO 2019-2020. CIG  ZAE2A2B809.;22-10-2019;575;0;492;1;Spese correnti;4;Trasferimenti correnti;4;Trasferimenti correnti a Istituzioni Sociali Private;1;Trasferimenti correnti a Istituzioni Sociali Private;1;Trasferimenti correnti a Istituzioni Sociali Private;22-10-2019;
1381;1;0;"69,90";"69,90";OMESSO NOMINATIVO NEL RISPETTO DELLA NORMATIVA SULLA PROTEZIONE DATI PERSONALI; ;FATTURA SERVIZIO ELETTRICO SETT.-OTT. 2019 N. 263556805039019  DEL 08/10/2019.;23-10-2019;576;0;110;1;Spese correnti;4;Trasferimenti correnti;2;Trasferimenti correnti a Famiglie;2;Interventi assistenziali;999;Altri assegni e sussidi assistenziali;23-10-2019;
1382;1;0;"536,32";"536,32";SICURITALIA IVRI S.P.A.;Z3827208DE;ACCONTO Fatt.n. 9117008296  del 14/10/2019 SERVIZI ISPETTIVI - SETTEMBRE 2019;24-10-2019;34;0;88;1;Spese correnti;3;Acquisto di beni e servizi;2;Acquisto di servizi;5;Utenze e canoni;999;Utenze e canoni per altri servizi n.a.c.;24-10-2019;
1383;1;0;"5,83";"5,83";SICURITALIA IVRI S.P.A.;Z3827208DE;ACCONTO Fatt.n. 9117008296  del 14/10/2019 SERVIZI ISPETTIVI - SETTEMBRE 2019;24-10-2019;71;0;89;1;Spese correnti;3;Acquisto di beni e servizi;2;Acquisto di servizi;5;Utenze e canoni;999;Utenze e canoni per altri servizi n.a.c.;24-10-2019;
1384;1;0;"25,15";"25,15";SICURITALIA IVRI S.P.A.;Z3827208DE;SALDO Fatt.n. 9117008296  del 14/10/2019 SERVIZI ISPETTIVI - SETTEMBRE 2019;24-10-2019;235;0;92;1;Spese correnti;3;Acquisto di beni e servizi;2;Acquisto di servizi;5;Utenze e canoni;999;Utenze e canoni per altri servizi n.a.c.;24-10-2019;
1385;1;0;"1.078,48";"1.078,48";STUDIO SMANIOTTO & MOROSIN;Z3F26AD96F;SALDO Fatt.n. 45  del 15/10/2019 PRATICHE PER CONTO TERMICO;24-10-2019;775;5;614;2;Spese in conto capitale;2;Investimenti fissi lordi e acquisto di terreni;3;Beni immateriali;5;Incarichi professionali per la realizzazione di investimenti;1;Incarichi professionali per la realizzazione di investimenti;24-10-2019;
1386;1;0;"1.651,92";"1.651,92";STUDIO SMANIOTTO & MOROSIN;Z4A217235A;SALDO Fatt.n. 46  del 15/10/2019 SALDO SPESE PROGETTAZIONE PLESSO SCOLASTICO;24-10-2019;775;5;481;2;Spese in conto capitale;2;Investimenti fissi lordi e acquisto di terreni;3;Beni immateriali;5;Incarichi professionali per la realizzazione di investimenti;1;Incarichi professionali per la realizzazione di investimenti;24-10-2019;
1387;1;0;"601,32";"601,32";MAZZAROLO S.R.L.;ZF329BF289;ACCONTO Fatt.n. 2019_3_36  del 18/10/2019 MANUTENZIONE AUTO COMUNALI;24-10-2019;590;1;483;1;Spese correnti;3;Acquisto di beni e servizi;2;Acquisto di servizi;9;Manutenzione ordinaria e riparazioni;1;"Manutenzione ordinaria e riparazioni di mezzi di trasporto ad uso civile, di sicurezza e ordine pubblico";24-10-2019;
1388;1;0;"131,88";"131,88";MAZZAROLO S.R.L.;ZF329BF289;SALDO Fatt.n. 2019_3_36  del 18/10/2019 MANUTENZIONE AUTO COMUNALI;24-10-2019;590;1;460;1;Spese correnti;3;Acquisto di beni e servizi;2;Acquisto di servizi;9;Manutenzione ordinaria e riparazioni;1;"Manutenzione ordinaria e riparazioni di mezzi di trasporto ad uso civile, di sicurezza e ordine pubblico";24-10-2019;
1389;1;0;"1.067,00";"1.067,00";PEDERIVA ITALO;ZA0296F13E;SALDO Fatt.n. 3/PA  del 09/10/2019 MAUTENZIONE COPERTURA PLESSO SCOLASTICO;24-10-2019;745;0;405;2;Spese in conto capitale;2;Investimenti fissi lordi e acquisto di terreni;1;Beni materiali;9;Beni immobili;3;Fabbricati ad uso scolastico;24-10-2019;
1390;1;0;"5.289,63";"5.289,63";FAGGION ANTONIO S.R.L.;ZC629F1432;SALDO Fatt.n. 133  del 27/09/2019 INTERVENTI EXTRA MIGLIORAMENTO SISMICO PLESSO SCOLASTICO;24-10-2019;745;0;482;2;Spese in conto capitale;2;Investimenti fissi lordi e acquisto di terreni;1;Beni materiali;9;Beni immobili;3;Fabbricati ad uso scolastico;24-10-2019;
1391;1;0;"22.410,41";"22.410,41";FAGGION ANTONIO S.R.L.;76351125BD;ACCONTO Fatt.n. 132  del 27/09/2019 SALDO LAVORI DI MIGLIORAMENTO SISMICO PLESSO SCOLASTICO;24-10-2019;775;3;472;2;Spese in conto capitale;2;Investimenti fissi lordi e acquisto di terreni;1;Beni materiali;9;Beni immobili;3;Fabbricati ad uso scolastico;24-10-2019;
1392;1;0;"15.262,58";"15.262,58";FAGGION ANTONIO S.R.L.;76351125BD;SALDO Fatt.n. 132  del 27/09/2019 SALDO LAVORI DI MIGLIORAMENTO SISMICO PLESSO SCOLASTICO;24-10-2019;745;0;491;2;Spese in conto capitale;2;Investimenti fissi lordi e acquisto di terreni;1;Beni materiali;9;Beni immobili;3;Fabbricati ad uso scolastico;24-10-2019;
1393;1;0;"25.000,00";"25.000,00";EDIL MUNAROLO DI MUNAROLO IVAN & C. S.N.C.;Z7B29AAB12;SALDO Fatt.n. 6A  del 14/10/2019 REALIZZAZIONE MURO CONTENIMENTO STRADALE VIA FOGAL;24-10-2019;1007;0;438;2;Spese in conto capitale;2;Investimenti fissi lordi e acquisto di terreni;1;Beni materiali;9;Beni immobili;12;Infrastrutture stradali;24-10-2019;
1394;1;0;"10,01";"319,86";TIM S.P.A.;ZE429271DF;ACCONTO Fatt.n. 8E00795779  del 07/10/2019 CANONE TELEFONICO: AGOSTO-SETT. 2019;24-10-2019;34;0;392;1;Spese correnti;3;Acquisto di beni e servizi;2;Acquisto di servizi;5;Utenze e canoni;999;Utenze e canoni per altri servizi n.a.c.;24-10-2019;
1394;2;0;"32,31";"319,86";TIM S.P.A.;ZE429271DF;SALDO Fatt.n. 8E00793705  del 07/10/2019 CANONE TELEFONICO: AGOSTO-SETT. 2019;24-10-2019;34;0;392;1;Spese correnti;3;Acquisto di beni e servizi;2;Acquisto di servizi;5;Utenze e canoni;999;Utenze e canoni per altri servizi n.a.c.;24-10-2019;
1394;3;0;"32,31";"319,86";TIM S.P.A.;ZE429271DF;SALDO Fatt.n. 8E00794620  del 07/10/2019 CANONE TELEFONICO: AGOSTO-SETT. 2019;24-10-2019;34;0;392;1;Spese correnti;3;Acquisto di beni e servizi;2;Acquisto di servizi;5;Utenze e canoni;999;Utenze e canoni per altri servizi n.a.c.;24-10-2019;
1394;4;0;"32,40";"319,86";TIM S.P.A.;ZE429271DF;SALDO Fatt.n. 8E00792825  del 07/10/2019 TRAFFICO TELEFONICO: AGOSTO-SETT. 2019;24-10-2019;34;0;392;1;Spese correnti;3;Acquisto di beni e servizi;2;Acquisto di servizi;5;Utenze e canoni;999;Utenze e canoni per altri servizi n.a.c.;24-10-2019;
1394;5;0;"32,49";"319,86";TIM S.P.A.;ZE429271DF;SALDO Fatt.n. 8E00795368  del 07/10/2019 TRAFFICO TELEFONICO: AGOSTO - SETT. 2019;24-10-2019;34;0;392;1;Spese correnti;3;Acquisto di beni e servizi;2;Acquisto di servizi;5;Utenze e canoni;999;Utenze e canoni per altri servizi n.a.c.;24-10-2019;
1394;6;0;"32,59";"319,86";TIM S.P.A.;ZE429271DF;SALDO Fatt.n. 8E00792598  del 07/10/2019 CANONE TELEFONICO: AGOSTO-SETTEMBRE 2019;24-10-2019;34;0;392;1;Spese correnti;3;Acquisto di beni e servizi;2;Acquisto di servizi;5;Utenze e canoni;999;Utenze e canoni per altri servizi n.a.c.;24-10-2019;
1394;7;0;"64,63";"319,86";TIM S.P.A.;ZE429271DF;SALDO Fatt.n. 8E00793865  del 07/10/2019 CANONE TELEFONICO - AGOSTO -SETTEMBRE 2019;24-10-2019;34;0;392;1;Spese correnti;3;Acquisto di beni e servizi;2;Acquisto di servizi;5;Utenze e canoni;999;Utenze e canoni per altri servizi n.a.c.;24-10-2019;
1394;8;0;"83,12";"319,86";TIM S.P.A.;ZE429271DF;SALDO Fatt.n. 8E00793248  del 07/10/2019 TRAFFICO TELEFONICO: AGOSTO-SETT. 2019;24-10-2019;34;0;392;1;Spese correnti;3;Acquisto di beni e servizi;2;Acquisto di servizi;5;Utenze e canoni;999;Utenze e canoni per altri servizi n.a.c.;24-10-2019;
1395;1;0;"32,40";"314,25";TIM S.P.A.;ZE429271DF;SALDO Fatt.n. 8E00795381  del 07/10/2019 CANONE TELEFONICO: AGOSTO-SETT. 2019;24-10-2019;252;0;393;1;Spese correnti;3;Acquisto di beni e servizi;2;Acquisto di servizi;5;Utenze e canoni;999;Utenze e canoni per altri servizi n.a.c.;24-10-2019;
1395;2;0;"32,40";"314,25";TIM S.P.A.;ZE429271DF;SALDO Fatt.n. 8E00792331  del 07/10/2019 CANONE TELEFONICO: AGOSTO-SETT. 2019;24-10-2019;252;0;393;1;Spese correnti;3;Acquisto di beni e servizi;2;Acquisto di servizi;5;Utenze e canoni;999;Utenze e canoni per altri servizi n.a.c.;24-10-2019;
1395;3;0;"32,49";"314,25";TIM S.P.A.;ZE429271DF;SALDO Fatt.n. 8E00794693  del 07/10/2019 CANONE TELEFONICO: AGOSTO-SETT. 2019;24-10-2019;252;0;393;1;Spese correnti;3;Acquisto di beni e servizi;2;Acquisto di servizi;5;Utenze e canoni;999;Utenze e canoni per altri servizi n.a.c.;24-10-2019;
1395;4;0;"32,99";"314,25";TIM S.P.A.;ZE429271DF;SALDO Fatt.n. 8E00791787  del 07/10/2019 CANONE TELEFONICO: AGOSTO-SETT. 2019;24-10-2019;252;0;393;1;Spese correnti;3;Acquisto di beni e servizi;2;Acquisto di servizi;5;Utenze e canoni;999;Utenze e canoni per altri servizi n.a.c.;24-10-2019;
1395;5;0;"54,71";"314,25";TIM S.P.A.;ZE429271DF;SALDO Fatt.n. 8E00795779  del 07/10/2019 CANONE TELEFONICO: AGOSTO-SETT. 2019;24-10-2019;252;0;393;1;Spese correnti;3;Acquisto di beni e servizi;2;Acquisto di servizi;5;Utenze e canoni;999;Utenze e canoni per altri servizi n.a.c.;24-10-2019;
1395;6;0;"64,63";"314,25";TIM S.P.A.;ZE429271DF;SALDO Fatt.n. 8E00795369  del 07/10/2019 CANONE TELEFONICO: AGOSTO-SETT. 2019;24-10-2019;252;0;393;1;Spese correnti;3;Acquisto di beni e servizi;2;Acquisto di servizi;5;Utenze e canoni;999;Utenze e canoni per altri servizi n.a.c.;24-10-2019;
1395;7;0;"64,63";"314,25";TIM S.P.A.;ZE429271DF;SALDO Fatt.n. 8E00795376  del 07/10/2019 CANONE TELEFONICO: AGOSTO-SETT. 2019;24-10-2019;252;0;393;1;Spese correnti;3;Acquisto di beni e servizi;2;Acquisto di servizi;5;Utenze e canoni;999;Utenze e canoni per altri servizi n.a.c.;24-10-2019;
1396;1;0;"900,00";"900,00";BRUN LUIGINO;Z4E27A47DD;LIQUIDAZIONE QUOTA 2019 PER COMODATO DI UTILIZZO IMMOBILE DA DESTINARE AD ARCHIVIO COMUNALE IN VIA DELLARTIGIANATO. CIG: Z4E27A47DD;25-10-2019;516;0;166;1;Spese correnti;3;Acquisto di beni e servizi;2;Acquisto di servizi;7;Utilizzo di beni di terzi;1;Locazione di beni immobili;25-10-2019;
1397;1;0;"900,00";"900,00";RINALDO BRUNO;Z4E27A47DD;LIQUIDAZIONE QUOTA 2019 PER COMODATO DI UTILIZZO IMMOBILE DA DESTINARE AD ARCHIVIO COMUNALE IN VIA DELLARTIGIANATO. CIG: Z4E27A47DD;25-10-2019;516;0;167;1;Spese correnti;3;Acquisto di beni e servizi;2;Acquisto di servizi;7;Utilizzo di beni di terzi;1;Locazione di beni immobili;25-10-2019;
1399;1;0;"650,00";"650,00";COMUNE DI CASTELFRANCO VENETO; ;VERSAMENTO QUOTA ANNUALE (SETTEMBRE 2018-SETTEMBRE 2019) AL POLO BIBLIOTECARIO DI CASTELFRANCO VENETO.;25-10-2019;306;1;499;1;Spese correnti;4;Trasferimenti correnti;1;Trasferimenti correnti a Amministrazioni Pubbliche;2;Trasferimenti correnti a Amministrazioni Locali;3;Trasferimenti correnti a Comuni;25-10-2019;
1400;1;0;"533,68";"533,68";COMUNE DI CONEGLIANO; ;"LIQUIDAZIONE DEL SALDO SPESE LEGALI AL COMUNE DI CONEGLIANO QUALE CAPOFILA NELLA PROPOSIZIONE DEL GIUDIZIO DI OTTEMPERANZA PER OTTENERE LADEMPIMENTO DELLA SENTENZA DEL CONSIGLIO DI STATO, SEZ. IV, N. 2201/2018.";25-10-2019;44;0;495;1;Spese correnti;4;Trasferimenti correnti;1;Trasferimenti correnti a Amministrazioni Pubbliche;2;Trasferimenti correnti a Amministrazioni Locali;3;Trasferimenti correnti a Comuni;25-10-2019;
1401;1;0;"50,00";"50,00";BERTONCELLO PAOLA ECONOMO COMUNALE; ;Rimborso bolletta N. 17 del  02-07-19 Acquisto dolce in occasione della visita dellAmministrazione Comunale agli anziani del Comune in soggiorno climatico di Jesolo.;28-10-2019;3;1;348;1;Spese correnti;3;Acquisto di beni e servizi;1;Acquisto di beni;2;Altri beni di consumo;9;Beni per attività di rappresentanza;28-10-2019;
1402;1;0;"6,50";"6,50";BERTONCELLO PAOLA ECONOMO COMUNALE; ;Rimborso bolletta N.    23 del  03-09-19 Spedizione n. 1 raccomandata AR urgente ufficio anagrafe (prot. n. 10905 del 02/09/2019).;28-10-2019;34;3;429;1;Spese correnti;3;Acquisto di beni e servizi;2;Acquisto di servizi;16;Servizi amministrativi;2;Spese postali;28-10-2019;
1403;1;0;"19,00";"19,00";BERTONCELLO PAOLA ECONOMO COMUNALE; ;Rimborso bolletta N.    25 del  17-09-19 Acquisto modelli atti giudiziari per ufficio polizia locale e spedizione rmodelli pacco postale per ufficio CED.;28-10-2019;34;3;449;1;Spese correnti;3;Acquisto di beni e servizi;2;Acquisto di servizi;16;Servizi amministrativi;2;Spese postali;28-10-2019;
1404;1;0;"29,98";"29,98";BERTONCELLO PAOLA ECONOMO COMUNALE; ;Rimborso bolletta N.    19 del  28-08-19 Acquisto n. 2 rilevatori di banconote false per ufficio anagrafe e di polizia locale.;28-10-2019;37;0;414;1;Spese correnti;3;Acquisto di beni e servizi;1;Acquisto di beni;2;Altri beni di consumo;999;Altri beni e materiali di consumo n.a.c.;28-10-2019;
1405;1;0;"16,00";"16,00";BERTONCELLO PAOLA ECONOMO COMUNALE; ;Rimborso bolletta N.    20 del  28-08-19 Acquisto n. 1 marca da bollo per presentazione offerta di acquisto allasta fallimentare del terreno ricadente nellOasi naturalistica San Daniele di Liedolo.;28-10-2019;37;0;415;1;Spese correnti;3;Acquisto di beni e servizi;1;Acquisto di beni;2;Altri beni di consumo;1;"Carta, cancelleria e stampati";28-10-2019;
1406;1;0;"30,00";"30,00";BERTONCELLO PAOLA ECONOMO COMUNALE; ;Rimborso bolletta N.    21 del  28-08-19 Acquisto omaggio in occasione della visita dellAmministrazione al Comune gemellato di Majano per il giorno 20/07/2019.;28-10-2019;37;0;417;1;Spese correnti;3;Acquisto di beni e servizi;1;Acquisto di beni;2;Altri beni di consumo;999;Altri beni e materiali di consumo n.a.c.;28-10-2019;
1407;1;0;"8,00";"8,00";BERTONCELLO PAOLA ECONOMO COMUNALE; ;Rimborso bolletta N.    22 del  28-08-19 Acquisto n. 200 A.R. mod. 23I/O per raccomandate in partenza uffici vari.;28-10-2019;37;0;418;1;Spese correnti;3;Acquisto di beni e servizi;1;Acquisto di beni;2;Altri beni di consumo;1;"Carta, cancelleria e stampati";28-10-2019;
1408;1;0;"8,50";"8,50";BERTONCELLO PAOLA ECONOMO COMUNALE; ;Rimborso bolletta N.    26 del  23-09-19 Acquisto n. 5 pergamene con cornice colorata per ufficio stato civile ad uso matrimoni civili.;28-10-2019;37;0;457;1;Spese correnti;3;Acquisto di beni e servizi;1;Acquisto di beni;2;Altri beni di consumo;999;Altri beni e materiali di consumo n.a.c.;28-10-2019;
1409;1;0;"13,45";"13,45";BERTONCELLO PAOLA ECONOMO COMUNALE; ;"Rimborso bolletta N.    24 del  04-09-19 Spedizione n. 3 buste eseguita da ufficio di polizia locale, due con posta ordinaria e n. 1 raccomandata a.r.";28-10-2019;178;4;433;1;Spese correnti;3;Acquisto di beni e servizi;2;Acquisto di servizi;16;Servizi amministrativi;2;Spese postali;28-10-2019;
1410;1;0;"15,48";"15,48";BERTONCELLO PAOLA ECONOMO COMUNALE; ;"Rimborso bolletta N.    18 del  05-07-19 Rimborso bolletta per acquisto di detergenti e materiali di pulizia per la scuola elementare di Liedolo, durante le operazioni di pulizia dopo lintervento di ristrutturazione e prima del trasloco degli arredi";28-10-2019;235;1;358;1;Spese correnti;3;Acquisto di beni e servizi;2;Acquisto di servizi;9;Manutenzione ordinaria e riparazioni;11;Manutenzione ordinaria e riparazioni di altri beni materiali;28-10-2019;
1411;1;0;"170,44";"170,44";COMUNE DI SPRESIANO; ;LIQUIDAZIONE DEL SALDO SPESE LEGALI AL COMUNE DI SPRESIANO (TV) QUALE CAPOFILA NELLAZIONE IN GIUDIZIO EX ART. 2409 C.C. NEI CONFRONTI DI ASCO HOLDING S.P.A..;29-10-2019;41;0;504;1;Spese correnti;4;Trasferimenti correnti;1;Trasferimenti correnti a Amministrazioni Pubbliche;2;Trasferimenti correnti a Amministrazioni Locali;3;Trasferimenti correnti a Comuni;29-10-2019;
1412;1;0;"177,39";"177,39";OMESSO NOMINATIVO NEL RISPETTO DELLA NORMATIVA SULLA PROTEZIONE DATI PERSONALI; ;CONTRIBUTO ECONOMICO STRAORDINARIO PER IL MANTENIMENTO DELLA FORNITURA ELETTRICA.;29-10-2019;576;0;502;1;Spese correnti;4;Trasferimenti correnti;2;Trasferimenti correnti a Famiglie;2;Interventi assistenziali;999;Altri assegni e sussidi assistenziali;29-10-2019;
1413;1;0;"1.000,00";"1.000,00";I.P.A.TERRE ASOLO E M. GRAPPA C/O FONDAZIONE LA FORNACE; ;LIQUIDAZIONE ALLA INTESA PROGRAMMATICA DI AREA TERRE DI ASOLO E MONTE GRAPPA (I.P.A.)  DELLA QUOTA DI PARTECIPAZIONE AL PROGRAMMA LIFE - SOTTOPROGRAMMA AZIONI PER IL CLIMA.;29-10-2019;511;0;505;1;Spese correnti;4;Trasferimenti correnti;1;Trasferimenti correnti a Amministrazioni Pubbliche;2;Trasferimenti correnti a Amministrazioni Locali;3;Trasferimenti correnti a Comuni;29-10-2019;
1414;1;0;"434,97";"434,97";MANCOR SPA - LIBRERIA PALAZZO ROBERTI;ZAA27025D4;SALDO Fatt.n. 40135  del 17/10/2019 ACQUISTO LIBRI PER BIBLIOTECA COMUNALE;30-10-2019;304;0;56;1;Spese correnti;3;Acquisto di beni e servizi;1;Acquisto di beni;1;"Giornali, riviste e pubblicazioni";2;Pubblicazioni;30-10-2019;
1415;1;0;"850,00";"850,00";CENTRO STUDI AMMINISTRATIVI DELLA M.T.; ;SALDO Fatt.n. 393/2019  del 23/10/2019 ADESIONE AL PROGETTO UNICO PER L'IMPRESA;30-10-2019;51;1;17;1;Spese correnti;3;Acquisto di beni e servizi;2;Acquisto di servizi;99;Altri servizi;3;Quote di associazioni;30-10-2019;
1416;1;0;"2.164,50";"2.164,50";CASA DI RIPOSO 'AITA'; ;SALDO Fatt.n. 483/B  del 23/10/2019 SERVIZIO DI AD - SETTEMBRE 2019;30-10-2019;562;1;240;1;Spese correnti;3;Acquisto di beni e servizi;2;Acquisto di servizi;15;Contratti di servizio pubblico;9;Contratti di servizio di assistenza sociale domiciliare;30-10-2019;
1417;1;0;"122,00";"122,00";IMAGING PRO SNC DI GAZZOLA ELIA & C.;Z3429D349D;SALDO Fatt.n. 0000010/PA  del 15/10/2019 RIFACIMENTO TARGA COMMEMORATIVA DEGLI AMMIN.RI COM.LI;30-10-2019;34;1;456;1;Spese correnti;3;Acquisto di beni e servizi;2;Acquisto di servizi;9;Manutenzione ordinaria e riparazioni;11;Manutenzione ordinaria e riparazioni di altri beni materiali;30-10-2019;
1418;1;0;"398,94";"398,94";ZONTA FRANCO;ZBF2A21CCD;SALDO Fatt.n. FPA 4/19  del 25/10/2019 MANUTENZIONE AUTOCARRO COMUNALE;30-10-2019;590;1;493;1;Spese correnti;3;Acquisto di beni e servizi;2;Acquisto di servizi;9;Manutenzione ordinaria e riparazioni;1;"Manutenzione ordinaria e riparazioni di mezzi di trasporto ad uso civile, di sicurezza e ordine pubblico";30-10-2019;
1419;1;0;"65,37";"65,37";TIM S.P.A.;ZE429271DF;SALDO Fatt.n. 7X04299942  del 14/10/2019 CANONE FIBRA OTTICA;30-10-2019;252;0;393;1;Spese correnti;3;Acquisto di beni e servizi;2;Acquisto di servizi;5;Utenze e canoni;999;Utenze e canoni per altri servizi n.a.c.;30-10-2019;
1420;1;0;"353,80";"353,80";ACCATRE S.R.L.;Z73297C0BD;SALDO Fatt.n. 191195/1  del 28/10/2019 NUOVI APPLICATIVI INFORMATICI;30-10-2019;39;2;406;1;Spese correnti;3;Acquisto di beni e servizi;2;Acquisto di servizi;19;Servizi informatici e di telecomunicazioni;1;Gestione e manutenzione applicazioni;30-10-2019;
1421;1;0;"22,97";"22,97";ASCOTRADE S.P.A.;ZBA27A07D4;SALDO Fatt.n. 1396447  del 23/10/2019 CONSUMI GAS;30-10-2019;530;0;138;1;Spese correnti;3;Acquisto di beni e servizi;2;Acquisto di servizi;5;Utenze e canoni;6;Gas;30-10-2019;
1422;1;0;"0,22";"0,22";ENEL ENERGIA S.P.A.;7134285639;SALDO Fatt.n. 003069472125  del 24/10/2019 ENEL CHIUSURA CONTRATTI: GENN-APR. 2019;30-10-2019;252;0;316;1;Spese correnti;3;Acquisto di beni e servizi;2;Acquisto di servizi;5;Utenze e canoni;4;Energia elettrica;30-10-2019;
1423;1;0;"49,83";"49,83";ALTO TREVIGIANO SERVIZI S.R.L.;ZF9282AA1E;SALDO Fatt.n. O2201900006883  del 28/10/2019 SERVIZIO IDRICO: LUGLIO-SETT. 2019;30-10-2019;34;0;213;1;Spese correnti;3;Acquisto di beni e servizi;2;Acquisto di servizi;5;Utenze e canoni;5;Acqua;30-10-2019;
1424;1;0;"10,13";"10,13";ALTO TREVIGIANO SERVIZI S.R.L.;ZF9282AA1E;SALDO Fatt.n. O2201900006878  del 28/10/2019 SERVIZIO IDRICO: LUGLIO-SETT. 2019;30-10-2019;413;0;209;1;Spese correnti;3;Acquisto di beni e servizi;2;Acquisto di servizi;5;Utenze e canoni;5;Acqua;30-10-2019;
1425;1;0;"35,55";"182,44";ALTO TREVIGIANO SERVIZI S.R.L.;ZF9282AA1E;SALDO Fatt.n. O2201900006890  del 28/10/2019 SERVIZIO IDRICO: LUGLIO-SETT. 2019;30-10-2019;530;0;210;1;Spese correnti;3;Acquisto di beni e servizi;2;Acquisto di servizi;5;Utenze e canoni;5;Acqua;30-10-2019;
1425;2;0;"146,89";"182,44";ALTO TREVIGIANO SERVIZI S.R.L.;ZF9282AA1E;SALDO Fatt.n. O2201900006888  del 28/10/2019 SERVIZIO IDRICO: LUGLIO-SETT. 2019;30-10-2019;530;0;210;1;Spese correnti;3;Acquisto di beni e servizi;2;Acquisto di servizi;5;Utenze e canoni;5;Acqua;30-10-2019;
1426;1;0;"698,85";"698,85";ENEL ENERGIA S.P.A.; ;GIRO CONTABILE DA CAP. 310 SPESA A CAP. 2482 ENTRATA PER I.V.A. SU NOTE DI CREDITO ENEL TRATTENUTA E DA VERSARE (A COMPENSAZIONE) - VEDI REV. N. 1249.;04-11-2019;310;0;514;1;Spese correnti;3;Acquisto di beni e servizi;2;Acquisto di servizi;5;Utenze e canoni;4;Energia elettrica;04-11-2019;
1430;1;0;"710,69";"710,69";TESORERIA PROVINCIALE DELLO STATO; ;VERSAMENTO I.V.A. A DEBITO COMMERCIALE RELATIVA AL TERZO TRIMESTRE 2019 - COD. IVA 616E.;05-11-2019;660;0;0;1;Spese correnti;10;Altre spese correnti;3;Versamenti IVA a debito;1;Versamenti IVA a debito per le gestioni commerciali;1;Versamenti IVA a debito per le gestioni commerciali;05-11-2019;
1433;1;0;"1.500,00";"1.500,00";AGENZIA DEL DEMANIO; ;SALDO Fatt.n. 810/NI/19  del 08/11/2019 RIMBORSO SPESE SU IMMOBILE;07-11-2019;962;0;513;2;Spese in conto capitale;2;Investimenti fissi lordi e acquisto di terreni;1;Beni materiali;9;Beni immobili;999;Beni immobili n.a.c.;07-11-2019;
1434;1;0;"5.000,00";"5.000,00";OMESSO NOMINATIVO NEL RISPETTO DELLA NORMATIVA SULLA PROTEZIONE DATI PERSONALI; ;LIQUIDAZIONE CONTRIBUTO ALLA.S. EZZELINA VOLLEY CARINATESE DI SAN ZENONE DEGLI EZZELINI PER IL SERVIZIO DI SORVEGLIANZA E PULIZIA DEI LOCALI DELLA PALESTRA DI CA RAINATI - SECONDO SEMESTRE 2019.;13-11-2019;533;0;637;1;Spese correnti;4;Trasferimenti correnti;1;Trasferimenti correnti a Amministrazioni Pubbliche;4;Trasferimenti correnti a organismi interni e/o unità locali della amministrazione;1;Trasferimenti correnti a organismi interni e/o unità locali della amministrazione;13-11-2019;
1435;1;0;"2.500,00";"2.500,00";ATTIVITA' MOTORIE LA TORRE; ;"LIQUIDAZIONE CONTRIBUTO ALLASSOCIAZIONE ATTIVITA MOTORIA LA TORRE A.S.D. DI FONTE (TV) PER IL SERVIZIO DI GESTIONE, SORVEGLIANZA E PULIZIA DELLA PALESTRA COMUNALE DEL CAPOLUOGO CON ANNESSI IMPIANTI SPORTIVI ESTERNI E PARCO GIOCHI - SECONDO SEMESTRE";13-11-2019;533;0;48;1;Spese correnti;4;Trasferimenti correnti;1;Trasferimenti correnti a Amministrazioni Pubbliche;4;Trasferimenti correnti a organismi interni e/o unità locali della amministrazione;1;Trasferimenti correnti a organismi interni e/o unità locali della amministrazione;13-11-2019;
1436;1;0;"7.400,00";"7.400,00";F.C.D. UNION EZZELINA; ;"LIQUIDAZIONE CONTRIBUTO ANNO 2019 ALLA F.C.D. UNION EZZELINA DI SAN ZENONE DEGLI EZZELINI PER IL SERVIZIO DI GESTIONE, SORVEGLIANZA E PULIZIA DELLIMPIANTO SPORTIVO DEL CAPOLUOGO E DEGLI SPOGLIATOI CALCIO DELLA PALESTRA.";15-11-2019;533;0;532;1;Spese correnti;4;Trasferimenti correnti;1;Trasferimenti correnti a Amministrazioni Pubbliche;4;Trasferimenti correnti a organismi interni e/o unità locali della amministrazione;1;Trasferimenti correnti a organismi interni e/o unità locali della amministrazione;15-11-2019;
1438;1;0;"217,50";"217,50";OMESSO NOMINATIVO NEL RISPETTO DELLA NORMATIVA SULLA PROTEZIONE DATI PERSONALI; ;FATT. N. 512/B DEL 08/11/2019 CASA DI RIPOSO AITA PER PASTI MESE OTTOBRE 2019 - ACCONTO.;19-11-2019;576;0;239;1;Spese correnti;4;Trasferimenti correnti;2;Trasferimenti correnti a Famiglie;2;Interventi assistenziali;999;Altri assegni e sussidi assistenziali;19-11-2019;
1439;1;0;"109,50";"109,50";OMESSO NOMINATIVO NEL RISPETTO DELLA NORMATIVA SULLA PROTEZIONE DATI PERSONALI; ;FATT. N. 512/B DEL 08/11/2019 CASA DI RIPOSO AITA PER PASTI MESE OTTOBRE 2019 - SALDO.;19-11-2019;576;0;501;1;Spese correnti;4;Trasferimenti correnti;2;Trasferimenti correnti a Famiglie;2;Interventi assistenziali;999;Altri assegni e sussidi assistenziali;19-11-2019;
1440;1;0;"58,99";"180,99";KUWAIT PETROLEUM ITALIA S.P.A.;Z4E197F01F;SALDO Fatt.n. PJ01824756  del 31/10/2019 CARBURANTE AUTO UFF. SOCIALE - OTTOBRE 2019;20-11-2019;571;0;155;1;Spese correnti;3;Acquisto di beni e servizi;1;Acquisto di beni;2;Altri beni di consumo;2;"Carburanti, combustibili e lubrificanti";20-11-2019;
1440;2;0;"122,00";"180,99";KUWAIT PETROLEUM ITALIA S.P.A.;Z4E197F01F;SALDO Fatt.n. PJ01824759  del 31/10/2019 CARBURANTE AUTO UFF. SOCIALE - OTTOBRE 2019;20-11-2019;571;0;155;1;Spese correnti;3;Acquisto di beni e servizi;1;Acquisto di beni;2;Altri beni di consumo;2;"Carburanti, combustibili e lubrificanti";20-11-2019;
1441;1;0;"68,43";"148,42";KUWAIT PETROLEUM ITALIA S.P.A.;Z4E197F01F;SALDO Fatt.n. PJ01824758  del 31/10/2019 CARBURANTE AUTO VIABILITA' - OTTOBRE 2019;20-11-2019;590;0;156;1;Spese correnti;3;Acquisto di beni e servizi;1;Acquisto di beni;2;Altri beni di consumo;2;"Carburanti, combustibili e lubrificanti";20-11-2019;
1441;2;0;"79,99";"148,42";KUWAIT PETROLEUM ITALIA S.P.A.;Z4E197F01F;SALDO Fatt.n. PJ01824757  del 31/10/2019 CARBURANTE AUTO PROT. CIVILE - OTTOBRE 2019;20-11-2019;590;0;156;1;Spese correnti;3;Acquisto di beni e servizi;1;Acquisto di beni;2;Altri beni di consumo;2;"Carburanti, combustibili e lubrificanti";20-11-2019;
1442;1;0;"63,01";"63,01";KUWAIT PETROLEUM ITALIA S.P.A.;Z4E197F01F;SALDO Fatt.n. PJ01824760  del 31/10/2019 CARBURANTE AUTO VIGILI - OTTOBRE 2019;20-11-2019;179;0;154;1;Spese correnti;3;Acquisto di beni e servizi;1;Acquisto di beni;2;Altri beni di consumo;2;"Carburanti, combustibili e lubrificanti";20-11-2019;
1444;1;0;"976,00";"976,00";BIANCHIN SCALE S.R.L.;ZC62A62238;SALDO Fatt.n. 43/PA  del 31/10/2019 SCALA CIMITERIALE A CASTELLO IN ALLUMINIO;20-11-2019;414;0;508;1;Spese correnti;3;Acquisto di beni e servizi;1;Acquisto di beni;2;Altri beni di consumo;999;Altri beni e materiali di consumo n.a.c.;20-11-2019;
1445;1;0;"2.141,10";"2.141,10";K.D. DISINFESTAZIONI & DERATTIZZAZIONI S.R.L.;Z752829F0D;SALDO Fatt.n. FPA 41/19  del 04/11/2019 DISINFESTAZIONE LARVICIDA;20-11-2019;510;1;221;1;Spese correnti;3;Acquisto di beni e servizi;2;Acquisto di servizi;99;Altri servizi;999;Altri servizi diversi n.a.c.;20-11-2019;
1446;1;0;"28,06";"28,06";SICURITALIA IVRI S.P.A.;Z3827208DE;SALDO Fatt.n. 9117008888  del 31/10/2019 SERVIZI ISPETTIVI - OTTOBRE 2019;20-11-2019;235;0;92;1;Spese correnti;3;Acquisto di beni e servizi;2;Acquisto di servizi;5;Utenze e canoni;999;Utenze e canoni per altri servizi n.a.c.;20-11-2019;
1447;1;0;"585,60";"585,60";A & D DI MIELE ANTONIO;Z88291DF7F;SALDO Fatt.n. 32/FE  del 06/11/2019 SALDO ANALISI COSTI RETE FISSA;20-11-2019;746;0;360;2;Spese in conto capitale;2;Investimenti fissi lordi e acquisto di terreni;1;Beni materiali;7;Hardware;999;Hardware n.a.c.;20-11-2019;
1448;1;0;"515,55";"515,55";UNA CASA PER L'UOMO - SOCIETA' COOPERATIVA SOCIALE;ZA32468D08;SALDO Fatt.n. FE/0000377  del 31/10/2019 PROGETTO DI ACCOGLIENZA ABITATIVA - OTTOBRE 2019;20-11-2019;559;0;334;1;Spese correnti;3;Acquisto di beni e servizi;2;Acquisto di servizi;99;Altri servizi;999;Altri servizi diversi n.a.c.;20-11-2019;
1449;1;0;"24,40";"671,00";ASCO TLC S.P.A.;ZCD271B191;SALDO Fatt.n. 09035105  del 31/10/2019 UTENZE E CANONI;20-11-2019;561;2;80;1;Spese correnti;3;Acquisto di beni e servizi;2;Acquisto di servizi;5;Utenze e canoni;999;Utenze e canoni per altri servizi n.a.c.;20-11-2019;
1449;2;0;"176,90";"671,00";ASCO TLC S.P.A.;ZCD271B191;SALDO Fatt.n. 09035108  del 31/10/2019 UTENZE E CANONI;20-11-2019;561;2;80;1;Spese correnti;3;Acquisto di beni e servizi;2;Acquisto di servizi;5;Utenze e canoni;999;Utenze e canoni per altri servizi n.a.c.;20-11-2019;
1449;3;0;"469,70";"671,00";ASCO TLC S.P.A.;ZCD271B191;SALDO Fatt.n. 09035106  del 31/10/2019 UTENZE E CANONI;20-11-2019;561;2;80;1;Spese correnti;3;Acquisto di beni e servizi;2;Acquisto di servizi;5;Utenze e canoni;999;Utenze e canoni per altri servizi n.a.c.;20-11-2019;
1450;1;0;"1.760,80";"1.760,80";OKCS - OVER KANT CONCEPTION STUDIO S.N.C.;Z71239E8C1;ACCONTO Fatt.n. 3/PA  del 06/11/2019 SVILUPPO DEL NUOVO SITO WEB DEL MUSEO MULTIMEDIALE;20-11-2019;310;0;600;1;Spese correnti;3;Acquisto di beni e servizi;2;Acquisto di servizi;5;Utenze e canoni;999;Utenze e canoni per altri servizi n.a.c.;20-11-2019;
1451;1;0;"1.130,60";"1.130,60";OKCS - OVER KANT CONCEPTION STUDIO S.N.C.;Z71239E8C1;SALDO Fatt.n. 3/PA  del 06/11/2019 SVILUPPO DEL NUOVO SITO WEB DEL MUSEO MULTIMEDIALE;20-11-2019;785;0;595;2;Spese in conto capitale;2;Investimenti fissi lordi e acquisto di terreni;1;Beni materiali;10;"Beni immobili di valore culturale, storico ed artistico";8;"Musei, teatri e biblioteche di valore culturale, storico ed artistico";20-11-2019;
1452;1;0;"1.869,30";"1.869,30";OPERE PIE D'ONIGO; ;SALDO Fatt.n. 383/2  del 31/10/2019 RETTE PER ANZIANI;20-11-2019;560;0;32;1;Spese correnti;3;Acquisto di beni e servizi;2;Acquisto di servizi;15;Contratti di servizio pubblico;8;Contratti di servizio di assistenza sociale residenziale e semiresidenziale;20-11-2019;
1453;1;0;"37,68";"37,68";INFOTEAM SRL;Z13299515E;ACCONTO Fatt.n. 00000002717  del 31/10/2019 RINNOVO TRIENNALE LICENZE DEL FIREWALL;20-11-2019;39;1;422;1;Spese correnti;3;Acquisto di beni e servizi;2;Acquisto di servizi;7;Utilizzo di beni di terzi;6;Licenze d'uso per software;20-11-2019;
1454;1;0;"719,88";"719,88";INFOTEAM SRL;Z13299515E;ACCONTO Fatt.n. 00000002717  del 31/10/2019 RINNOVO TRIENNALE LICENZE DEL FIREWALL;20-11-2019;39;2;423;1;Spese correnti;3;Acquisto di beni e servizi;2;Acquisto di servizi;19;Servizi informatici e di telecomunicazioni;1;Gestione e manutenzione applicazioni;20-11-2019;
1455;1;0;"279,44";"279,44";INFOTEAM SRL;Z13299515E;SALDO Fatt.n. 00000002717  del 31/10/2019 RINNOVO TRIENNALE LICENZE DEL FIREWALL;20-11-2019;746;0;424;2;Spese in conto capitale;2;Investimenti fissi lordi e acquisto di terreni;1;Beni materiali;7;Hardware;999;Hardware n.a.c.;20-11-2019;
1456;1;0;"210,00";"210,00";SONDA COOPERATIVA SOCIALE ONLUS; ;SALDO Fatt.n. 344/PA/2019  del 07/11/2019 INSERIMENTO UTENTE IN CASA FAMIGLIA - OTTOBRE 2019;20-11-2019;560;0;274;1;Spese correnti;3;Acquisto di beni e servizi;2;Acquisto di servizi;15;Contratti di servizio pubblico;8;Contratti di servizio di assistenza sociale residenziale e semiresidenziale;20-11-2019;
1457;1;0;"1.781,82";"1.781,82";UNICOOPER SERVIZI S.C.R.L.;Z0128215E5;SALDO Fatt.n. 1781  del 31/10/2019 PULIZIA EDIFICI COMUNALI - OTTOBRE 2019;20-11-2019;34;2;191;1;Spese correnti;3;Acquisto di beni e servizi;2;Acquisto di servizi;13;Servizi ausiliari per il funzionamento dell'ente;2;Servizi di pulizia e lavanderia;20-11-2019;
1458;1;0;"991,20";"991,20";KIRIKU' SOCIETA' COOPERATIVA SOCIALE ONLUS;ZC12810421;SALDO Fatt.n. 273  del 31/10/2019 PRESTAZIONI PER SERVIZI SOCIALI - OTTOBRE 2019;20-11-2019;559;0;184;1;Spese correnti;3;Acquisto di beni e servizi;2;Acquisto di servizi;99;Altri servizi;999;Altri servizi diversi n.a.c.;20-11-2019;
1459;1;0;"1.184,82";"1.184,82";KIRIKU' SOCIETA' COOPERATIVA SOCIALE ONLUS;Z6D274937A;SALDO Fatt.n. 281  del 31/10/2019 PRESTAZIONI SOCIALI - OTTOBRE 2019;20-11-2019;559;0;106;1;Spese correnti;3;Acquisto di beni e servizi;2;Acquisto di servizi;99;Altri servizi;999;Altri servizi diversi n.a.c.;20-11-2019;
1460;1;0;"5.309,63";"5.309,63";ZILIO AUGUSTO;ZD328AD01E;SALDO Fatt.n. 33  del 08/11/2019 INCARICO PER REDAZIONE PERIZIA ALLOASI NATURALISTICA S. DANIELE;20-11-2019;962;0;310;2;Spese in conto capitale;2;Investimenti fissi lordi e acquisto di terreni;1;Beni materiali;9;Beni immobili;999;Beni immobili n.a.c.;20-11-2019;
1461;1;0;"1.113,13";"1.113,13";LA BASSANESE LIBRERIE SRL; ;SALDO Fatt.n. 287-19  del 15/10/2019 CEDOLE LIBRARIE;20-11-2019;239;0;526;1;Spese correnti;3;Acquisto di beni e servizi;1;Acquisto di beni;1;"Giornali, riviste e pubblicazioni";2;Pubblicazioni;20-11-2019;
1462;1;0;"961,72";"961,72";VINANTE MARGHERITA; ;SALDO Fatt.n. 1/PA  del 28/10/2019 CEDOLE LIBRARIE;20-11-2019;239;0;533;1;Spese correnti;3;Acquisto di beni e servizi;1;Acquisto di beni;1;"Giornali, riviste e pubblicazioni";2;Pubblicazioni;20-11-2019;
1463;1;0;"4.235,96";"4.235,96";A.S. DI ANDREATTA GIUSEPPE & C. S.R.L.;ZB1282AB4D;ACCONTO Fatt.n. 0745  del 30/10/2019 MANUTENZIONE ORDINARIA IMP. ELETTRICI;20-11-2019;601;0;220;1;Spese correnti;3;Acquisto di beni e servizi;2;Acquisto di servizi;15;Contratti di servizio pubblico;15;Contratti di servizio per l'illuminazione pubblica;20-11-2019;
1465;1;0;"12.410,72";"24.821,44";Mobilità di Marca S.P.A.;7976331491;SALDO Fatt.n. 000921  del 31/10/2019 TRASPORTO SCOLASTICO - SETTEMBRE 2019;20-11-2019;275;1;376;1;Spese correnti;3;Acquisto di beni e servizi;2;Acquisto di servizi;15;Contratti di servizio pubblico;2;Contratti di servizio di trasporto scolastico;20-11-2019;
1465;2;0;"12.410,72";"24.821,44";Mobilità di Marca S.P.A.;7976331491;SALDO Fatt.n. 000922  del 31/10/2019 TRASPORTO SCOLASTICO - OTTOBRE 2019;20-11-2019;275;1;376;1;Spese correnti;3;Acquisto di beni e servizi;2;Acquisto di servizi;15;Contratti di servizio pubblico;2;Contratti di servizio di trasporto scolastico;20-11-2019;
1466;1;0;"9.145,08";"9.145,08";CASA DI RIPOSO 'AITA'; ;SALDO Fatt.n. 617/C  del 31/10/2019 FORNITURA PASTI MENSA SCUOLE - OTTOBRE 2019;20-11-2019;274;1;54;1;Spese correnti;3;Acquisto di beni e servizi;2;Acquisto di servizi;15;Contratti di servizio pubblico;6;Contratti di servizio per le mense scolastiche;20-11-2019;
1467;1;0;"10.825,07";"10.825,07";COMUNICA SOCIETA' COOPERATIVA ONLUS;ZEE28B0F48;SALDO Fatt.n. 2/85  del 24/10/2019 CENTRI ESTIVI 2019;20-11-2019;295;2;287;1;Spese correnti;3;Acquisto di beni e servizi;2;Acquisto di servizi;15;Contratti di servizio pubblico;999;Altre spese per contratti di servizio pubblico;20-11-2019;
1468;1;0;"13,55";"57,87";ALTO TREVIGIANO SERVIZI S.R.L.;ZF9282AA1E;SALDO Fatt.n. O2201900006882  del 28/10/2019 SERVIZIO IDRICO: LUGLIO-SETT. 2019;20-11-2019;413;0;209;1;Spese correnti;3;Acquisto di beni e servizi;2;Acquisto di servizi;5;Utenze e canoni;5;Acqua;20-11-2019;
1468;2;0;"44,32";"57,87";ALTO TREVIGIANO SERVIZI S.R.L.;ZF9282AA1E;SALDO Fatt.n. O2201900006889  del 28/10/2019 SERVIZIO IDRICO CIMITERO: LUGLIO-SETT. 2019;20-11-2019;413;0;209;1;Spese correnti;3;Acquisto di beni e servizi;2;Acquisto di servizi;5;Utenze e canoni;5;Acqua;20-11-2019;
1469;1;0;"-10,12";"689,79";ALTO TREVIGIANO SERVIZI S.R.L.;ZF9282AA1E;SALDO Fatt.n. O2201900006875  del 28/10/2019 SERVIZIO IDRICO STRADE: LUGLIO-SETT. 2019;20-11-2019;591;2;212;1;Spese correnti;3;Acquisto di beni e servizi;2;Acquisto di servizi;5;Utenze e canoni;5;Acqua;20-11-2019;
1469;2;0;"-1,17";"689,79";ALTO TREVIGIANO SERVIZI S.R.L.;ZF9282AA1E;SALDO Fatt.n. O2201900006884  del 28/10/2019 SERVIZIO IDRICO STRADE: LUGLIO-SETT. 2019;20-11-2019;591;2;212;1;Spese correnti;3;Acquisto di beni e servizi;2;Acquisto di servizi;5;Utenze e canoni;5;Acqua;20-11-2019;
1469;3;0;"0,84";"689,79";ALTO TREVIGIANO SERVIZI S.R.L.;ZF9282AA1E;SALDO Fatt.n. O2201900006876  del 28/10/2019 SERVIZIO IDRICO STRADE: LUGLIO-SETT. 2019;20-11-2019;591;2;212;1;Spese correnti;3;Acquisto di beni e servizi;2;Acquisto di servizi;5;Utenze e canoni;5;Acqua;20-11-2019;
1469;4;0;"1,87";"689,79";ALTO TREVIGIANO SERVIZI S.R.L.;ZF9282AA1E;SALDO Fatt.n. O2201900006877  del 28/10/2019 SERVIZIO IDRICO STRADE: LUGLIO-SETT. 2019;20-11-2019;591;2;212;1;Spese correnti;3;Acquisto di beni e servizi;2;Acquisto di servizi;5;Utenze e canoni;5;Acqua;20-11-2019;
1469;5;0;"4,43";"689,79";ALTO TREVIGIANO SERVIZI S.R.L.;ZF9282AA1E;SALDO Fatt.n. O2201900006887  del 28/10/2019 SERVIZIO IDRICO STRADE: LUGLIO-SETT. 2019;20-11-2019;591;2;212;1;Spese correnti;3;Acquisto di beni e servizi;2;Acquisto di servizi;5;Utenze e canoni;5;Acqua;20-11-2019;
1469;6;0;"19,54";"689,79";ALTO TREVIGIANO SERVIZI S.R.L.;ZF9282AA1E;SALDO Fatt.n. O2201900006897  del 28/10/2019 SERVIZIO IDRICO CIMITERO: LUGLIO-SETT. 2019;20-11-2019;591;2;212;1;Spese correnti;3;Acquisto di beni e servizi;2;Acquisto di servizi;5;Utenze e canoni;5;Acqua;20-11-2019;
1469;7;0;"33,99";"689,79";ALTO TREVIGIANO SERVIZI S.R.L.;ZF9282AA1E;SALDO Fatt.n. O2201900006893  del 28/10/2019 SERVIZIO IDRICO STRADE: LUGLIO-SETT. 2019;20-11-2019;591;2;212;1;Spese correnti;3;Acquisto di beni e servizi;2;Acquisto di servizi;5;Utenze e canoni;5;Acqua;20-11-2019;
1469;8;0;"52,98";"689,79";ALTO TREVIGIANO SERVIZI S.R.L.;ZF9282AA1E;SALDO Fatt.n. O2201900006872  del 28/10/2019 SERVIZIO IDRICO STRADE: LUGLIO-SETT. 2019;20-11-2019;591;2;212;1;Spese correnti;3;Acquisto di beni e servizi;2;Acquisto di servizi;5;Utenze e canoni;5;Acqua;20-11-2019;
1469;9;0;"587,43";"689,79";ALTO TREVIGIANO SERVIZI S.R.L.;ZF9282AA1E;SALDO Fatt.n. O2201900006885  del 28/10/2019 SERVIZIO IDRICO STRADE: LUGLIO-SETT. 2019;20-11-2019;591;2;212;1;Spese correnti;3;Acquisto di beni e servizi;2;Acquisto di servizi;5;Utenze e canoni;5;Acqua;20-11-2019;
1470;1;0;"-2,24";"47,90";ALTO TREVIGIANO SERVIZI S.R.L.;ZF9282AA1E;SALDO Fatt.n. O2201900006880  del 28/10/2019 SERVIZIO IDRICO TORRE: LUGLIO-SETT. 2019;20-11-2019;313;2;208;1;Spese correnti;3;Acquisto di beni e servizi;2;Acquisto di servizi;5;Utenze e canoni;5;Acqua;20-11-2019;
1470;2;0;"50,14";"47,90";ALTO TREVIGIANO SERVIZI S.R.L.;ZF9282AA1E;SALDO Fatt.n. O2201900006879  del 28/10/2019 SERVIZIO IDRICO CENTRO CULT. : LUGLIO - SETT. 2019;20-11-2019;313;2;208;1;Spese correnti;3;Acquisto di beni e servizi;2;Acquisto di servizi;5;Utenze e canoni;5;Acqua;20-11-2019;
1471;1;0;"132,70";"132,70";ALTO TREVIGIANO SERVIZI S.R.L.;ZF9282AA1E;SALDO Fatt.n. O2201900006892  del 28/10/2019 SERVIZIO IDRICO SCUOLE: LUGLIO-SETT. 2019;20-11-2019;34;0;213;1;Spese correnti;3;Acquisto di beni e servizi;2;Acquisto di servizi;5;Utenze e canoni;5;Acqua;20-11-2019;
1472;1;0;"-1,28";"641,70";ALTO TREVIGIANO SERVIZI S.R.L.;ZF9282AA1E;SALDO Fatt.n. O2201900006886  del 28/10/2019 SERVIZIO IDRICO STRADE: LUGLIO-SETT. 2019;20-11-2019;561;2;207;1;Spese correnti;3;Acquisto di beni e servizi;2;Acquisto di servizi;5;Utenze e canoni;5;Acqua;20-11-2019;
1472;2;0;"27,67";"641,70";ALTO TREVIGIANO SERVIZI S.R.L.;ZF9282AA1E;SALDO Fatt.n. O2201900006871  del 28/10/2019 SERVIZIO IDRICO SCUOLE: LUGLIO-SETT. 2019;20-11-2019;561;2;207;1;Spese correnti;3;Acquisto di beni e servizi;2;Acquisto di servizi;5;Utenze e canoni;5;Acqua;20-11-2019;
1472;3;0;"34,94";"641,70";ALTO TREVIGIANO SERVIZI S.R.L.;ZF9282AA1E;SALDO Fatt.n. O2201900006873  del 28/10/2019 SERVIZIO IDRICO LA ROGGIA: LUGLIO-SETT. 2019;20-11-2019;561;2;207;1;Spese correnti;3;Acquisto di beni e servizi;2;Acquisto di servizi;5;Utenze e canoni;5;Acqua;20-11-2019;
1472;4;0;"580,37";"641,70";ALTO TREVIGIANO SERVIZI S.R.L.;ZF9282AA1E;ACCONTO Fatt.n. O2201900006891  del 28/10/2019 SERVIZIO IDRICO SCUOLE: LUGLIO-SETT. 2019;20-11-2019;561;2;207;1;Spese correnti;3;Acquisto di beni e servizi;2;Acquisto di servizi;5;Utenze e canoni;5;Acqua;20-11-2019;
1473;1;0;"1.345,00";"1.345,00";ALTO TREVIGIANO SERVIZI S.R.L.;ZF9282AA1E;SALDO Fatt.n. O2201900006891  del 28/10/2019 SERVIZIO IDRICO SCUOLE: LUGLIO-SETT. 2019;20-11-2019;252;0;211;1;Spese correnti;3;Acquisto di beni e servizi;2;Acquisto di servizi;5;Utenze e canoni;5;Acqua;20-11-2019;
1474;1;0;"104,82";"528,02";ALTO TREVIGIANO SERVIZI S.R.L.;ZF9282AA1E;SALDO Fatt.n. O2201900006894  del 28/10/2019 SERVIZIO IDRICO SCUOLE: LUGLIO-SETT. 2019;20-11-2019;235;0;204;1;Spese correnti;3;Acquisto di beni e servizi;2;Acquisto di servizi;5;Utenze e canoni;5;Acqua;20-11-2019;
1474;2;0;"207,31";"528,02";ALTO TREVIGIANO SERVIZI S.R.L.;ZF9282AA1E;SALDO Fatt.n. O2201900006895  del 28/10/2019 SERVIZIO IDRICO SCUOLE: LUGLIO-SETT. 2019;20-11-2019;235;0;204;1;Spese correnti;3;Acquisto di beni e servizi;2;Acquisto di servizi;5;Utenze e canoni;5;Acqua;20-11-2019;
1474;3;0;"215,89";"528,02";ALTO TREVIGIANO SERVIZI S.R.L.;ZF9282AA1E;SALDO Fatt.n. O2201900006874  del 28/10/2019 SERVIZIO IDRICO SCUOLE: LUGLIO-SETT. 2019;20-11-2019;235;0;204;1;Spese correnti;3;Acquisto di beni e servizi;2;Acquisto di servizi;5;Utenze e canoni;5;Acqua;20-11-2019;
1475;1;0;"9,50";"9,50";ALTO TREVIGIANO SERVIZI S.R.L.;ZF9282AA1E;SALDO Fatt.n. O2201900006881  del 28/10/2019 SERVIZIO IDRICO BARCHESSA: LUGLIO-SETT. 2019;20-11-2019;310;0;205;1;Spese correnti;3;Acquisto di beni e servizi;2;Acquisto di servizi;5;Utenze e canoni;5;Acqua;20-11-2019;
1476;1;0;"764,51";"764,51";ALTO TREVIGIANO SERVIZI S.R.L.;ZF9282AA1E;SALDO Fatt.n. O2201900006896  del 28/10/2019 SERVIZIO IDRICO IMP. SPORTIVI: LUGLIO-SETT. 2019;20-11-2019;530;0;210;1;Spese correnti;3;Acquisto di beni e servizi;2;Acquisto di servizi;5;Utenze e canoni;5;Acqua;20-11-2019;
1477;1;0;"183,51";"183,51";MAGGIOLI SPA;Z1E2A0C94E;SALDO Fatt.n. 0002147029  del 31/10/2019 MATERIALE PER STATO CIVILE;20-11-2019;37;0;479;1;Spese correnti;3;Acquisto di beni e servizi;1;Acquisto di beni;2;Altri beni di consumo;1;"Carta, cancelleria e stampati";20-11-2019;
1478;1;0;"1.330,04";"1.330,04";UNICOOPER SERVIZI S.C.R.L.;Z8320E86EF;SALDO Fatt.n. 1828  del 31/10/2019 PULIZIE EDIFICI COMUNALI - LA ROGGIA - OTTOBRE 2019;20-11-2019;34;2;191;1;Spese correnti;3;Acquisto di beni e servizi;2;Acquisto di servizi;13;Servizi ausiliari per il funzionamento dell'ente;2;Servizi di pulizia e lavanderia;20-11-2019;
1479;1;0;"1.440,00";"1.440,00";NOIGROUP Coop. Soc. a R.L.;Z5F268727B;SALDO Fatt.n. 788  del 31/10/2019 SERVIZIO BIBLIOTECA - OTTOBRE 2019;20-11-2019;302;1;553;1;Spese correnti;3;Acquisto di beni e servizi;2;Acquisto di servizi;16;Servizi amministrativi;999;Altre spese per servizi amministrativi;20-11-2019;
1480;1;0;"244,16";"693,74";GREEN TELECOMUNICAZIONI S.P.A.;Z2A15A6708;SALDO Fatt.n. E20109  del 12/11/2019 SERVIZI DI TELEFONIA;20-11-2019;34;0;136;1;Spese correnti;3;Acquisto di beni e servizi;2;Acquisto di servizi;5;Utenze e canoni;1;Telefonia fissa;20-11-2019;
1480;2;0;"449,58";"693,74";GREEN TELECOMUNICAZIONI S.P.A.;Z2A15A6708;SALDO Fatt.n. E21289  del 12/11/2019 SERVIZI DI TELEFONIA;20-11-2019;34;0;136;1;Spese correnti;3;Acquisto di beni e servizi;2;Acquisto di servizi;5;Utenze e canoni;1;Telefonia fissa;20-11-2019;
1481;1;0;"567,30";"567,30";SICURITALIA IVRI S.P.A.;Z3827208DE;SALDO Fatt.n. 9117009266  del 13/11/2019 SERVIZIO DI PRONTO INTERVENTO;20-11-2019;310;0;93;1;Spese correnti;3;Acquisto di beni e servizi;2;Acquisto di servizi;5;Utenze e canoni;999;Utenze e canoni per altri servizi n.a.c.;20-11-2019;
1482;1;0;"43,33";"43,33";FERRONATO S.R.L.;Z7C26AD935;SALDO Fatt.n. P6  del 31/10/2019 MANUENZIONE STRADE COMUNALI;20-11-2019;1007;0;296;2;Spese in conto capitale;2;Investimenti fissi lordi e acquisto di terreni;1;Beni materiali;9;Beni immobili;12;Infrastrutture stradali;20-11-2019;
1483;1;0;"-350,01";"349,99";F.LLI MICHIELIN S.N.C.;Z79266932D;SALDO Fatt.n. 13/PA  del 07/11/2019 NOTA DI CREDITO A STORNO FT 12/PA DEL 06.11.2019;20-11-2019;589;1;537;1;Spese correnti;3;Acquisto di beni e servizi;2;Acquisto di servizi;9;Manutenzione ordinaria e riparazioni;5;Manutenzione ordinaria e riparazioni di attrezzature;20-11-2019;
1483;2;0;"-350,01";"349,99";F.LLI MICHIELIN S.N.C.;Z79266932D;SALDO Fatt.n. 15/PA  del 07/11/2019 NOTA DI CREDITO A STORNO FT 14/PA DEL 07.11.2019;20-11-2019;589;1;537;1;Spese correnti;3;Acquisto di beni e servizi;2;Acquisto di servizi;9;Manutenzione ordinaria e riparazioni;5;Manutenzione ordinaria e riparazioni di attrezzature;20-11-2019;
1483;3;0;"349,99";"349,99";F.LLI MICHIELIN S.N.C.;Z79266932D;SALDO Fatt.n. 16/PA  del 07/11/2019 MANUTENZIONE AUTO OPERAIO;20-11-2019;589;1;537;1;Spese correnti;3;Acquisto di beni e servizi;2;Acquisto di servizi;9;Manutenzione ordinaria e riparazioni;5;Manutenzione ordinaria e riparazioni di attrezzature;20-11-2019;
1483;4;0;"350,01";"349,99";F.LLI MICHIELIN S.N.C.;Z79266932D;SALDO Fatt.n. 12/PA  del 06/11/2019 RIP. AUTO VIABILITA - FATTURA ERRATA;20-11-2019;589;1;537;1;Spese correnti;3;Acquisto di beni e servizi;2;Acquisto di servizi;9;Manutenzione ordinaria e riparazioni;5;Manutenzione ordinaria e riparazioni di attrezzature;20-11-2019;
1483;5;0;"350,01";"349,99";F.LLI MICHIELIN S.N.C.;Z79266932D;SALDO Fatt.n. 14/PA  del 07/11/2019 RIPARAZIONE AUTO VIABILITA - FATT. ERRATA;20-11-2019;589;1;537;1;Spese correnti;3;Acquisto di beni e servizi;2;Acquisto di servizi;9;Manutenzione ordinaria e riparazioni;5;Manutenzione ordinaria e riparazioni di attrezzature;20-11-2019;
1484;1;0;"1.684,00";"1.684,00";CASA DI RIPOSO 'AITA'; ;SALDO Fatt.n. 522/B  del 12/11/2019 RETTE PER ANZIANI - OTTOBRE 2019;20-11-2019;560;0;31;1;Spese correnti;3;Acquisto di beni e servizi;2;Acquisto di servizi;15;Contratti di servizio pubblico;8;Contratti di servizio di assistenza sociale residenziale e semiresidenziale;20-11-2019;
1485;1;0;"994,30";"994,30";METODO STUDIO S.R.L.;Z24239777E;SALDO Fatt.n. FPA 14/19  del 13/11/2019 SERVIZIO INAUGURAZIONE MUSEO MULTIMEDIALE;20-11-2019;333;2;202;1;Spese correnti;3;Acquisto di beni e servizi;2;Acquisto di servizi;11;Prestazioni professionali e specialistiche;999;Altre prestazioni professionali e specialistiche n.a.c.;20-11-2019;
1491;1;0;"5,29";"5,29";PERSONALE DIPENDENTE - SEDE; ;STIPENDI MESE DI: NOVEMBRE 19;20-11-2019;58;0;22;1;Spese correnti;3;Acquisto di beni e servizi;2;Acquisto di servizi;2;"Organizzazione eventi, pubblicita` e servizi per trasferta";1;Rimborso per viaggio e trasloco;20-11-2019;
1497;1;0;"41,30";"41,30";PERSONALE DIPENDENTE - SEDE; ;IMPEGNO DI SPESA PER RIMBORSO SPESE MISSIONI ANNO 2019 AL PERSONALE DIPENDENTE.;20-11-2019;62;0;23;1;Spese correnti;3;Acquisto di beni e servizi;2;Acquisto di servizi;2;"Organizzazione eventi, pubblicita` e servizi per trasferta";1;Rimborso per viaggio e trasloco;20-11-2019;
1521;1;0;"5.961,21";"5.961,21";AMMINISTRATORI COMUNALI; ;STIPENDI MESE DI: NOVEMBRE 19;21-11-2019;2;0;377;1;Spese correnti;3;Acquisto di beni e servizi;2;Acquisto di servizi;1;Organi e incarichi istituzionali dell'amministrazione;1;Organi istituzionali dell'amministrazione - Indennità;21-11-2019;
1524;1;0;"504,35";"504,35";POSTE ITALIANE S.P.A. - AFFRANCATRICE POSTALE;Z6F2648DBC;SALDO Fatt.n. 8719338712  del 20/11/2019 PRODOTTI POSTALI - OTTOBRE 2019;21-11-2019;34;3;539;1;Spese correnti;3;Acquisto di beni e servizi;2;Acquisto di servizi;16;Servizi amministrativi;2;Spese postali;21-11-2019;
1525;1;0;"400,00";"400,00";TIRO A SEGNO NAZIONALE-SEZ.BASSANO GRAPPA;Z98271BDC1;SALDO Fatt.n. 12/001  del 08/11/2019 ADDESTRAMENTO OBBLIGATORIO POLIZIA LOCALE - ANNO 2019.;22-11-2019;178;1;71;1;Spese correnti;3;Acquisto di beni e servizi;2;Acquisto di servizi;13;Servizi ausiliari per il funzionamento dell'ente;999;Altri servizi ausiliari n.a.c.;22-11-2019;
1526;1;0;"140,08";"140,08";OMESSO NOMINATIVO NEL RISPETTO DELLA NORMATIVA SULLA PROTEZIONE DATI PERSONALI; ;ACCONTO FATTURA ALTO TREVIG. SERVIZI N. 42/2019 LUGLIO-SETTEMBRE 2019.;25-11-2019;576;0;110;1;Spese correnti;4;Trasferimenti correnti;2;Trasferimenti correnti a Famiglie;2;Interventi assistenziali;999;Altri assegni e sussidi assistenziali;25-11-2019;
1527;1;0;"7,92";"7,92";OMESSO NOMINATIVO NEL RISPETTO DELLA NORMATIVA SULLA PROTEZIONE DATI PERSONALI; ;SALDO FATTURA ALTO TREVIG. SERVIZI N. 42/2019 LUGLIO-SETTEMBRE 2019.;25-11-2019;576;0;536;1;Spese correnti;4;Trasferimenti correnti;2;Trasferimenti correnti a Famiglie;2;Interventi assistenziali;999;Altri assegni e sussidi assistenziali;25-11-2019;
1528;1;0;"708,65";"708,65";GRUPPO ALPINI SAN ZENONE PRESIDENTE TORRESAN PIO; ;LIQUIDAZIONE SPESA A FAVORE DEL GRUPPO ALPINI DI SAN ZENONE DEGLI EZZELINI PER ORGANIZZAZIONE CERIMONIA COMMEMORAZIONE CADUTI DI TUTTE LE GUERRE.;25-11-2019;40;3;537;1;Spese correnti;4;Trasferimenti correnti;1;Trasferimenti correnti a Amministrazioni Pubbliche;4;Trasferimenti correnti a organismi interni e/o unità locali della amministrazione;1;Trasferimenti correnti a organismi interni e/o unità locali della amministrazione;25-11-2019;
1529;1;0;"500,00";"500,00";L'INCONTRO AGRICOLTURA-SOCIETA' COOP.VA AGRICOLA SOCIALE; ;IMPEGNO DI SPESA A SOSTEGNO DEL  FESTIVAL VACANZE DELLANIMA 2019. LIQUIDAZIONE CONTRIBUTO.;26-11-2019;333;1;489;1;Spese correnti;4;Trasferimenti correnti;1;Trasferimenti correnti a Amministrazioni Pubbliche;4;Trasferimenti correnti a organismi interni e/o unità locali della amministrazione;1;Trasferimenti correnti a organismi interni e/o unità locali della amministrazione;26-11-2019;
1530;1;0;"306,00";"306,00";OMESSO NOMINATIVO NEL RISPETTO DELLA NORMATIVA SULLA PROTEZIONE DATI PERSONALI; ;FATTURA CASA DI RIPOSO AITA N. 450/B DEL 30/09/19 - PASTI A DOMICILIO MESE SETTEMBRE 2019.;26-11-2019;576;0;501;1;Spese correnti;4;Trasferimenti correnti;2;Trasferimenti correnti a Famiglie;2;Interventi assistenziali;999;Altri assegni e sussidi assistenziali;26-11-2019;
1531;1;0;"111,75";"111,75";OMESSO NOMINATIVO NEL RISPETTO DELLA NORMATIVA SULLA PROTEZIONE DATI PERSONALI; ;FATTURA CASA DI RIPOSO AITA N. 508/B DEL 08/11/2019 PER PASTI A DOMICILIO MESE OTTOBRE 2019.;26-11-2019;576;0;536;1;Spese correnti;4;Trasferimenti correnti;2;Trasferimenti correnti a Famiglie;2;Interventi assistenziali;999;Altri assegni e sussidi assistenziali;26-11-2019;
1532;1;0;"3.322,00";"3.322,00";FALLIMENTO FENICE S.R.L.; ;GIRO CONTABILE DA CAP. 962 SPESA A CAP. 2482 ENTRATA (A COMPENSAZIONE).SALDO Fatt.n. 1/001  del 31/10/2019 ASTA IMMOBILIARE TERRENI OASI NATURALISTICA;27-11-2019;962;0;524;2;Spese in conto capitale;2;Investimenti fissi lordi e acquisto di terreni;1;Beni materiali;9;Beni immobili;999;Beni immobili n.a.c.;27-11-2019;
1535;1;0;"245,00";"490,00";AGENZIA DELLE ENTRATE - UFFICIO TERRIT. DI MONTEBELLUNA; ;AGENZIA DELLE ENTRATE F24EP-F24EP DEL 05/09/2019 (P.      47 -R.    1207);28-11-2019;34;3;543;1;Spese correnti;3;Acquisto di beni e servizi;2;Acquisto di servizi;16;Servizi amministrativi;999;Altre spese per servizi amministrativi;28-11-2019;
1535;2;0;"245,00";"490,00";AGENZIA DELLE ENTRATE - UFFICIO TERRIT. DI MONTEBELLUNA; ;AGENZIA DELLE ENTRATE F24EP-RIF F24EP 0611 (P.      59 -R.    1483);28-11-2019;34;3;543;1;Spese correnti;3;Acquisto di beni e servizi;2;Acquisto di servizi;16;Servizi amministrativi;999;Altre spese per servizi amministrativi;28-11-2019;
1538;1;0;"20,86";"2.304,77";SERVIZIO ELETTRICO NAZIONALE SpA;7134285639;SALDO Fatt.n. 263552355071023  del 04/11/2019 ENEL - OTT. NOV. 2019;04-12-2019;600;0;342;1;Spese correnti;3;Acquisto di beni e servizi;2;Acquisto di servizi;5;Utenze e canoni;4;Energia elettrica;04-12-2019;
1538;2;0;"20,86";"2.304,77";SERVIZIO ELETTRICO NAZIONALE SpA;7134285639;SALDO Fatt.n. 263552355070023  del 04/11/2019 ENEL: OTT. NOV. 2019;04-12-2019;600;0;342;1;Spese correnti;3;Acquisto di beni e servizi;2;Acquisto di servizi;5;Utenze e canoni;4;Energia elettrica;04-12-2019;
1538;3;0;"42,15";"2.304,77";SERVIZIO ELETTRICO NAZIONALE SpA;7134285639;SALDO Fatt.n. 263552955086023  del 04/11/2019 ENEL: OTT. -NOV. 2019;04-12-2019;600;0;342;1;Spese correnti;3;Acquisto di beni e servizi;2;Acquisto di servizi;5;Utenze e canoni;4;Energia elettrica;04-12-2019;
1538;4;0;"50,84";"2.304,77";SERVIZIO ELETTRICO NAZIONALE SpA;7134285639;SALDO Fatt.n. 263558005001023  del 04/11/2019 ENEL: OTT. -NOV. 2019;04-12-2019;600;0;342;1;Spese correnti;3;Acquisto di beni e servizi;2;Acquisto di servizi;5;Utenze e canoni;4;Energia elettrica;04-12-2019;
1538;5;0;"63,03";"2.304,77";SERVIZIO ELETTRICO NAZIONALE SpA;7134285639;SALDO Fatt.n. 263551302001023  del 04/11/2019 ENEL: OTT. NOV. 2019;04-12-2019;600;0;342;1;Spese correnti;3;Acquisto di beni e servizi;2;Acquisto di servizi;5;Utenze e canoni;4;Energia elettrica;04-12-2019;
1538;6;0;"365,98";"2.304,77";SERVIZIO ELETTRICO NAZIONALE SpA;7134285639;SALDO Fatt.n. 263555804069043  del 10/11/2019 ENEL: OTT. NOV. 2019;04-12-2019;600;0;342;1;Spese correnti;3;Acquisto di beni e servizi;2;Acquisto di servizi;5;Utenze e canoni;4;Energia elettrica;04-12-2019;
1538;7;0;"541,56";"2.304,77";SERVIZIO ELETTRICO NAZIONALE SpA;7134285639;SALDO Fatt.n. 263556206005823  del 04/11/2019 ENEL: OTT. NOV. 2019;04-12-2019;600;0;342;1;Spese correnti;3;Acquisto di beni e servizi;2;Acquisto di servizi;5;Utenze e canoni;4;Energia elettrica;04-12-2019;
1538;8;0;"1.199,49";"2.304,77";SERVIZIO ELETTRICO NAZIONALE SpA;7134285639;SALDO Fatt.n. 263554302002026  del 10/11/2019 ENEL: OTT. NOV. 2019;04-12-2019;600;0;342;1;Spese correnti;3;Acquisto di beni e servizi;2;Acquisto di servizi;5;Utenze e canoni;4;Energia elettrica;04-12-2019;
1539;1;0;"172,48";"3.932,52";SERVIZIO ELETTRICO NAZIONALE SpA;7134285639;SALDO Fatt.n. 263558005001243  del 10/11/2019 ENEL: OTT. NOV. 2019;04-12-2019;600;0;342;1;Spese correnti;3;Acquisto di beni e servizi;2;Acquisto di servizi;5;Utenze e canoni;4;Energia elettrica;04-12-2019;
1539;2;0;"278,67";"3.932,52";SERVIZIO ELETTRICO NAZIONALE SpA;7134285639;SALDO Fatt.n. 263555806046323  del 10/11/2019 ENEL: OTT. NOV. 2019;04-12-2019;600;0;342;1;Spese correnti;3;Acquisto di beni e servizi;2;Acquisto di servizi;5;Utenze e canoni;4;Energia elettrica;04-12-2019;
1539;3;0;"287,69";"3.932,52";SERVIZIO ELETTRICO NAZIONALE SpA;7134285639;SALDO Fatt.n. 263556423052023  del 10/11/2019 ENEL: OTT.-NOV. 2019;04-12-2019;600;0;342;1;Spese correnti;3;Acquisto di beni e servizi;2;Acquisto di servizi;5;Utenze e canoni;4;Energia elettrica;04-12-2019;
1539;4;0;"304,22";"3.932,52";SERVIZIO ELETTRICO NAZIONALE SpA;7134285639;SALDO Fatt.n. 263554605018523  del 10/11/2019 ENEL: OTT. - NOV. 2019;04-12-2019;600;0;342;1;Spese correnti;3;Acquisto di beni e servizi;2;Acquisto di servizi;5;Utenze e canoni;4;Energia elettrica;04-12-2019;
1539;5;0;"317,16";"3.932,52";SERVIZIO ELETTRICO NAZIONALE SpA;7134285639;SALDO Fatt.n. 263553075001823  del 10/11/2019 ENEL: OTT-NOV. 2019;04-12-2019;600;0;342;1;Spese correnti;3;Acquisto di beni e servizi;2;Acquisto di servizi;5;Utenze e canoni;4;Energia elettrica;04-12-2019;
1539;6;0;"530,08";"3.932,52";SERVIZIO ELETTRICO NAZIONALE SpA;7134285639;SALDO Fatt.n. 263554306019023  del 10/11/2019 ENEL: OTT. NOV. 2019;04-12-2019;600;0;342;1;Spese correnti;3;Acquisto di beni e servizi;2;Acquisto di servizi;5;Utenze e canoni;4;Energia elettrica;04-12-2019;
1539;7;0;"817,27";"3.932,52";SERVIZIO ELETTRICO NAZIONALE SpA;7134285639;SALDO Fatt.n. 263553056001023  del 10/11/2019 ENEL : OTT. - NOV 2019;04-12-2019;600;0;342;1;Spese correnti;3;Acquisto di beni e servizi;2;Acquisto di servizi;5;Utenze e canoni;4;Energia elettrica;04-12-2019;
1539;8;0;"1.224,95";"3.932,52";SERVIZIO ELETTRICO NAZIONALE SpA;7134285639;SALDO Fatt.n. 263553556070023  del 10/11/2019 ENEL: OTT. NOV. 2019;04-12-2019;600;0;342;1;Spese correnti;3;Acquisto di beni e servizi;2;Acquisto di servizi;5;Utenze e canoni;4;Energia elettrica;04-12-2019;
1540;1;0;"63,59";"1.425,83";SERVIZIO ELETTRICO NAZIONALE SpA;7134285639;SALDO Fatt.n. 263556202001023  del 10/11/2019 ENEL: OTT.NOV. 2019;04-12-2019;600;0;342;1;Spese correnti;3;Acquisto di beni e servizi;2;Acquisto di servizi;5;Utenze e canoni;4;Energia elettrica;04-12-2019;
1540;2;0;"76,46";"1.425,83";SERVIZIO ELETTRICO NAZIONALE SpA;7134285639;SALDO Fatt.n. 263553105005023  del 10/11/2019 ENEL: OTT.-NOV. 2019;04-12-2019;600;0;342;1;Spese correnti;3;Acquisto di beni e servizi;2;Acquisto di servizi;5;Utenze e canoni;4;Energia elettrica;04-12-2019;
1540;3;0;"103,37";"1.425,83";SERVIZIO ELETTRICO NAZIONALE SpA;7134285639;SALDO Fatt.n. 263554005004013  del 10/11/2019 ENEL: OTT. - NOV. 2019;04-12-2019;600;0;342;1;Spese correnti;3;Acquisto di beni e servizi;2;Acquisto di servizi;5;Utenze e canoni;4;Energia elettrica;04-12-2019;
1540;4;0;"107,92";"1.425,83";SERVIZIO ELETTRICO NAZIONALE SpA;7134285639;SALDO Fatt.n. 263554455040023  del 10/11/2019 ENEL: OTT-NOV. 2019;04-12-2019;600;0;342;1;Spese correnti;3;Acquisto di beni e servizi;2;Acquisto di servizi;5;Utenze e canoni;4;Energia elettrica;04-12-2019;
1540;5;0;"140,64";"1.425,83";SERVIZIO ELETTRICO NAZIONALE SpA;7134285639;SALDO Fatt.n. 263555005016522  del 10/11/2019 ENEL: OTT-NOV. 2019;04-12-2019;600;0;342;1;Spese correnti;3;Acquisto di beni e servizi;2;Acquisto di servizi;5;Utenze e canoni;4;Energia elettrica;04-12-2019;
1540;6;0;"158,83";"1.425,83";SERVIZIO ELETTRICO NAZIONALE SpA;7134285639;SALDO Fatt.n. 263558505000213  del 10/11/2019 ENEL: OTT. -NOV. 2019;04-12-2019;600;0;342;1;Spese correnti;3;Acquisto di beni e servizi;2;Acquisto di servizi;5;Utenze e canoni;4;Energia elettrica;04-12-2019;
1540;7;0;"203,01";"1.425,83";SERVIZIO ELETTRICO NAZIONALE SpA;7134285639;SALDO Fatt.n. 263553255013523  del 10/11/2019 ENEL: OTT-NOV. 2019;04-12-2019;600;0;342;1;Spese correnti;3;Acquisto di beni e servizi;2;Acquisto di servizi;5;Utenze e canoni;4;Energia elettrica;04-12-2019;
1540;8;0;"213,05";"1.425,83";SERVIZIO ELETTRICO NAZIONALE SpA;7134285639;SALDO Fatt.n. 263557855013523  del 10/11/2019 ENEL: OTT.-NOV 2019;04-12-2019;600;0;342;1;Spese correnti;3;Acquisto di beni e servizi;2;Acquisto di servizi;5;Utenze e canoni;4;Energia elettrica;04-12-2019;
1540;9;0;"358,96";"1.425,83";SERVIZIO ELETTRICO NAZIONALE SpA;7134285639;SALDO Fatt.n. 263557405021023  del 10/11/2019 ENEL: OTT.-NOV. 2019;04-12-2019;600;0;342;1;Spese correnti;3;Acquisto di beni e servizi;2;Acquisto di servizi;5;Utenze e canoni;4;Energia elettrica;04-12-2019;
1541;1;0;"90,78";"5.023,33";SERVIZIO ELETTRICO NAZIONALE SpA;7134285639;SALDO Fatt.n. 263553356000523  del 10/11/2019 SEN: OTT - NOV 2019;04-12-2019;600;0;342;1;Spese correnti;3;Acquisto di beni e servizi;2;Acquisto di servizi;5;Utenze e canoni;4;Energia elettrica;04-12-2019;
1541;2;0;"115,45";"5.023,33";SERVIZIO ELETTRICO NAZIONALE SpA;7134285639;SALDO Fatt.n. 263558205009523  del 10/11/2019 SEN: OTT - NOV 2019;04-12-2019;600;0;342;1;Spese correnti;3;Acquisto di beni e servizi;2;Acquisto di servizi;5;Utenze e canoni;4;Energia elettrica;04-12-2019;
1541;3;0;"181,21";"5.023,33";SERVIZIO ELETTRICO NAZIONALE SpA;7134285639;SALDO Fatt.n. 263558706024523  del 10/11/2019 ENEL: OTT. NOV. 2019;04-12-2019;600;0;342;1;Spese correnti;3;Acquisto di beni e servizi;2;Acquisto di servizi;5;Utenze e canoni;4;Energia elettrica;04-12-2019;
1541;4;0;"284,05";"5.023,33";SERVIZIO ELETTRICO NAZIONALE SpA;7134285639;SALDO Fatt.n. 263556805005526  del 10/11/2019 SEN: OTT  2019;04-12-2019;600;0;342;1;Spese correnti;3;Acquisto di beni e servizi;2;Acquisto di servizi;5;Utenze e canoni;4;Energia elettrica;04-12-2019;
1541;5;0;"342,17";"5.023,33";SERVIZIO ELETTRICO NAZIONALE SpA;7134285639;SALDO Fatt.n. 263552355001023  del 10/11/2019 SEN: OTT - NOV 2019;04-12-2019;600;0;342;1;Spese correnti;3;Acquisto di beni e servizi;2;Acquisto di servizi;5;Utenze e canoni;4;Energia elettrica;04-12-2019;
1541;6;0;"692,98";"5.023,33";SERVIZIO ELETTRICO NAZIONALE SpA;7134285639;SALDO Fatt.n. 263552955069523  del 10/11/2019 SEN: OTT - NOV 2019;04-12-2019;600;0;342;1;Spese correnti;3;Acquisto di beni e servizi;2;Acquisto di servizi;5;Utenze e canoni;4;Energia elettrica;04-12-2019;
1541;7;0;"1.088,01";"5.023,33";SERVIZIO ELETTRICO NAZIONALE SpA;7134285639;SALDO Fatt.n. 263557205052023  del 10/11/2019 SEN: OTT - NOV 2019;04-12-2019;600;0;342;1;Spese correnti;3;Acquisto di beni e servizi;2;Acquisto di servizi;5;Utenze e canoni;4;Energia elettrica;04-12-2019;
1541;8;0;"2.228,68";"5.023,33";SERVIZIO ELETTRICO NAZIONALE SpA;7134285639;SALDO Fatt.n. 263554753017523  del 10/11/2019 SEN: OTT - NOV 2019;04-12-2019;600;0;342;1;Spese correnti;3;Acquisto di beni e servizi;2;Acquisto di servizi;5;Utenze e canoni;4;Energia elettrica;04-12-2019;
1542;1;0;"35,53";"3.624,67";SERVIZIO ELETTRICO NAZIONALE SpA;7134285639;SALDO Fatt.n. 263553405085023  del 10/11/2019 SEN: OTT - NOV 2019;04-12-2019;600;0;342;1;Spese correnti;3;Acquisto di beni e servizi;2;Acquisto di servizi;5;Utenze e canoni;4;Energia elettrica;04-12-2019;
1542;2;0;"85,44";"3.624,67";SERVIZIO ELETTRICO NAZIONALE SpA;7134285639;SALDO Fatt.n. 263556405000513  del 10/11/2019 SEN: OTT - NOV 2019;04-12-2019;600;0;342;1;Spese correnti;3;Acquisto di beni e servizi;2;Acquisto di servizi;5;Utenze e canoni;4;Energia elettrica;04-12-2019;
1542;3;0;"127,38";"3.624,67";SERVIZIO ELETTRICO NAZIONALE SpA;7134285639;SALDO Fatt.n. 263552655019123  del 10/11/2019 SEN: OTT - NOV 2019;04-12-2019;600;0;342;1;Spese correnti;3;Acquisto di beni e servizi;2;Acquisto di servizi;5;Utenze e canoni;4;Energia elettrica;04-12-2019;
1542;4;0;"544,67";"3.624,67";SERVIZIO ELETTRICO NAZIONALE SpA;7134285639;SALDO Fatt.n. 263551603001523  del 10/11/2019 SEN: OTT - NOV 2019;04-12-2019;600;0;342;1;Spese correnti;3;Acquisto di beni e servizi;2;Acquisto di servizi;5;Utenze e canoni;4;Energia elettrica;04-12-2019;
1542;5;0;"582,45";"3.624,67";SERVIZIO ELETTRICO NAZIONALE SpA;7134285639;SALDO Fatt.n. 263552103001023  del 10/11/2019 SEN: OTT - NOV 2019;04-12-2019;600;0;342;1;Spese correnti;3;Acquisto di beni e servizi;2;Acquisto di servizi;5;Utenze e canoni;4;Energia elettrica;04-12-2019;
1542;6;0;"596,96";"3.624,67";SERVIZIO ELETTRICO NAZIONALE SpA;7134285639;SALDO Fatt.n. 263556202002926  del 10/11/2019 SEN: OTT - NOV 2019;04-12-2019;600;0;342;1;Spese correnti;3;Acquisto di beni e servizi;2;Acquisto di servizi;5;Utenze e canoni;4;Energia elettrica;04-12-2019;
1542;7;0;"714,55";"3.624,67";SERVIZIO ELETTRICO NAZIONALE SpA;7134285639;SALDO Fatt.n. 263552505054223  del 10/11/2019 SEN: OTT - NOV 2019;04-12-2019;600;0;342;1;Spese correnti;3;Acquisto di beni e servizi;2;Acquisto di servizi;5;Utenze e canoni;4;Energia elettrica;04-12-2019;
1542;8;0;"937,69";"3.624,67";SERVIZIO ELETTRICO NAZIONALE SpA;7134285639;SALDO Fatt.n. 263555802001023  del 10/11/2019 SEN: OTT - NOV 2019;04-12-2019;600;0;342;1;Spese correnti;3;Acquisto di beni e servizi;2;Acquisto di servizi;5;Utenze e canoni;4;Energia elettrica;04-12-2019;
1543;1;0;"97,01";"4.360,25";SERVIZIO ELETTRICO NAZIONALE SpA;7134285639;SALDO Fatt.n. 263553705034523  del 10/11/2019 SEN: OTT - NOV 2019;04-12-2019;600;0;342;1;Spese correnti;3;Acquisto di beni e servizi;2;Acquisto di servizi;5;Utenze e canoni;4;Energia elettrica;04-12-2019;
1543;2;0;"107,86";"4.360,25";SERVIZIO ELETTRICO NAZIONALE SpA;7134285639;SALDO Fatt.n. 263558703001126  del 10/11/2019 SEN: OTT - NOV 2019;04-12-2019;600;0;342;1;Spese correnti;3;Acquisto di beni e servizi;2;Acquisto di servizi;5;Utenze e canoni;4;Energia elettrica;04-12-2019;
1543;3;0;"127,15";"4.360,25";SERVIZIO ELETTRICO NAZIONALE SpA;7134285639;SALDO Fatt.n. 263555226006523  del 10/11/2019 SEN: OTT - NOV 2019;04-12-2019;600;0;342;1;Spese correnti;3;Acquisto di beni e servizi;2;Acquisto di servizi;5;Utenze e canoni;4;Energia elettrica;04-12-2019;
1543;4;0;"154,12";"4.360,25";SERVIZIO ELETTRICO NAZIONALE SpA;7134285639;SALDO Fatt.n. 263551755011423  del 10/11/2019 SEN: OTT - NOV 2019;04-12-2019;600;0;342;1;Spese correnti;3;Acquisto di beni e servizi;2;Acquisto di servizi;5;Utenze e canoni;4;Energia elettrica;04-12-2019;
1543;5;0;"161,39";"4.360,25";SERVIZIO ELETTRICO NAZIONALE SpA;7134285639;SALDO Fatt.n. 263555505042023  del 10/11/2019 SEN: OTT - NOV. 2019;04-12-2019;600;0;342;1;Spese correnti;3;Acquisto di beni e servizi;2;Acquisto di servizi;5;Utenze e canoni;4;Energia elettrica;04-12-2019;
1543;6;0;"194,15";"4.360,25";SERVIZIO ELETTRICO NAZIONALE SpA;7134285639;SALDO Fatt.n. 263551155002026  del 10/11/2019 SEN: OTT - NOV 2019;04-12-2019;600;0;342;1;Spese correnti;3;Acquisto di beni e servizi;2;Acquisto di servizi;5;Utenze e canoni;4;Energia elettrica;04-12-2019;
1543;7;0;"564,43";"4.360,25";SERVIZIO ELETTRICO NAZIONALE SpA;7134285639;SALDO Fatt.n. 263557855000723  del 10/11/2019 SEN: OTT - NOV 2019;04-12-2019;600;0;342;1;Spese correnti;3;Acquisto di beni e servizi;2;Acquisto di servizi;5;Utenze e canoni;4;Energia elettrica;04-12-2019;
1543;8;0;"1.204,53";"4.360,25";SERVIZIO ELETTRICO NAZIONALE SpA;7134285639;SALDO Fatt.n. 263552823001123  del 10/11/2019 SEN: OTT - NOV 2019;04-12-2019;600;0;342;1;Spese correnti;3;Acquisto di beni e servizi;2;Acquisto di servizi;5;Utenze e canoni;4;Energia elettrica;04-12-2019;
1543;9;0;"1.749,61";"4.360,25";SERVIZIO ELETTRICO NAZIONALE SpA;7134285639;SALDO Fatt.n. 263554153015523  del 10/11/2019 SEN: OTT - NOV 2019;04-12-2019;600;0;342;1;Spese correnti;3;Acquisto di beni e servizi;2;Acquisto di servizi;5;Utenze e canoni;4;Energia elettrica;04-12-2019;
1544;1;0;"553,00";"553,00";SERVIZIO ELETTRICO NAZIONALE SpA;7134285639;SALDO Fatt.n. 263557855000536  del 10/11/2019 ENEL: OTT-NOV. 2019;04-12-2019;530;0;340;1;Spese correnti;3;Acquisto di beni e servizi;2;Acquisto di servizi;5;Utenze e canoni;4;Energia elettrica;04-12-2019;
1545;1;0;"476,14";"1.014,83";SERVIZIO ELETTRICO NAZIONALE SpA;7134285639;SALDO Fatt.n. 263552205014423  del 10/11/2019 SEN: OTT - NOV 2019;04-12-2019;561;2;341;1;Spese correnti;3;Acquisto di beni e servizi;2;Acquisto di servizi;5;Utenze e canoni;4;Energia elettrica;04-12-2019;
1545;2;0;"538,69";"1.014,83";SERVIZIO ELETTRICO NAZIONALE SpA;7134285639;SALDO Fatt.n. 263552205013417  del 04/11/2019 ENEL: OTT. NOV. 2019;04-12-2019;561;2;341;1;Spese correnti;3;Acquisto di beni e servizi;2;Acquisto di servizi;5;Utenze e canoni;4;Energia elettrica;04-12-2019;
1546;1;0;"212,35";"212,35";SERVIZIO ELETTRICO NAZIONALE SpA;7134285639;SALDO Fatt.n. 263558703010013  del 10/11/2019 ENEL: OTT.-NOV. 2019;04-12-2019;71;0;334;1;Spese correnti;3;Acquisto di beni e servizi;2;Acquisto di servizi;5;Utenze e canoni;4;Energia elettrica;04-12-2019;
1547;1;0;"259,12";"259,12";INFOTEAM SRL;ZBF2A958E8;ACCONTO Fatt.n. 00000002732  del 19/11/2019 INTERVENTI VARI DI RICONFIGURAZIONE DELL FIREWALL E SERVER.;04-12-2019;34;4;521;1;Spese correnti;3;Acquisto di beni e servizi;2;Acquisto di servizi;99;Altri servizi;999;Altri servizi diversi n.a.c.;04-12-2019;
1548;1;0;"834,00";"834,00";INFOTEAM SRL;ZBF2A958E8;SALDO Fatt.n. 00000002732  del 19/11/2019 INTERVENTI VARI DI RICONFIGURAZIONE DELL FIREWALL E SERVER.;04-12-2019;33;1;520;1;Spese correnti;3;Acquisto di beni e servizi;2;Acquisto di servizi;9;Manutenzione ordinaria e riparazioni;6;Manutenzione ordinaria e riparazioni di macchine per ufficio;04-12-2019;
1549;1;0;"31,05";"31,05";SPRINT OFFICE S.r.l.; ;SALDO Fatt.n. H65/35  del 19/11/2019 LIBRI DI TESTO SCUOLA PRIMARIA;04-12-2019;239;0;518;1;Spese correnti;3;Acquisto di beni e servizi;1;Acquisto di beni;1;"Giornali, riviste e pubblicazioni";2;Pubblicazioni;04-12-2019;
1550;1;0;"1.101,51";"1.101,51";SERVIZI TREVISO SRL;ZB4242D1BC;SALDO Fatt.n. 2019/39/116  del 25/11/2019 PRESTAZIONI SOCIALI;04-12-2019;559;0;245;1;Spese correnti;3;Acquisto di beni e servizi;2;Acquisto di servizi;99;Altri servizi;999;Altri servizi diversi n.a.c.;04-12-2019;
1551;1;0;"158,60";"158,60";IMQ S.P.A.;Z8125B7DE5;SALDO Fatt.n. 119030051  del 21/11/2019 COLLAUDO/VERIFICA IMPIANTI ELEVATORI;04-12-2019;310;1;448;1;Spese correnti;3;Acquisto di beni e servizi;2;Acquisto di servizi;9;Manutenzione ordinaria e riparazioni;5;Manutenzione ordinaria e riparazioni di attrezzature;04-12-2019;
1552;1;0;"158,60";"158,60";IMQ S.P.A.;Z8125B7DE5;SALDO Fatt.n. 119030009  del 21/11/2019 COLLAUDO/VERIFICA IMPIANTI ELEVATORI;04-12-2019;252;1;447;1;Spese correnti;3;Acquisto di beni e servizi;2;Acquisto di servizi;9;Manutenzione ordinaria e riparazioni;5;Manutenzione ordinaria e riparazioni di attrezzature;04-12-2019;
1553;1;0;"2.710,50";"2.710,50";CASA DI RIPOSO 'AITA'; ;SALDO Fatt.n. 532/B  del 28/11/2019 SERVIZIO DI A.D. - OTTOBRE 2019;04-12-2019;562;1;240;1;Spese correnti;3;Acquisto di beni e servizi;2;Acquisto di servizi;15;Contratti di servizio pubblico;9;Contratti di servizio di assistenza sociale domiciliare;04-12-2019;
1554;1;0;"488,00";"488,00";ALBERTON FERRAMENTA E CASALINGHI SNC DI ALBERTON P.& C.;ZF024B19FE;SALDO Fatt.n. 3/PA  del 28/11/2019 MATERIALI DI FERRAMENTA E MINUTERIA VARIA;04-12-2019;589;0;528;1;Spese correnti;3;Acquisto di beni e servizi;1;Acquisto di beni;2;Altri beni di consumo;999;Altri beni e materiali di consumo n.a.c.;04-12-2019;
1555;1;0;"1.657,49";"1.657,49";STUDIO SMANIOTTO & MOROSIN;Z70263FCE5;SALDO Fatt.n. 53  del 19/11/2019 PRATICA CONTO TERMICO LAVORI PLESSO SCOLASTICO;04-12-2019;775;5;501;2;Spese in conto capitale;2;Investimenti fissi lordi e acquisto di terreni;3;Beni immateriali;5;Incarichi professionali per la realizzazione di investimenti;1;Incarichi professionali per la realizzazione di investimenti;04-12-2019;
1556;1;0;"1.500,00";"1.500,00";COOPERATIVA SOCIALE EOS;Z7F28A6041;ACCONTO Fatt.n. 2019240000173  del 25/10/2019 MANUTENZIONE STRAORDINARIA AREE VERDI;04-12-2019;705;0;298;1;Spese correnti;3;Acquisto di beni e servizi;2;Acquisto di servizi;99;Altri servizi;9;Acquisto di sevizi per verde e arredo urbano;04-12-2019;
1557;1;0;"3.500,00";"3.500,00";COOPERATIVA SOCIALE EOS;Z7F28A6041;ACCONTO Fatt.n. 2019240000173  del 25/10/2019 MANUTENZIONE STRAORDINARIA AREE VERDI;04-12-2019;251;0;299;1;Spese correnti;3;Acquisto di beni e servizi;1;Acquisto di beni;2;Altri beni di consumo;999;Altri beni e materiali di consumo n.a.c.;04-12-2019;
1558;1;0;"4.596,52";"4.596,52";COOPERATIVA SOCIALE EOS;Z7F28A6041;SALDO Fatt.n. 2019240000173  del 25/10/2019 MANUTENZIONE STRAORDINARIA AREE VERDI;04-12-2019;593;0;300;1;Spese correnti;3;Acquisto di beni e servizi;2;Acquisto di servizi;9;Manutenzione ordinaria e riparazioni;12;Manutenzione ordinaria e riparazioni di terreni e beni materiali non prodotti;04-12-2019;
1559;1;0;"1.650,00";"1.650,00";MELCHIORI EGIDIO;Z6528FCC74;SALDO Fatt.n. 000034/PA  del 25/11/2019 FORNITURA E POSA IN OPERA DI LINEE DATI NELLE SCUOLE;04-12-2019;775;0;345;2;Spese in conto capitale;2;Investimenti fissi lordi e acquisto di terreni;1;Beni materiali;9;Beni immobili;3;Fabbricati ad uso scolastico;04-12-2019;
1560;1;0;"302,50";"302,50";MELCHIORI EGIDIO;Z6528FCC74;SALDO Fatt.n. 000035/PA  del 25/11/2019 FORNITURA E POSA IN OPERA COMANDI FRANGISOLE PER LE AULE;04-12-2019;745;0;408;2;Spese in conto capitale;2;Investimenti fissi lordi e acquisto di terreni;1;Beni materiali;9;Beni immobili;3;Fabbricati ad uso scolastico;04-12-2019;
1561;1;0;"983,72";"983,72";BERNARDI DOMENICO;ZE129CC759;SALDO Fatt.n. FPA 12/19  del 28/11/2019 PRATICA CATASTALE PER AGGIORNAMENTO PLESSO SCOLASTICO;04-12-2019;64;1;464;1;Spese correnti;3;Acquisto di beni e servizi;2;Acquisto di servizi;11;Prestazioni professionali e specialistiche;999;Altre prestazioni professionali e specialistiche n.a.c.;04-12-2019;
1562;1;0;"4.644,90";"4.644,90";CARTOYS DI ZARDO MICHELA; ;SALDO Fatt.n. 49/PA  del 29/11/2019 LIBRI DI TESTO SCUOLA PRIMARIA;04-12-2019;239;0;518;1;Spese correnti;3;Acquisto di beni e servizi;1;Acquisto di beni;1;"Giornali, riviste e pubblicazioni";2;Pubblicazioni;04-12-2019;
1563;1;0;"1.342,00";"1.342,00";INTERNAVIGARE S.R.L.;Z9F204559C;SALDO Fatt.n. 954  del 02/12/2019 SERVIZIO MANUTENZIONE PIATTAFORMA ANNUALE - PERIODO 01.12.2019-30.11.2020;04-12-2019;39;1;468;1;Spese correnti;3;Acquisto di beni e servizi;2;Acquisto di servizi;7;Utilizzo di beni di terzi;6;Licenze d'uso per software;04-12-2019;
1564;1;0;"28,06";"28,06";SICURITALIA IVRI S.P.A.;Z3827208DE;SALDO Fatt.n. 9117009675  del 30/11/2019 SERVIZI ISPETTIVI;04-12-2019;235;0;92;1;Spese correnti;3;Acquisto di beni e servizi;2;Acquisto di servizi;5;Utenze e canoni;999;Utenze e canoni per altri servizi n.a.c.;04-12-2019;
1565;1;0;"941,17";"941,17";POSTEL S.P.A.;Z6F2648DBC;SALDO Fatt.n. 2019114133  del 20/11/2019 INVITI PER FESTA DELLA TERZA ETA' - SETTEMBRE 2019;04-12-2019;34;3;547;1;Spese correnti;3;Acquisto di beni e servizi;2;Acquisto di servizi;16;Servizi amministrativi;2;Spese postali;04-12-2019;
1566;1;0;"312,60";"312,60";POSTE ITALIANE SPA - PROVENTI POLO LOGISTICO;Z6F2648DBC;SALDO Fatt.n. 8719345953  del 29/11/2019 PRODOTTI POSTALI - NOVEMBRE 2019;04-12-2019;34;3;539;1;Spese correnti;3;Acquisto di beni e servizi;2;Acquisto di servizi;16;Servizi amministrativi;2;Spese postali;04-12-2019;
1567;1;0;"1.354,46";"1.354,46";KYOCERA DOCUMENT SOLUTIONS ITALIA S.P.A.;ZF02648E30;SALDO Fatt.n. 1010582587  del 29/11/2019 MATERIALE PER FOTOCOPIATRICE;04-12-2019;34;0;519;1;Spese correnti;3;Acquisto di beni e servizi;2;Acquisto di servizi;5;Utenze e canoni;999;Utenze e canoni per altri servizi n.a.c.;04-12-2019;
1568;1;0;"-5.416,24";"4.694,56";SILVESTRI ROBERTO;ZE01D0AAF5;SALDO Fatt.n. FATTPA 2_19  del 02/12/2019 Nota di credito per errato importo FATT PA 1_19 del 18/02/2019;05-12-2019;775;0;616;2;Spese in conto capitale;2;Investimenti fissi lordi e acquisto di terreni;1;Beni materiali;9;Beni immobili;3;Fabbricati ad uso scolastico;05-12-2019;
1568;2;0;"4.694,56";"4.694,56";SILVESTRI ROBERTO;ZE01D0AAF5;SALDO Fatt.n. FATTPA 3_19  del 02/12/2019 ADEGUAMENTO SISMICO ED EFFICIENTAMENTO ENERGETICO DEL PLESSO SCOLASTICO DEL CAPOLUOGO;05-12-2019;775;0;616;2;Spese in conto capitale;2;Investimenti fissi lordi e acquisto di terreni;1;Beni materiali;9;Beni immobili;3;Fabbricati ad uso scolastico;05-12-2019;
1568;3;0;"5.416,24";"4.694,56";SILVESTRI ROBERTO;ZE01D0AAF5;SALDO Fatt.n. FATTPA 1_19  del 18/02/2019 ADEGUAMENTO SISMICO ED EFFICIENTAMENTO ENERGETICO DEL PLESSO SCOLASTICO;05-12-2019;775;0;616;2;Spese in conto capitale;2;Investimenti fissi lordi e acquisto di terreni;1;Beni materiali;9;Beni immobili;3;Fabbricati ad uso scolastico;05-12-2019;
1569;1;0;"300,07";"300,07";LA FONTESE DI GIANNI BROLESE & C. S.A.S.; ;SALDO Fatt.n. 772/V  del 29/11/2019 LIBRI DI TESTO SCUOLA PRIMARIA;05-12-2019;239;0;518;1;Spese correnti;3;Acquisto di beni e servizi;1;Acquisto di beni;1;"Giornali, riviste e pubblicazioni";2;Pubblicazioni;05-12-2019;
1570;1;0;"624,23";"624,23";SERVIZIO ELETTRICO NAZIONALE SpA;7134285639;SALDO Fatt.n. 263552205013418  del 03/12/2019 S.E.N. - NOVEMBRE 2019;05-12-2019;561;2;341;1;Spese correnti;3;Acquisto di beni e servizi;2;Acquisto di servizi;5;Utenze e canoni;4;Energia elettrica;05-12-2019;
1574;1;0;"127,98";"127,98";KUWAIT PETROLEUM ITALIA S.P.A.;Z4E197F01F;SALDO Fatt.n. PJ01945674  del 30/11/2019 CARBURANTE AUTO UFF. SOCIALE - NOVEMBRE 2019;10-12-2019;571;0;155;1;Spese correnti;3;Acquisto di beni e servizi;1;Acquisto di beni;2;Altri beni di consumo;2;"Carburanti, combustibili e lubrificanti";10-12-2019;
1575;1;0;"172,77";"172,77";KUWAIT PETROLEUM ITALIA S.P.A.;Z4E197F01F;SALDO Fatt.n. PJ01945673  del 30/11/2019 CARBURANTE AUTO VIABILITA' - NOVEMBRE 2019;10-12-2019;590;0;156;1;Spese correnti;3;Acquisto di beni e servizi;1;Acquisto di beni;2;Altri beni di consumo;2;"Carburanti, combustibili e lubrificanti";10-12-2019;
1576;1;0;"64,99";"64,99";KUWAIT PETROLEUM ITALIA S.P.A.;Z4E197F01F;SALDO Fatt.n. PJ01945675  del 30/11/2019 CARBURANTE AUTO VIGILI - NOVEMBRE 2019;10-12-2019;179;0;154;1;Spese correnti;3;Acquisto di beni e servizi;1;Acquisto di beni;2;Altri beni di consumo;2;"Carburanti, combustibili e lubrificanti";10-12-2019;
1577;1;0;"1.095,68";"1.095,68";F.LLI MICHIELIN S.N.C.;Z552A52C0F;SALDO Fatt.n. 19/PA  del 03/12/2019 RIPARAZIONE TRATTORINO;10-12-2019;510;3;503;1;Spese correnti;3;Acquisto di beni e servizi;2;Acquisto di servizi;9;Manutenzione ordinaria e riparazioni;5;Manutenzione ordinaria e riparazioni di attrezzature;10-12-2019;
1578;1;0;"244,00";"244,00";OKCS - OVER KANT CONCEPTION STUDIO S.N.C.;ZE82AA1180;SALDO Fatt.n. 4/PA  del 05/12/2019 SERVIZIO DI DOMINIO E HOSTING MUSEO - 11/2019-11/2020.;10-12-2019;303;0;525;1;Spese correnti;3;Acquisto di beni e servizi;2;Acquisto di servizi;99;Altri servizi;999;Altri servizi diversi n.a.c.;10-12-2019;
1579;1;0;"22,86";"22,86";LA IDROFERRAMENTA SRL;Z192700D74;ACCONTO Fatt.n. 104/PA  del 30/11/2019 MATERIALE DI FERRAMENTA;10-12-2019;591;0;58;1;Spese correnti;3;Acquisto di beni e servizi;1;Acquisto di beni;2;Altri beni di consumo;999;Altri beni e materiali di consumo n.a.c.;10-12-2019;
1580;1;0;"18,39";"18,39";LA IDROFERRAMENTA SRL;Z192700D74;SALDO Fatt.n. 104/PA  del 30/11/2019 MATERIALE DI FERRAMENTA;10-12-2019;591;0;571;1;Spese correnti;3;Acquisto di beni e servizi;1;Acquisto di beni;2;Altri beni di consumo;999;Altri beni e materiali di consumo n.a.c.;10-12-2019;
1581;1;0;"3.050,40";"3.050,40";A.S. DI ANDREATTA GIUSEPPE & C. S.R.L.;ZB1282AB4D;SALDO Fatt.n. 0834  del 31/10/2019 MANUTENZIONE ORDINARIA IMP. ELETTRICI ED. COMUNALI;10-12-2019;601;0;567;1;Spese correnti;3;Acquisto di beni e servizi;2;Acquisto di servizi;15;Contratti di servizio pubblico;15;Contratti di servizio per l'illuminazione pubblica;10-12-2019;
1582;1;0;"1.184,82";"1.184,82";KIRIKU' SOCIETA' COOPERATIVA SOCIALE ONLUS;Z6D274937A;SALDO Fatt.n. 297  del 30/11/2019 SPAZIO EDUCATIVO POMERIDIANO - NOVEMBRE 2019;10-12-2019;559;0;106;1;Spese correnti;3;Acquisto di beni e servizi;2;Acquisto di servizi;99;Altri servizi;999;Altri servizi diversi n.a.c.;10-12-2019;
1583;1;0;"991,20";"991,20";KIRIKU' SOCIETA' COOPERATIVA SOCIALE ONLUS;ZC12810421;SALDO Fatt.n. 313  del 30/11/2019 EDUCATIVA DOMICILIARE - NOVEMBRE 2019;10-12-2019;559;0;184;1;Spese correnti;3;Acquisto di beni e servizi;2;Acquisto di servizi;99;Altri servizi;999;Altri servizi diversi n.a.c.;10-12-2019;
1584;1;0;"160,37";"160,37";UNICOOPER SERVIZI S.C.R.L.;Z0128215E5;ACCONTO Fatt.n. 1971  del 30/11/2019 SERVIZIO PULIZIA EDIFICI COMUNALI - NOVEMBRE 2019;10-12-2019;34;2;191;1;Spese correnti;3;Acquisto di beni e servizi;2;Acquisto di servizi;13;Servizi ausiliari per il funzionamento dell'ente;2;Servizi di pulizia e lavanderia;10-12-2019;
1585;1;0;"285,90";"285,90";UNICOOPER SERVIZI S.C.R.L.;Z0128215E5;ACCONTO Fatt.n. 1971  del 30/11/2019 SERVIZIO PULIZIA EDIFICI COMUNALI - NOVEMBRE 2019;10-12-2019;561;4;463;1;Spese correnti;3;Acquisto di beni e servizi;2;Acquisto di servizi;9;Manutenzione ordinaria e riparazioni;3;Manutenzione ordinaria e riparazioni di mobili e arredi;10-12-2019;
1586;1;0;"1.335,55";"1.335,55";UNICOOPER SERVIZI S.C.R.L.;Z0128215E5;SALDO Fatt.n. 1971  del 30/11/2019 SERVIZIO PULIZIA EDIFICI COMUNALI - NOVEMBRE 2019;10-12-2019;34;2;462;1;Spese correnti;3;Acquisto di beni e servizi;2;Acquisto di servizi;13;Servizi ausiliari per il funzionamento dell'ente;2;Servizi di pulizia e lavanderia;10-12-2019;
1587;1;0;"1.156,56";"1.156,56";UNICOOPER SERVIZI S.C.R.L.;Z0128215E5;SALDO Fatt.n. 1972  del 30/11/2019 SERVIZIO PULIZIA CENTRO "LA ROGGIA" - NOVEMBRE 2019;10-12-2019;34;2;462;1;Spese correnti;3;Acquisto di beni e servizi;2;Acquisto di servizi;13;Servizi ausiliari per il funzionamento dell'ente;2;Servizi di pulizia e lavanderia;10-12-2019;
1588;1;0;"7.400,26";"7.400,26";BATTAGIN IMPIANTI SRL;Z46283887B;SALDO Fatt.n. 260/19  del 30/09/2019 LAVORI DI ILLUMINAZIONE PEDONALE PRESSO IL CASTELLARO;10-12-2019;780;0;237;2;Spese in conto capitale;2;Investimenti fissi lordi e acquisto di terreni;1;Beni materiali;9;Beni immobili;12;Infrastrutture stradali;10-12-2019;
1591;1;0;"107,52";"107,52";PERSONALE DIPENDENTE - SEDE; ;IMPEGNO DI SPESA PER RIMBORSO SPESE E ACCESSI AL SEGRETARIO COMUNALE DR. ORSO PAOLO PER L'ANNO 2019.;10-12-2019;20;0;29;1;Spese correnti;3;Acquisto di beni e servizi;2;Acquisto di servizi;2;"Organizzazione eventi, pubblicita` e servizi per trasferta";1;Rimborso per viaggio e trasloco;10-12-2019;
1604;1;0;"8,79";"8,79";PERSONALE DIPENDENTE - SEDE; ;STIPENDI MESE DI: DICEMBRE 19;10-12-2019;83;0;24;1;Spese correnti;3;Acquisto di beni e servizi;2;Acquisto di servizi;2;"Organizzazione eventi, pubblicita` e servizi per trasferta";2;Indennità di missione e di trasferta;10-12-2019;
1620;1;0;"3,50";"3,50";PERSONALE DIPENDENTE - SEDE; ;STIPENDI MESE DI: DICEMBRE 19;10-12-2019;174;0;25;1;Spese correnti;3;Acquisto di beni e servizi;2;Acquisto di servizi;2;"Organizzazione eventi, pubblicita` e servizi per trasferta";1;Rimborso per viaggio e trasloco;10-12-2019;
1637;1;0;"5.961,21";"5.961,21";AMMINISTRATORI COMUNALI; ;STIPENDI MESE DI: DICEMBRE 19;10-12-2019;2;0;377;1;Spese correnti;3;Acquisto di beni e servizi;2;Acquisto di servizi;1;Organi e incarichi istituzionali dell'amministrazione;1;Organi istituzionali dell'amministrazione - Indennità;10-12-2019;
1641;1;0;"30,00";"30,00";G.S.E. S.p.A.; ;SALDO Fatt.n. 2019029901  del 15/10/2019 DELIB.ARG/elt 74/08-ART.6.1 lett.c SCAMBIO SUL POSTO SSP00726396;11-12-2019;27;0;589;1;Spese correnti;3;Acquisto di beni e servizi;2;Acquisto di servizi;99;Altri servizi;999;Altri servizi diversi n.a.c.;11-12-2019;
1642;1;0;"150,00";"150,00";G.S.E. S.p.A.; ;SALDO Fatt.n. 2019030011  del 22/10/2019 Contributo a favore GSE art. 17 D.M. 28 dicembre 2012 - Codice identificativo richiesta: CT00294650;11-12-2019;27;0;589;1;Spese correnti;3;Acquisto di beni e servizi;2;Acquisto di servizi;99;Altri servizi;999;Altri servizi diversi n.a.c.;11-12-2019;
1643;1;0;"66.000,00";"66.000,00";C.S.M. ACCIAIO SRL;6867174B3F;SALDO Fatt.n. 219  del 22/11/2019 ACCONTO LAVORI DI RISTRUTTURAZIONE PLESSO SCOLASTICO;11-12-2019;889;0;538;2;Spese in conto capitale;2;Investimenti fissi lordi e acquisto di terreni;1;Beni materiali;9;Beni immobili;16;Impianti sportivi;11-12-2019;
1644;1;0;"37,39";"37,39";SOCIETA' CONTARINA S.P.A.;Z8E282245E;ACCONTO Fatt.n. 0001575/VET  del 23/09/2019 RIFIUTI URBANI: 01/07/2019-31/12/2019;11-12-2019;463;0;461;1;Spese correnti;3;Acquisto di beni e servizi;2;Acquisto di servizi;15;Contratti di servizio pubblico;4;Contratti di servizio per la raccolta rifiuti;11-12-2019;
1645;1;0;"913,47";"913,47";SOCIETA' CONTARINA S.P.A.;Z8E282245E;SALDO Fatt.n. 0001575/VET  del 23/09/2019 RIFIUTI URBANI: 01/07/2019-31/12/2019;11-12-2019;463;0;577;1;Spese correnti;3;Acquisto di beni e servizi;2;Acquisto di servizi;15;Contratti di servizio pubblico;4;Contratti di servizio per la raccolta rifiuti;11-12-2019;
1646;1;0;"497,28";"497,28";SOCIETA' CONTARINA S.P.A.;Z8E282245E;SALDO Fatt.n. 0001577/VET  del 23/09/2019 RIFIUTI URBANI: 01/07/2019-31/12/2019;11-12-2019;463;0;577;1;Spese correnti;3;Acquisto di beni e servizi;2;Acquisto di servizi;15;Contratti di servizio pubblico;4;Contratti di servizio per la raccolta rifiuti;11-12-2019;
1647;1;0;"46,71";"46,71";SOCIETA' CONTARINA S.P.A.;Z8E282245E;SALDO Fatt.n. 0002066/VET  del 25/11/2019 RIFIUTI URBANI: 01/07/2019-31/12/2019;11-12-2019;463;0;577;1;Spese correnti;3;Acquisto di beni e servizi;2;Acquisto di servizi;15;Contratti di servizio pubblico;4;Contratti di servizio per la raccolta rifiuti;11-12-2019;
1648;1;0;"658,94";"658,94";SOCIETA' CONTARINA S.P.A.;Z8E282245E;SALDO Fatt.n. 0001802/VET  del 23/09/2019 TARIFFA GESTIONE RIFIUTI URBANI: 01/07/2019-31/12/2019;11-12-2019;463;0;577;1;Spese correnti;3;Acquisto di beni e servizi;2;Acquisto di servizi;15;Contratti di servizio pubblico;4;Contratti di servizio per la raccolta rifiuti;11-12-2019;
1649;1;0;"507,09";"1.014,18";ANCI VENETO; ;IMPEGNO DI SPESA PER QUOTA ANCI VENETO ANNO 2017. COMUNICAZIONE ANCI VENETO PROT. N. 2869 DEL 30/10/2019 (NS. PROT. N. 13629 DEL 30/10/2019).;11-12-2019;51;1;590;1;Spese correnti;3;Acquisto di beni e servizi;2;Acquisto di servizi;99;Altri servizi;3;Quote di associazioni;11-12-2019;
1649;2;0;"507,09";"1.014,18";ANCI VENETO; ;IMPEGNO DI SPESA PER QUOTA ANCI VENETO ANNO 2018. COMUNICAZIONE ANCI VENETO PROT. N. 2869 DEL 30/10/2019 (NS. PROT. N. 13629 DEL 30/10/2019).;11-12-2019;51;1;590;1;Spese correnti;3;Acquisto di beni e servizi;2;Acquisto di servizi;99;Altri servizi;3;Quote di associazioni;11-12-2019;
1650;1;0;"500,00";"4.000,00";ANDREATTA ELISA; ;BORSA DI STUDIO COMUNALE ANNO 2018/2019 PER MERITO SCOLASTICO.;11-12-2019;280;0;585;1;Spese correnti;4;Trasferimenti correnti;2;Trasferimenti correnti a Famiglie;3;"Borse di studio, dottorati di ricerca e contratti di formazione specialistica area medica";1;Borse di studio;11-12-2019;
1650;2;0;"250,00";"4.000,00";BERNARDI SARA; ;BORSA DI STUDIO COMUNALE ANNO 2018/2019 PER MERITO SCOLASTICO.;11-12-2019;280;0;585;1;Spese correnti;4;Trasferimenti correnti;2;Trasferimenti correnti a Famiglie;3;"Borse di studio, dottorati di ricerca e contratti di formazione specialistica area medica";1;Borse di studio;11-12-2019;
1650;3;0;"250,00";"4.000,00";COLBERTALDO EMMA; ;BORSA DI STUDIO COMUNALE ANNO 2018/2019 PER MERITO SCOLASTICO.;11-12-2019;280;0;585;1;Spese correnti;4;Trasferimenti correnti;2;Trasferimenti correnti a Famiglie;3;"Borse di studio, dottorati di ricerca e contratti di formazione specialistica area medica";1;Borse di studio;11-12-2019;
1650;4;0;"250,00";"4.000,00";DALIPOVSKA ANELA; ;BORSA DI STUDIO COMUNALE ANNO 2018/2019 PER MERITO SCOLASTICO.;11-12-2019;280;0;585;1;Spese correnti;4;Trasferimenti correnti;2;Trasferimenti correnti a Famiglie;3;"Borse di studio, dottorati di ricerca e contratti di formazione specialistica area medica";1;Borse di studio;11-12-2019;
1650;5;0;"500,00";"4.000,00";GANDINI JOEL SIMON; ;BORSA DI STUDIO COMUNALE ANNO 2018/2019 PER MERITO SCOLASTICO.;11-12-2019;280;0;585;1;Spese correnti;4;Trasferimenti correnti;2;Trasferimenti correnti a Famiglie;3;"Borse di studio, dottorati di ricerca e contratti di formazione specialistica area medica";1;Borse di studio;11-12-2019;
1650;6;0;"250,00";"4.000,00";MARTINI DAVIDE; ;BORSA DI STUDIO COMUNALE ANNO 2018/2019 PER MERITO SCOLASTICO.;11-12-2019;280;0;585;1;Spese correnti;4;Trasferimenti correnti;2;Trasferimenti correnti a Famiglie;3;"Borse di studio, dottorati di ricerca e contratti di formazione specialistica area medica";1;Borse di studio;11-12-2019;
1650;7;0;"250,00";"4.000,00";MEHOVIC TARIK; ;BORSA DI STUDIO COMUNALE ANNO 2018/2019 PER MERITO SCOLASTICO.;11-12-2019;280;0;585;1;Spese correnti;4;Trasferimenti correnti;2;Trasferimenti correnti a Famiglie;3;"Borse di studio, dottorati di ricerca e contratti di formazione specialistica area medica";1;Borse di studio;11-12-2019;
1650;8;0;"250,00";"4.000,00";ROGGIA MARCO; ;BORSA DI STUDIO COMUNALE ANNO 2018/2019 PER MERITO SCOLASTICO.;11-12-2019;280;0;585;1;Spese correnti;4;Trasferimenti correnti;2;Trasferimenti correnti a Famiglie;3;"Borse di studio, dottorati di ricerca e contratti di formazione specialistica area medica";1;Borse di studio;11-12-2019;
1650;9;0;"250,00";"4.000,00";TORRESAN RICCARDO; ;BORSA DI STUDIO COMUNALE ANNO 2018/2019 PER MERITO SCOLASTICO.;11-12-2019;280;0;585;1;Spese correnti;4;Trasferimenti correnti;2;Trasferimenti correnti a Famiglie;3;"Borse di studio, dottorati di ricerca e contratti di formazione specialistica area medica";1;Borse di studio;11-12-2019;
1650;10;0;"500,00";"4.000,00";ZANANDREA ALICE; ;BORSA DI STUDIO COMUNALE ANNO 2018/2019 PER MERITO SCOLASTICO.;11-12-2019;280;0;585;1;Spese correnti;4;Trasferimenti correnti;2;Trasferimenti correnti a Famiglie;3;"Borse di studio, dottorati di ricerca e contratti di formazione specialistica area medica";1;Borse di studio;11-12-2019;
1650;11;0;"250,00";"4.000,00";ZANANDREA EMMA; ;BORSA DI STUDIO COMUNALE ANNO 2018/2019 PER MERITO SCOLASTICO.;11-12-2019;280;0;585;1;Spese correnti;4;Trasferimenti correnti;2;Trasferimenti correnti a Famiglie;3;"Borse di studio, dottorati di ricerca e contratti di formazione specialistica area medica";1;Borse di studio;11-12-2019;
1650;12;0;"250,00";"4.000,00";ZANANDREA GIOSUE'; ;BORSA DI STUDIO COMUNALE ANNO 2018/2019 PER MERITO SCOLASTICO.;11-12-2019;280;0;585;1;Spese correnti;4;Trasferimenti correnti;2;Trasferimenti correnti a Famiglie;3;"Borse di studio, dottorati di ricerca e contratti di formazione specialistica area medica";1;Borse di studio;11-12-2019;
1650;13;0;"250,00";"4.000,00";ZILIO MELANIA; ;BORSA DI STUDIO COMUNALE ANNO 2018/2019 PER MERITO SCOLASTICO.;11-12-2019;280;0;585;1;Spese correnti;4;Trasferimenti correnti;2;Trasferimenti correnti a Famiglie;3;"Borse di studio, dottorati di ricerca e contratti di formazione specialistica area medica";1;Borse di studio;11-12-2019;
1651;1;0;"1.173,62";"3.547,42";BIM PIAVE NUOVE ENERGIE S.R.L.; ;SALDO Fatt.n. 9001702  del 19/08/2019  acqua calda 01/05/2019-30/06/2019 - Scuola Primaria Liedolo;12-12-2019;235;0;574;1;Spese correnti;3;Acquisto di beni e servizi;2;Acquisto di servizi;5;Utenze e canoni;6;Gas;12-12-2019;
1651;2;0;"2.373,80";"3.547,42";BIM PIAVE NUOVE ENERGIE S.R.L.; ;SALDO Fatt.n. 9001703  del 19/08/2019  acqua calda 01/05/2019-30/06/2019 - Scuola Primaria CÃ  Rainati;12-12-2019;235;0;574;1;Spese correnti;3;Acquisto di beni e servizi;2;Acquisto di servizi;5;Utenze e canoni;6;Gas;12-12-2019;
1652;1;0;"1.419,63";"1.419,63";BIM PIAVE NUOVE ENERGIE S.R.L.; ;ACCONTO Fatt.n. 9001696  del 19/08/2019 acqua calda 01/05/2019-30/06/2019 - Sede Municipale;12-12-2019;34;0;399;1;Spese correnti;3;Acquisto di beni e servizi;2;Acquisto di servizi;5;Utenze e canoni;6;Gas;12-12-2019;
1653;1;0;"1.436,48";"1.436,48";BIM PIAVE NUOVE ENERGIE S.R.L.; ;SALDO Fatt.n. 9001696  del 19/08/2019 acqua calda 01/05/2019-30/06/2019 - Sede Municipale;12-12-2019;34;0;573;1;Spese correnti;3;Acquisto di beni e servizi;2;Acquisto di servizi;5;Utenze e canoni;6;Gas;12-12-2019;
1654;1;0;"928,47";"928,47";BIM PIAVE NUOVE ENERGIE S.R.L.; ;SALDO Fatt.n. 9001698  del 19/08/2019 acqua calda 01/05/2019-30/06/2019 - Villa Rubelli;12-12-2019;310;0;575;1;Spese correnti;3;Acquisto di beni e servizi;2;Acquisto di servizi;5;Utenze e canoni;6;Gas;12-12-2019;
1655;1;0;"1.720,54";"3.988,52";BIM PIAVE NUOVE ENERGIE S.R.L.; ;ACCONTO Fatt.n. 9001699  del 19/08/2019 acqua calda 01/05/2019-30/06/2019 - Polivalente "La Roggia";12-12-2019;34;0;573;1;Spese correnti;3;Acquisto di beni e servizi;2;Acquisto di servizi;5;Utenze e canoni;6;Gas;12-12-2019;
1655;2;0;"2.267,98";"3.988,52";BIM PIAVE NUOVE ENERGIE S.R.L.; ;SALDO Fatt.n. 9001700  del 19/08/2019 Fatturazione manutenzione ordinaria annuale impianti di condizionamento - Polivalente "La Roggia";12-12-2019;34;0;573;1;Spese correnti;3;Acquisto di beni e servizi;2;Acquisto di servizi;5;Utenze e canoni;6;Gas;12-12-2019;
1656;1;0;"32,71";"32,71";BIM PIAVE NUOVE ENERGIE S.R.L.; ;SALDO Fatt.n. 9001699  del 19/08/2019 acqua calda 01/05/2019-30/06/2019 - Polivalente "La Roggia";12-12-2019;311;0;404;1;Spese correnti;3;Acquisto di beni e servizi;2;Acquisto di servizi;5;Utenze e canoni;6;Gas;12-12-2019;
1657;1;0;"600,00";"600,00";BIM PIAVE NUOVE ENERGIE S.R.L.; ;ACCONTO Fatt.n. 9001697  del 19/08/2019 Acqua calda 01/05/2019-30/06/2019 - Ex Scuola Primaria Sopracastello;12-12-2019;311;0;576;1;Spese correnti;3;Acquisto di beni e servizi;2;Acquisto di servizi;5;Utenze e canoni;6;Gas;12-12-2019;
1658;1;0;"102,48";"102,48";BIM PIAVE NUOVE ENERGIE S.R.L.; ;SALDO Fatt.n. 9001697  del 19/08/2019 Acqua calda 01/05/2019-30/06/2019 - Ex Scuola Primaria Sopracastello;12-12-2019;530;0;402;1;Spese correnti;3;Acquisto di beni e servizi;2;Acquisto di servizi;5;Utenze e canoni;6;Gas;12-12-2019;
1659;1;0;"622,60";"622,60";CENTRO RESIDENZIALE PER ANZIANI DOMENICO SARTOR; ;SALDO Fatt.n. 301/E  del 31/10/2019 RETTA PER ANZIANI T.A. - OTTOBRE 2019;12-12-2019;560;0;568;1;Spese correnti;3;Acquisto di beni e servizi;2;Acquisto di servizi;15;Contratti di servizio pubblico;8;Contratti di servizio di assistenza sociale residenziale e semiresidenziale;12-12-2019;
1660;1;0;"13.264,68";"13.264,68";RIGATO INFISSI S.R.L.;ZC729B3E09;ACCONTO Fatt.n. 695/P  del 19/11/2019 FORNITURA FRANGISOLE PLESSO SCOLASTICO;12-12-2019;772;0;446;2;Spese in conto capitale;2;Investimenti fissi lordi e acquisto di terreni;1;Beni materiali;9;Beni immobili;3;Fabbricati ad uso scolastico;12-12-2019;
1661;1;0;"912,15";"912,15";RIGATO INFISSI S.R.L.;ZC729B3E09;ACCONTO Fatt.n. 695/P  del 19/11/2019 FORNITURA FRANGISOLE PLESSO SCOLASTICO;12-12-2019;235;1;470;1;Spese correnti;3;Acquisto di beni e servizi;2;Acquisto di servizi;9;Manutenzione ordinaria e riparazioni;11;Manutenzione ordinaria e riparazioni di altri beni materiali;12-12-2019;
1662;1;0;"2.196,45";"2.196,45";RIGATO INFISSI S.R.L.;ZC729B3E09;SALDO Fatt.n. 695/P  del 19/11/2019 FORNITURA FRANGISOLE PLESSO SCOLASTICO;12-12-2019;745;0;471;2;Spese in conto capitale;2;Investimenti fissi lordi e acquisto di terreni;1;Beni materiali;9;Beni immobili;3;Fabbricati ad uso scolastico;12-12-2019;
1663;1;0;"2.600,00";"2.600,00";ASSOC.SENTIERI NATURA-PARCO DEGLI EZZELINI; ;IMPEGNO E LIQUIDAZIONE CONTRIBUTO.;12-12-2019;334;0;557;1;Spese correnti;4;Trasferimenti correnti;1;Trasferimenti correnti a Amministrazioni Pubbliche;4;Trasferimenti correnti a organismi interni e/o unità locali della amministrazione;1;Trasferimenti correnti a organismi interni e/o unità locali della amministrazione;12-12-2019;
1664;1;0;"4.500,00";"4.500,00";F.C.D. UNION EZZELINA; ;IMPEGNO E LIQUIDAZIONE CONTRIBUTO.;12-12-2019;382;1;558;1;Spese correnti;4;Trasferimenti correnti;1;Trasferimenti correnti a Amministrazioni Pubbliche;4;Trasferimenti correnti a organismi interni e/o unità locali della amministrazione;1;Trasferimenti correnti a organismi interni e/o unità locali della amministrazione;12-12-2019;
1665;1;0;"200,00";"3.000,00";A.S.D. FIDES ET ROBUR; ;IMPEGNO E LIQUIDAZIONE CONTRIBUTI AD ASSOCIAZIONI ED ENTI.;12-12-2019;574;0;559;1;Spese correnti;4;Trasferimenti correnti;1;Trasferimenti correnti a Amministrazioni Pubbliche;4;Trasferimenti correnti a organismi interni e/o unità locali della amministrazione;1;Trasferimenti correnti a organismi interni e/o unità locali della amministrazione;12-12-2019;
1665;2;0;"150,00";"3.000,00";ACAT - ULSS 8 ONLUS; ;IMPEGNO E LIQUIDAZIONE CONTRIBUTI AD ASSOCIAZIONI ED ENTI.;12-12-2019;574;0;559;1;Spese correnti;4;Trasferimenti correnti;1;Trasferimenti correnti a Amministrazioni Pubbliche;4;Trasferimenti correnti a organismi interni e/o unità locali della amministrazione;1;Trasferimenti correnti a organismi interni e/o unità locali della amministrazione;12-12-2019;
1665;3;0;"500,00";"3.000,00";AMICI DEL CUORE; ;IMPEGNO E LIQUIDAZIONE CONTRIBUTI AD ASSOCIAZIONI ED ENTI.;12-12-2019;574;0;559;1;Spese correnti;4;Trasferimenti correnti;1;Trasferimenti correnti a Amministrazioni Pubbliche;4;Trasferimenti correnti a organismi interni e/o unità locali della amministrazione;1;Trasferimenti correnti a organismi interni e/o unità locali della amministrazione;12-12-2019;
1665;4;0;"150,00";"3.000,00";ASSOCIAZIONE A.S.D. KARATE'; ;IMPEGNO E LIQUIDAZIONE CONTRIBUTI AD ASSOCIAZIONI ED ENTI.;12-12-2019;574;0;559;1;Spese correnti;4;Trasferimenti correnti;1;Trasferimenti correnti a Amministrazioni Pubbliche;4;Trasferimenti correnti a organismi interni e/o unità locali della amministrazione;1;Trasferimenti correnti a organismi interni e/o unità locali della amministrazione;12-12-2019;
1665;5;0;"100,00";"3.000,00";ASSOCIAZIONE CULTURALE LEGA DI PRIZREN; ;IMPEGNO E LIQUIDAZIONE CONTRIBUTI AD ASSOCIAZIONI ED ENTI.;12-12-2019;574;0;559;1;Spese correnti;4;Trasferimenti correnti;1;Trasferimenti correnti a Amministrazioni Pubbliche;4;Trasferimenti correnti a organismi interni e/o unità locali della amministrazione;1;Trasferimenti correnti a organismi interni e/o unità locali della amministrazione;12-12-2019;
1665;6;0;"900,00";"3.000,00";ASSOCIAZIONE OASI SAN DANIELE; ;IMPEGNO E LIQUIDAZIONE CONTRIBUTI AD ASSOCIAZIONI ED ENTI.;12-12-2019;574;0;559;1;Spese correnti;4;Trasferimenti correnti;1;Trasferimenti correnti a Amministrazioni Pubbliche;4;Trasferimenti correnti a organismi interni e/o unità locali della amministrazione;1;Trasferimenti correnti a organismi interni e/o unità locali della amministrazione;12-12-2019;
1665;7;0;"300,00";"3.000,00";ASSOCIAZIONE PADOVA MILLENNIUM BASKET - ONLUS; ;IMPEGNO E LIQUIDAZIONE CONTRIBUTI AD ASSOCIAZIONI ED ENTI.;12-12-2019;574;0;559;1;Spese correnti;4;Trasferimenti correnti;1;Trasferimenti correnti a Amministrazioni Pubbliche;4;Trasferimenti correnti a organismi interni e/o unità locali della amministrazione;1;Trasferimenti correnti a organismi interni e/o unità locali della amministrazione;12-12-2019;
1665;8;0;"700,00";"3.000,00";CENTRO PARROCCHIALE DI S.ZENONE; ;IMPEGNO E LIQUIDAZIONE CONTRIBUTI AD ASSOCIAZIONI ED ENTI.;12-12-2019;574;0;559;1;Spese correnti;4;Trasferimenti correnti;1;Trasferimenti correnti a Amministrazioni Pubbliche;4;Trasferimenti correnti a organismi interni e/o unità locali della amministrazione;1;Trasferimenti correnti a organismi interni e/o unità locali della amministrazione;12-12-2019;
1666;1;0;"100,00";"3.050,00";A.S.D. OLTRE ONLUS; ;IMPEGNO E LIQUIDAZIONE CONTRIBUTI AD ASSOCIAZIONI ED ENTI.;12-12-2019;575;0;560;1;Spese correnti;4;Trasferimenti correnti;4;Trasferimenti correnti a Istituzioni Sociali Private;1;Trasferimenti correnti a Istituzioni Sociali Private;1;Trasferimenti correnti a Istituzioni Sociali Private;12-12-2019;
1666;2;0;"500,00";"3.050,00";ASSOCIAZIONE LA MARGHERITA; ;IMPEGNO E LIQUIDAZIONE CONTRIBUTI AD ASSOCIAZIONI ED ENTI.;12-12-2019;575;0;560;1;Spese correnti;4;Trasferimenti correnti;4;Trasferimenti correnti a Istituzioni Sociali Private;1;Trasferimenti correnti a Istituzioni Sociali Private;1;Trasferimenti correnti a Istituzioni Sociali Private;12-12-2019;
1666;3;0;"250,00";"3.050,00";ASSOCIAZIONE TEATRALE "I RUSPANTI"; ;IMPEGNO E LIQUIDAZIONE CONTRIBUTI AD ASSOCIAZIONI ED ENTI.;12-12-2019;575;0;560;1;Spese correnti;4;Trasferimenti correnti;4;Trasferimenti correnti a Istituzioni Sociali Private;1;Trasferimenti correnti a Istituzioni Sociali Private;1;Trasferimenti correnti a Istituzioni Sociali Private;12-12-2019;
1666;4;0;"1.500,00";"3.050,00";ASSOCIAZIONE VOLONTARIATO A.V.A.B.; ;IMPEGNO E LIQUIDAZIONE CONTRIBUTI AD ASSOCIAZIONI ED ENTI.;12-12-2019;575;0;560;1;Spese correnti;4;Trasferimenti correnti;4;Trasferimenti correnti a Istituzioni Sociali Private;1;Trasferimenti correnti a Istituzioni Sociali Private;1;Trasferimenti correnti a Istituzioni Sociali Private;12-12-2019;
1666;5;0;"450,00";"3.050,00";CARITAS PARROCCHIALE-CENTRO DISTRIBUZIONE ALIMENTARE; ;IMPEGNO E LIQUIDAZIONE CONTRIBUTI AD ASSOCIAZIONI ED ENTI.;12-12-2019;575;0;560;1;Spese correnti;4;Trasferimenti correnti;4;Trasferimenti correnti a Istituzioni Sociali Private;1;Trasferimenti correnti a Istituzioni Sociali Private;1;Trasferimenti correnti a Istituzioni Sociali Private;12-12-2019;
1666;6;0;"250,00";"3.050,00";VITA E LAVORO SOCIETA' COOPERATIVA SOCIALE ONLUS; ;IMPEGNO E LIQUIDAZIONE CONTRIBUTI AD ASSOCIAZIONI ED ENTI.;12-12-2019;575;0;560;1;Spese correnti;4;Trasferimenti correnti;4;Trasferimenti correnti a Istituzioni Sociali Private;1;Trasferimenti correnti a Istituzioni Sociali Private;1;Trasferimenti correnti a Istituzioni Sociali Private;12-12-2019;
1667;1;0;"31.254,00";"31.254,00";A.T.E.R. - AZIENDA TERRIT. EDILIZIA RESIDENZIALE; ;SALDO Fatt.n. G12/2019  del 21/02/2019 CANONE AFFITTO CENTRO POLIVALENTE - 2 SEMESTRE 2019;12-12-2019;561;0;123;1;Spese correnti;3;Acquisto di beni e servizi;2;Acquisto di servizi;7;Utilizzo di beni di terzi;1;Locazione di beni immobili;12-12-2019;
1668;1;0;"37,20";"37,20";ASCO TLC S.P.A.;ZCD271B191;ACCONTO Fatt.n. 09037056  del 30/11/2019 COLLEGAMENTO FIBRA OTTICA: GENN.-NOV 2019;13-12-2019;561;2;80;1;Spese correnti;3;Acquisto di beni e servizi;2;Acquisto di servizi;5;Utenze e canoni;999;Utenze e canoni per altri servizi n.a.c.;13-12-2019;
1669;1;0;"24,40";"633,80";ASCO TLC S.P.A.;ZCD271B191;SALDO Fatt.n. 09037055  del 30/11/2019 COLLEGAMENTO FIBRA OTTICA: GENN-NOV. 2019;13-12-2019;34;0;598;1;Spese correnti;3;Acquisto di beni e servizi;2;Acquisto di servizi;5;Utenze e canoni;999;Utenze e canoni per altri servizi n.a.c.;13-12-2019;
1669;2;0;"176,90";"633,80";ASCO TLC S.P.A.;ZCD271B191;SALDO Fatt.n. 09037057  del 30/11/2019  COLLEGAMENTO FIBRA OTTICA: GENN-NOV. 2019;13-12-2019;34;0;598;1;Spese correnti;3;Acquisto di beni e servizi;2;Acquisto di servizi;5;Utenze e canoni;999;Utenze e canoni per altri servizi n.a.c.;13-12-2019;
1669;3;0;"432,50";"633,80";ASCO TLC S.P.A.;ZCD271B191;SALDO Fatt.n. 09037056  del 30/11/2019 COLLEGAMENTO FIBRA OTTICA: GENN.-NOV 2019;13-12-2019;34;0;598;1;Spese correnti;3;Acquisto di beni e servizi;2;Acquisto di servizi;5;Utenze e canoni;999;Utenze e canoni per altri servizi n.a.c.;13-12-2019;
1670;1;0;"1.888,86";"1.888,86";ZEN GIORGIO; ;LIQUIDAZIONE INCARICO DI COLLABORAZIONE OCCASIONALE PER SUPPORTO AL RESPONSABILE DELLAREA ECONOMICO FINANZIARIA AL DOTT. ZEN GIORGIO - DIPENDENTE DEL COMUNE DI CASTELLO DI GODEGO: AGOSTO E PARTE SETTEMBRE 2019.;13-12-2019;48;0;51;1;Spese correnti;3;Acquisto di beni e servizi;2;Acquisto di servizi;11;Prestazioni professionali e specialistiche;999;Altre prestazioni professionali e specialistiche n.a.c.;13-12-2019;
1671;1;0;"3.511,14";"3.511,14";ZEN GIORGIO; ;LIQUIDAZIONE INCARICO DI COLLABORAZIONE OCCASIONALE PER SUPPORTO AL RESPONSABILE DELLAREA ECONOMICO FINANZIARIA AL DOTT. ZEN GIORGIO - DIPENDENTE DEL COMUNE DI CASTELLO DI GODEGO- PERIODO: SALDO SETTEMBRE FINO A NOVEMBRE 2019.;13-12-2019;48;0;472;1;Spese correnti;3;Acquisto di beni e servizi;2;Acquisto di servizi;11;Prestazioni professionali e specialistiche;8;"Prestazioni di natura contabile, tributaria e del lavoro";13-12-2019;
1672;1;0;"490,56";"490,56";ZEN GIORGIO; ;LIQUIDAZIONE ACCESSI PER INCARICO DI COLLABORAZIONE OCCASIONALE PER SUPPORTO AL RESPONSABILE DELLAREA ECONOMICO FINANZIARIA AL DOTT. ZEN GIORGIO - DIPENDENTE DEL COMUNE DI CASTELLO DI GODEGO - PERIODO: AGOSTO-NVOEMBRE 2019.;13-12-2019;48;0;472;1;Spese correnti;3;Acquisto di beni e servizi;2;Acquisto di servizi;11;Prestazioni professionali e specialistiche;8;"Prestazioni di natura contabile, tributaria e del lavoro";13-12-2019;
1674;1;0;"648,00";"648,00";I.N.P.S. SEDE DI TREVISO; ;INPS C/ENTE SU INCARICO DI COLLABORAZIONE OCCASIONALE PER SUPPORTO AL RESPONSABILE DELLAREA ECONOMICO FINANZIARIA AL DOTT. ZEN GIORGIO - DIPENDENTE DEL COMUNE DI CASTELLO DI GODEGO - PERIODO: AGOSTO - NOVEMBRE 2019.;13-12-2019;48;0;331;1;Spese correnti;3;Acquisto di beni e servizi;2;Acquisto di servizi;11;Prestazioni professionali e specialistiche;8;"Prestazioni di natura contabile, tributaria e del lavoro";13-12-2019;
1675;1;0;"216,00";"216,00";I.N.P.S. SEDE DI TREVISO; ;INPS C/ENTE SU INCARICO DI COLLABORAZIONE OCCASIONALE PER SUPPORTO AL RESPONSABILE DELLAREA ECONOMICO FINANZIARIA AL DOTT. ZEN GIORGIO - DIPENDENTE DEL COMUNE DI CASTELLO DI GODEGO - PERIODO: AGOSTO/NOVEMBRE 2019.;13-12-2019;48;0;472;1;Spese correnti;3;Acquisto di beni e servizi;2;Acquisto di servizi;11;Prestazioni professionali e specialistiche;8;"Prestazioni di natura contabile, tributaria e del lavoro";13-12-2019;
1677;1;0;"724,50";"724,50";ORGANIZZAZIONE PER LA GESTIONE DESTINAZIONE TURISTICA CITTA' D'ARTE E VILLE TREVIGIANE; ;"VERSAMENTO QUOTE DESTINATE A: I.P.A. TERRE DI ASOLO E MONTE GRAPPA E O.G.D. CITTA DARTE E VILLE VENETE DEL TERRITORIO TREVIGIANO, A SOSTEGNO DEI PROGETTI IN AMBITO TURISTICO.";16-12-2019;365;0;554;1;Spese correnti;4;Trasferimenti correnti;1;Trasferimenti correnti a Amministrazioni Pubbliche;2;Trasferimenti correnti a Amministrazioni Locali;999;Trasferimenti correnti a altre Amministrazioni Locali n.a.c.;16-12-2019;
1678;1;0;"724,50";"724,50";I.P.A.TERRE ASOLO E M. GRAPPA C/O FONDAZIONE LA FORNACE; ;"VERSAMENTO QUOTE DESTINATE A: I.P.A. TERRE DI ASOLO E MONTE GRAPPA E O.G.D. CITTA DARTE E VILLE VENETE DEL TERRITORIO TREVIGIANO, A SOSTEGNO DEI PROGETTI IN AMBITO TURISTICO.";16-12-2019;364;0;555;1;Spese correnti;4;Trasferimenti correnti;1;Trasferimenti correnti a Amministrazioni Pubbliche;2;Trasferimenti correnti a Amministrazioni Locali;18;Trasferimenti correnti a Consorzi di enti locali;16-12-2019;
1679;1;0;"3.175,82";"3.175,82";ASSOCIAZIONE COMUNI MARCA TREVIGIANA; ;ACCONTO QUOTA SERVIZIO CIVILE NAZIONALE BANDO 2018.;16-12-2019;51;1;592;1;Spese correnti;3;Acquisto di beni e servizi;2;Acquisto di servizi;99;Altri servizi;3;Quote di associazioni;16-12-2019;
1680;1;0;"124,18";"124,18";ASSOCIAZIONE COMUNI MARCA TREVIGIANA; ;SALDO QUOTA SERVIZIO CIVILE NAZIONALE BANDO 2018.;16-12-2019;333;1;593;1;Spese correnti;4;Trasferimenti correnti;1;Trasferimenti correnti a Amministrazioni Pubbliche;4;Trasferimenti correnti a organismi interni e/o unità locali della amministrazione;1;Trasferimenti correnti a organismi interni e/o unità locali della amministrazione;16-12-2019;
1681;1;0;"6.750,00";"6.750,00";CABI BROKER DI ASSICURAZIONI S.R.L.;ZDF2B0211E;RINNOVO POLIZZA RESPONSABILITA CIVILE RCT-RCO TRAMITE IL BROKER ASSICURATIVO CABI BROKER  SRL DI PADOVA  -  CIG : ZDF2B0211E.;16-12-2019;35;0;579;1;Spese correnti;10;Altre spese correnti;4;Premi di assicurazione;1;Premi di assicurazione contro i danni;3;Premi di assicurazione per responsabilità civile verso terzi;16-12-2019;
1682;1;0;"910,00";"910,00";O.D.V. PROTEZIONE CIVILE DI SAN ZENONE DEGLI EZZELINI; ;LIQUIDAZIONE OTTAVO ACCONTO DEL CONTRIBUTO AL GRUPPO DI PROTEZIONE CIVILE DI SAN ZENONE DEGLI EZZELINI - ANNO 2019.;16-12-2019;382;1;139;1;Spese correnti;4;Trasferimenti correnti;1;Trasferimenti correnti a Amministrazioni Pubbliche;4;Trasferimenti correnti a organismi interni e/o unità locali della amministrazione;1;Trasferimenti correnti a organismi interni e/o unità locali della amministrazione;16-12-2019;
1683;1;0;"7.061,08";"7.061,08";ANDREATTA BERTILLA; ;FORNITURA GRATUITA DEI LIBRI DI TESTO AI CITTADINI RESIDENTI NEL COMUNE ED ISCRITTI ALLA SCUOLA PRIMARIA PER LANNO SCOLASTICO 2019/2020. LIOQUIDAZIONE NOTA DI SPESA N. 2 DEL 22/10/2019.;16-12-2019;239;0;518;1;Spese correnti;3;Acquisto di beni e servizi;1;Acquisto di beni;1;"Giornali, riviste e pubblicazioni";2;Pubblicazioni;16-12-2019;
1684;1;0;"1.000,00";"1.000,00";PEDEMONTANA EMERGENZA ONLUS; ;IMPEGNO DI SPESA E LIQUIDAZIONE CONTRIBUTO PER SERVIZIO 118 ALLASSOCIAZIONE PEDEMONTANA EMERGENZA ONLUS DI CRESPANO DEL GRAPPA.;16-12-2019;575;0;587;1;Spese correnti;4;Trasferimenti correnti;4;Trasferimenti correnti a Istituzioni Sociali Private;1;Trasferimenti correnti a Istituzioni Sociali Private;1;Trasferimenti correnti a Istituzioni Sociali Private;16-12-2019;
1685;1;0;"500,00";"500,00";PEDEMONTANA EMERGENZA ONLUS; ;IMPEGNO DI SPESA E LIQUIDAZIONE CONTRIBUTO PER SERVIZIO 118 ALLASSOCIAZIONE PEDEMONTANA EMERGENZA ONLUS DI CRESPANO DEL GRAPPA.;16-12-2019;578;2;588;1;Spese correnti;4;Trasferimenti correnti;1;Trasferimenti correnti a Amministrazioni Pubbliche;4;Trasferimenti correnti a organismi interni e/o unità locali della amministrazione;1;Trasferimenti correnti a organismi interni e/o unità locali della amministrazione;16-12-2019;
1686;1;0;"850,00";"850,00";ASSOCIAZIONE DON BOSCO 3A; ;OFFERTA PER GRUPPO OMG CRESPANO.;16-12-2019;1007;0;384;2;Spese in conto capitale;2;Investimenti fissi lordi e acquisto di terreni;1;Beni materiali;9;Beni immobili;12;Infrastrutture stradali;16-12-2019;
1687;1;0;"229,09";"229,09";OMESSO NOMINATIVO NEL RISPETTO DELLA NORMATIVA SULLA PROTEZIONE DATI PERSONALI; ;FATTURA CONTARINA N. 323 DEL 01/04/19 E FATT. S.E.N. DEL 07/12/19 periodo novembre.;16-12-2019;576;0;536;1;Spese correnti;4;Trasferimenti correnti;2;Trasferimenti correnti a Famiglie;2;Interventi assistenziali;999;Altri assegni e sussidi assistenziali;16-12-2019;
1688;1;0;"5.764,00";"5.764,00";DZ IMPIANTI DI ZERBIN DANIELE;ZF12A89F59;SALDO Fatt.n. FPA 2/19  del 04/12/2019 ADEGUAMENTO SISMICO PLESSO SCOLASTICO;16-12-2019;745;0;527;2;Spese in conto capitale;2;Investimenti fissi lordi e acquisto di terreni;1;Beni materiali;9;Beni immobili;3;Fabbricati ad uso scolastico;16-12-2019;
1689;1;0;"17.799,16";"17.799,16";GIACOBBO S.R.L.;ZFA29216BC;SALDO Fatt.n. 97  del 05/12/2019 MANUTENZIONE SEDE STRADALE;16-12-2019;889;0;365;2;Spese in conto capitale;2;Investimenti fissi lordi e acquisto di terreni;1;Beni materiali;9;Beni immobili;16;Impianti sportivi;16-12-2019;
1690;1;0;"7.413,54";"7.413,54";CASA DI RIPOSO 'AITA'; ;SALDO Fatt.n. 676/C  del 30/11/2019 FORNITURA PASTI MENSA - NOVEMBRE 2019;16-12-2019;274;1;54;1;Spese correnti;3;Acquisto di beni e servizi;2;Acquisto di servizi;15;Contratti di servizio pubblico;6;Contratti di servizio per le mense scolastiche;16-12-2019;
1692;1;0;"33,00";"33,00";G.S.E. S.p.A.; ;SALDO Fatt.n. 2019030011  del 22/10/2019 Contributo a favore GSE art. 17 D.M. 28 dicembre 2012 - Codice identificativo richiesta: CT00294650;16-12-2019;27;0;589;1;Spese correnti;3;Acquisto di beni e servizi;2;Acquisto di servizi;99;Altri servizi;999;Altri servizi diversi n.a.c.;16-12-2019;
1693;1;0;"6,60";"6,60";G.S.E. S.p.A.; ;SALDO Fatt.n. 2019029901  del 15/10/2019 DELIB.ARG/elt 74/08-ART.6.1 lett.c SCAMBIO SUL POSTO SSP00726396;16-12-2019;27;0;589;1;Spese correnti;3;Acquisto di beni e servizi;2;Acquisto di servizi;99;Altri servizi;999;Altri servizi diversi n.a.c.;16-12-2019;
1695;1;0;"122,00";"122,00";ENEL DISTRIBUZIONE S.P.A.;7134285639;SALDO Fatt.n. 0000919900003273  del 11/07/2019 CONTRIBUTO A FORFAIT;18-12-2019;600;0;342;1;Spese correnti;3;Acquisto di beni e servizi;2;Acquisto di servizi;5;Utenze e canoni;4;Energia elettrica;18-12-2019;
1697;1;0;"1.943,04";"1.943,04";TESORERIA PROVINCIALE DELLO STATO; ;VERSAMENTO ACCONTO I.V.A. cod. 618E.;19-12-2019;660;0;0;1;Spese correnti;10;Altre spese correnti;3;Versamenti IVA a debito;1;Versamenti IVA a debito per le gestioni commerciali;1;Versamenti IVA a debito per le gestioni commerciali;19-12-2019;
1702;1;65;"1.000,00";"1.000,00";INTESA SANPAOLO GROUP SERVICES;Z4B2990F15;SALDO Fatt.n. 016X20191V6001992  del 15/11/2019 AP - Servizio PUBBLICA AMMINISTRAZIONE: COMPENSO SERVIZIO CASSA/TESORERIA 2019.;23-12-2019;46;0;412;1;Spese correnti;3;Acquisto di beni e servizi;2;Acquisto di servizi;17;Servizi finanziari;2;Oneri per servizio di tesoreria;16-12-2019;
1703;1;0;"300,00";"300,00";INTESA SANPAOLO GROUP SERVICES;ZCB299103F;SOGGETTI DIVERSI-COMMISSIONE SERVIZI INBIZ (P.      66 -R.    1722);23-12-2019;33;1;413;1;Spese correnti;3;Acquisto di beni e servizi;2;Acquisto di servizi;9;Manutenzione ordinaria e riparazioni;11;Manutenzione ordinaria e riparazioni di altri beni materiali;23-12-2019;
1704;1;0;"220,00";"220,00";INTESA SANPAOLO GROUP SERVICES;Z4B2990F15;SALDO Fatt.n. 016X20191V6001992  del 15/11/2019 AP - Servizio PUBBLICA AMMINISTRAZIONE: COMPENSO SERVIZIO CASSA/TESORERIA 2019.;23-12-2019;46;0;412;1;Spese correnti;3;Acquisto di beni e servizi;2;Acquisto di servizi;17;Servizi finanziari;2;Oneri per servizio di tesoreria;23-12-2019;
1705;1;0;"66,00";"66,00";INTESA SANPAOLO GROUP SERVICES;ZCB299103F;SALDO Fatt.n. 016X20191V6001993  del 15/11/2019 AP - Servizio PUBBLICA AMMINISTRAZIONE COMPENSO OPI FULL/SIOPE PLUS 2019.;23-12-2019;33;1;413;1;Spese correnti;3;Acquisto di beni e servizi;2;Acquisto di servizi;9;Manutenzione ordinaria e riparazioni;11;Manutenzione ordinaria e riparazioni di altri beni materiali;23-12-2019;
1707;1;0;"9.315,22";"9.315,22";CASSA DEPOSITI E PRESTITI S.P.A.; ;SOGGETTI DIVERSI-PAGAMENTO ADUE B2B            COD DISP 011912170GHH1J NOME  CASSA DEPOSITI E PRESTITI SPAMANDATO 292844000914499 PFM   RUOLO 06052 RATE AMMORTAMENTO PRESTITI S (P.      72 -R.    1798);31-12-2019;604;0;324;1;Spese correnti;7;Interessi passivi;5;Interessi su Mutui e altri finanziamenti a medio lungo termine;4;Interessi passivi su finanziamenti a medio lungo termine a Imprese;3;Interessi passivi a Cassa Depositi e Prestiti SPA su mutui e altri finanziamenti a medio lungo termine;31-12-2019;
1709;1;0;"168,34";"168,34";CASSA DEPOSITI E PRESTITI S.P.A.; ;SOGGETTI DIVERSI-PAGAMENTO ADUE B2B            COD DISP 011912170GHGZQ NOME  CASSA DEPOSITI E PRESTITI SPAMANDATO 292844000914499 PFM   RUOLO 06052 RATE AMMORTAMENTO PRESTITI M (P.      73 -R.    1799);31-12-2019;238;0;321;1;Spese correnti;7;Interessi passivi;5;Interessi su Mutui e altri finanziamenti a medio lungo termine;4;Interessi passivi su finanziamenti a medio lungo termine a Imprese;4;Interessi passivi a Cassa Depositi e Prestiti - Gestione Tesoro su mutui e altri finanziamenti a medio lungo termine;31-12-2019;
1710;1;0;"289,40";"289,40";CASSA DEPOSITI E PRESTITI S.P.A.; ;SOGGETTI DIVERSI-PAGAMENTO ADUE B2B            COD DISP 011912170GHGZQ NOME  CASSA DEPOSITI E PRESTITI SPAMANDATO 292844000914499 PFM   RUOLO 06052 RATE AMMORTAMENTO PRESTITI M (P.      73 -R.    1799);31-12-2019;316;0;322;1;Spese correnti;7;Interessi passivi;5;Interessi su Mutui e altri finanziamenti a medio lungo termine;4;Interessi passivi su finanziamenti a medio lungo termine a Imprese;4;Interessi passivi a Cassa Depositi e Prestiti - Gestione Tesoro su mutui e altri finanziamenti a medio lungo termine;31-12-2019;
1711;1;0;"1.632,42";"1.632,42";CASSA DEPOSITI E PRESTITI S.P.A.; ;SOGGETTI DIVERSI-PAGAMENTO ADUE B2B            COD DISP 011912170GHGZQ NOME  CASSA DEPOSITI E PRESTITI SPAMANDATO 292844000914499 PFM   RUOLO 06052 RATE AMMORTAMENTO PRESTITI M (P.      73 -R.    1799);31-12-2019;421;0;323;1;Spese correnti;7;Interessi passivi;5;Interessi su Mutui e altri finanziamenti a medio lungo termine;4;Interessi passivi su finanziamenti a medio lungo termine a Imprese;4;Interessi passivi a Cassa Depositi e Prestiti - Gestione Tesoro su mutui e altri finanziamenti a medio lungo termine;31-12-2019;
1712;1;0;"1.908,24";"1.908,24";CASSA DEPOSITI E PRESTITI S.P.A.; ;SOGGETTI DIVERSI-PAGAMENTO ADUE B2B            COD DISP 011912170GHGZQ NOME  CASSA DEPOSITI E PRESTITI SPAMANDATO 292844000914499 PFM   RUOLO 06052 RATE AMMORTAMENTO PRESTITI M (P.      73 -R.    1799);31-12-2019;604;0;324;1;Spese correnti;7;Interessi passivi;5;Interessi su Mutui e altri finanziamenti a medio lungo termine;4;Interessi passivi su finanziamenti a medio lungo termine a Imprese;4;Interessi passivi a Cassa Depositi e Prestiti - Gestione Tesoro su mutui e altri finanziamenti a medio lungo termine;31-12-2019;
